Workbook

Sheet Data
B1: Excel Salary Survey Data
B3: Note: Experience data is not available for first few hundred rows.
G4: divided by 1000 to get in K
B5: Unique ID | C5: Timestamp | D5: Your Salary | E5: clean Salary (in local currency) | F5: Currency | G5: Salary in USD | H5: Your Job Title | I5: Job Type | J5: Where do you work | K5: clean Country | L5: How many hours of a day you work on Excel | M5: Years of Experience | N5: My-Years if Experience | O5: My-How many hours of a day you work on Excel2
B6: ID0318 | C6: 2012-05-26T01:27:03 | D6: 400000 | E6: 400000 | F6: USD | G6: =tblSalaries[[#This Row],[clean Salary (in local currency)]]*VLOOKUP(tblSalaries[[#This Row],[Currency]],tblXrate[#Data],2,FALSE)/1000 -> 400 | H6: Financial Specialist | I6: Specialist | J6: USA | K6: =VLOOKUP(tblSalaries[[#This Row],[Where do you work]],tblCountries[[Actual]:[Mapping2]],3,FALSE) -> USA | L6: All the 8 hours baby, all the 8! | M6: Missing | N6: =VLOOKUP(tblSalaries[[#This Row],[Years of Experience]],Table3[#Data],2,FALSE) -> Missing | O6: =VLOOKUP(tblSalaries[[#This Row],[How many hours of a day you work on Excel]],Table8[#Data],2,FALSE) -> 8
B7: ID0309 | C7: 2012-05-26T01:23:50 | D7: 200000 | E7: 200000 | F7: EUR | G7: =tblSalaries[[#This Row],[clean Salary (in local currency)]]*VLOOKUP(tblSalaries[[#This Row],[Currency]],tblXrate[#Data],2,FALSE)/1000 -> 254.0798878 | H7: consultant bi | I7: Reporting | J7: The netherlands | K7: =VLOOKUP(tblSalaries[[#This Row],[Where do you work]],tblCountries[[Actual]:[Mapping2]],3,FALSE) -> EU-16 | L7: All the 8 hours baby, all the 8! | M7: Missing | N7: =VLOOKUP(tblSalaries[[#This Row],[Years of Experience]],Table3[#Data],2,FALSE) -> Missing | O7: =VLOOKUP(tblSalaries[[#This Row],[How many hours of a day you work on Excel]],Table8[#Data],2,FALSE) -> 8
B8: ID0425 | C8: 2012-05-26T02:22:17 | D8: 250000 to 270000 | E8: 250000 | F8: USD | G8: =tblSalaries[[#This Row],[clean Salary (in local currency)]]*VLOOKUP(tblSalaries[[#This Row],[Currency]],tblXrate[#Data],2,FALSE)/1000 -> 250 | H8: consultant | I8: Consultant | J8: USA | K8: =VLOOKUP(tblSalaries[[#This Row],[Where do you work]],tblCountries[[Actual]:[Mapping2]],3,FALSE) -> USA | L8: All the 8 hours baby, all the 8! | M8: Missing | N8: =VLOOKUP(tblSalaries[[#This Row],[Years of Experience]],Table3[#Data],2,FALSE) -> Missing | O8: =VLOOKUP(tblSalaries[[#This Row],[How many hours of a day you work on Excel]],Table8[#Data],2,FALSE) -> 8
B9: ID0374 | C9: 2012-05-26T01:52:01 | D9: 2207,00 | E9: 220700 | F9: USD | G9: =tblSalaries[[#This Row],[clean Salary (in local currency)]]*VLOOKUP(tblSalaries[[#This Row],[Currency]],tblXrate[#Data],2,FALSE)/1000 -> 220.7 | H9: Consultant | I9: Consultant | J9: Brazil | K9: =VLOOKUP(tblSalaries[[#This Row],[Where do you work]],tblCountries[[Actual]:[Mapping2]],3,FALSE) -> Sou&Cen America | L9: All the 8 hours baby, all the 8! | M9: Missing | N9: =VLOOKUP(tblSalaries[[#This Row],[Years of Experience]],Table3[#Data],2,FALSE) -> Missing | O9: =VLOOKUP(tblSalaries[[#This Row],[How many hours of a day you work on Excel]],Table8[#Data],2,FALSE) -> 8
B10: ID0532 | C10: 2012-05-26T05:07:30 | D10: 140000 | E10: 140000 | F10: GBP | G10: =tblSalaries[[#This Row],[clean Salary (in local currency)]]*VLOOKUP(tblSalaries[[#This Row],[Currency]],tblXrate[#Data],2,FALSE)/1000 -> 220.6649581 | H10: vba specialist | I10: Specialist | J10: UK | K10: =VLOOKUP(tblSalaries[[#This Row],[Where do you work]],tblCountries[[Actual]:[Mapping2]],3,FALSE) -> UK | L10: All the 8 hours baby, all the 8! | M10: Missing | N10: =VLOOKUP(tblSalaries[[#This Row],[Years of Experience]],Table3[#Data],2,FALSE) -> Missing | O10: =VLOOKUP(tblSalaries[[#This Row],[How many hours of a day you work on Excel]],Table8[#Data],2,FALSE) -> 8
B11: ID0083 | C11: 2012-05-26T00:00:52 | D11: 150000 | E11: 150000 | F11: USD | G11: =tblSalaries[[#This Row],[clean Salary (in local currency)]]*VLOOKUP(tblSalaries[[#This Row],[Currency]],tblXrate[#Data],2,FALSE)/1000 -> 150 | H11: Director | I11: CXO or Top Mgmt. | J11: USA | K11: =VLOOKUP(tblSalaries[[#This Row],[Where do you work]],tblCountries[[Actual]:[Mapping2]],3,FALSE) -> USA | L11: All the 8 hours baby, all the 8! | M11: Missing | N11: =VLOOKUP(tblSalaries[[#This Row],[Years of Experience]],Table3[#Data],2,FALSE) -> Missing | O11: =VLOOKUP(tblSalaries[[#This Row],[How many hours of a day you work on Excel]],Table8[#Data],2,FALSE) -> 8
B12: ID0335 | C12: 2012-05-26T01:33:03 | D12: 150000 | E12: 150000 | F12: USD | G12: =tblSalaries[[#This Row],[clean Salary (in local currency)]]*VLOOKUP(tblSalaries[[#This Row],[Currency]],tblXrate[#Data],2,FALSE)/1000 -> 150 | H12: financial planning | I12: Accountant | J12: USA | K12: =VLOOKUP(tblSalaries[[#This Row],[Where do you work]],tblCountries[[Actual]:[Mapping2]],3,FALSE) -> USA | L12: All the 8 hours baby, all the 8! | M12: Missing | N12: =VLOOKUP(tblSalaries[[#This Row],[Years of Experience]],Table3[#Data],2,FALSE) -> Missing | O12: =VLOOKUP(tblSalaries[[#This Row],[How many hours of a day you work on Excel]],Table8[#Data],2,FALSE) -> 8
B13: ID0516 | C13: 2012-05-26T04:26:10 | D13: $150000pa | E13: 150000 | F13: USD | G13: =tblSalaries[[#This Row],[clean Salary (in local currency)]]*VLOOKUP(tblSalaries[[#This Row],[Currency]],tblXrate[#Data],2,FALSE)/1000 -> 150 | H13: Consultant | I13: Consultant | J13: USA | K13: =VLOOKUP(tblSalaries[[#This Row],[Where do you work]],tblCountries[[Actual]:[Mapping2]],3,FALSE) -> USA | L13: All the 8 hours baby, all the 8! | M13: Missing | N13: =VLOOKUP(tblSalaries[[#This Row],[Years of Experience]],Table3[#Data],2,FALSE) -> Missing | O13: =VLOOKUP(tblSalaries[[#This Row],[How many hours of a day you work on Excel]],Table8[#Data],2,FALSE) -> 8
B14: ID0167 | C14: 2012-05-26T00:47:57 | D14: 145000 | E14: 145000 | F14: USD | G14: =tblSalaries[[#This Row],[clean Salary (in local currency)]]*VLOOKUP(tblSalaries[[#This Row],[Currency]],tblXrate[#Data],2,FALSE)/1000 -> 145 | H14: Financialcontroller | I14: Controller | J14: Switzerland | K14: =VLOOKUP(tblSalaries[[#This Row],[Where do you work]],tblCountries[[Actual]:[Mapping2]],3,FALSE) -> EU | L14: All the 8 hours baby, all the 8! | M14: Missing | N14: =VLOOKUP(tblSalaries[[#This Row],[Years of Experience]],Table3[#Data],2,FALSE) -> Missing | O14: =VLOOKUP(tblSalaries[[#This Row],[How many hours of a day you work on Excel]],Table8[#Data],2,FALSE) -> 8
B15: ID0339 | C15: 2012-05-26T01:35:02 | D15: 135000 | E15: 135000 | F15: USD | G15: =tblSalaries[[#This Row],[clean Salary (in local currency)]]*VLOOKUP(tblSalaries[[#This Row],[Currency]],tblXrate[#Data],2,FALSE)/1000 -> 135 | H15: Manager of Trade Investment & Analysis | I15: Manager | J15: USA | K15: =VLOOKUP(tblSalaries[[#This Row],[Where do you work]],tblCountries[[Actual]:[Mapping2]],3,FALSE) -> USA | L15: All the 8 hours baby, all the 8! | M15: Missing | N15: =VLOOKUP(tblSalaries[[#This Row],[Years of Experience]],Table3[#Data],2,FALSE) -> Missing | O15: =VLOOKUP(tblSalaries[[#This Row],[How many hours of a day you work on Excel]],Table8[#Data],2,FALSE) -> 8
B16: ID0126 | C16: 2012-05-26T00:42:08 | D16: 128000 | E16: 128000 | F16: USD | G16: =tblSalaries[[#This Row],[clean Salary (in local currency)]]*VLOOKUP(tblSalaries[[#This Row],[Currency]],tblXrate[#Data],2,FALSE)/1000 -> 128 | H16: Actuary | I16: Manager | J16: USA | K16: =VLOOKUP(tblSalaries[[#This Row],[Where do you work]],tblCountries[[Actual]:[Mapping2]],3,FALSE) -> USA | L16: All the 8 hours baby, all the 8! | M16: Missing | N16: =VLOOKUP(tblSalaries[[#This Row],[Years of Experience]],Table3[#Data],2,FALSE) -> Missing | O16: =VLOOKUP(tblSalaries[[#This Row],[How many hours of a day you work on Excel]],Table8[#Data],2,FALSE) -> 8
B17: ID0553 | C17: 2012-05-26T05:46:42 | D17: 111000 | E17: 111000 | F17: USD | G17: =tblSalaries[[#This Row],[clean Salary (in local currency)]]*VLOOKUP(tblSalaries[[#This Row],[Currency]],tblXrate[#Data],2,FALSE)/1000 -> 111 | H17: Senior Financial Analyst | I17: Analyst | J17: Japan | K17: =VLOOKUP(tblSalaries[[#This Row],[Where do you work]],tblCountries[[Actual]:[Mapping2]],3,FALSE) -> East&South Asia | L17: All the 8 hours baby, all the 8! | M17: Missing | N17: =VLOOKUP(tblSalaries[[#This Row],[Years of Experience]],Table3[#Data],2,FALSE) -> Missing | O17: =VLOOKUP(tblSalaries[[#This Row],[How many hours of a day you work on Excel]],Table8[#Data],2,FALSE) -> 8
B18: ID0050 | C18: 2012-05-25T06:04:57 | D18: 100000 USD | E18: 100000 | F18: USD | G18: =tblSalaries[[#This Row],[clean Salary (in local currency)]]*VLOOKUP(tblSalaries[[#This Row],[Currency]],tblXrate[#Data],2,FALSE)/1000 -> 100 | H18: Seinor Financial Analyst | I18: Analyst | J18: Germany | K18: =VLOOKUP(tblSalaries[[#This Row],[Where do you work]],tblCountries[[Actual]:[Mapping2]],3,FALSE) -> EU-16 | L18: All the 8 hours baby, all the 8! | M18: Missing | N18: =VLOOKUP(tblSalaries[[#This Row],[Years of Experience]],Table3[#Data],2,FALSE) -> Missing | O18: =VLOOKUP(tblSalaries[[#This Row],[How many hours of a day you work on Excel]],Table8[#Data],2,FALSE) -> 8
B19: ID0158 | C19: 2012-05-26T00:45:49 | D19: 100000 | E19: 100000 | F19: USD | G19: =tblSalaries[[#This Row],[clean Salary (in local currency)]]*VLOOKUP(tblSalaries[[#This Row],[Currency]],tblXrate[#Data],2,FALSE)/1000 -> 100 | H19: COST ACCOUNTANT | I19: Accountant | J19: USA | K19: =VLOOKUP(tblSalaries[[#This Row],[Where do you work]],tblCountries[[Actual]:[Mapping2]],3,FALSE) -> USA | L19: All the 8 hours baby, all the 8! | M19: Missing | N19: =VLOOKUP(tblSalaries[[#This Row],[Years of Experience]],Table3[#Data],2,FALSE) -> Missing | O19: =VLOOKUP(tblSalaries[[#This Row],[How many hours of a day you work on Excel]],Table8[#Data],2,FALSE) -> 8
B20: ID0204 | C20: 2012-05-26T00:53:42 | D20: 100000 | E20: 100000 | F20: USD | G20: =tblSalaries[[#This Row],[clean Salary (in local currency)]]*VLOOKUP(tblSalaries[[#This Row],[Currency]],tblXrate[#Data],2,FALSE)/1000 -> 100 | H20: Strategic Sourcing Manager | I20: Manager | J20: USA | K20: =VLOOKUP(tblSalaries[[#This Row],[Where do you work]],tblCountries[[Actual]:[Mapping2]],3,FALSE) -> USA | L20: All the 8 hours baby, all the 8! | M20: Missing | N20: =VLOOKUP(tblSalaries[[#This Row],[Years of Experience]],Table3[#Data],2,FALSE) -> Missing | O20: =VLOOKUP(tblSalaries[[#This Row],[How many hours of a day you work on Excel]],Table8[#Data],2,FALSE) -> 8
B21: ID0397 | C21: 2012-05-26T02:04:01 | D21: 100000 | E21: 100000 | F21: USD | G21: =tblSalaries[[#This Row],[clean Salary (in local currency)]]*VLOOKUP(tblSalaries[[#This Row],[Currency]],tblXrate[#Data],2,FALSE)/1000 -> 100 | H21: Sales Operations Analyst | I21: Analyst | J21: USA | K21: =VLOOKUP(tblSalaries[[#This Row],[Where do you work]],tblCountries[[Actual]:[Mapping2]],3,FALSE) -> USA | L21: All the 8 hours baby, all the 8! | M21: Missing | N21: =VLOOKUP(tblSalaries[[#This Row],[Years of Experience]],Table3[#Data],2,FALSE) -> Missing | O21: =VLOOKUP(tblSalaries[[#This Row],[How many hours of a day you work on Excel]],Table8[#Data],2,FALSE) -> 8
B22: ID0290 | C22: 2012-05-26T01:17:57 | D22: 97000 | E22: 97000 | F22: USD | G22: =tblSalaries[[#This Row],[clean Salary (in local currency)]]*VLOOKUP(tblSalaries[[#This Row],[Currency]],tblXrate[#Data],2,FALSE)/1000 -> 97 | H22: business analyst | I22: Analyst | J22: USA | K22: =VLOOKUP(tblSalaries[[#This Row],[Where do you work]],tblCountries[[Actual]:[Mapping2]],3,FALSE) -> USA | L22: All the 8 hours baby, all the 8! | M22: Missing | N22: =VLOOKUP(tblSalaries[[#This Row],[Years of Experience]],Table3[#Data],2,FALSE) -> Missing | O22: =VLOOKUP(tblSalaries[[#This Row],[How many hours of a day you work on Excel]],Table8[#Data],2,FALSE) -> 8
B23: ID0381 | C23: 2012-05-26T01:58:42 | D23: 95000 | E23: 95000 | F23: USD | G23: =tblSalaries[[#This Row],[clean Salary (in local currency)]]*VLOOKUP(tblSalaries[[#This Row],[Currency]],tblXrate[#Data],2,FALSE)/1000 -> 95 | H23: Senior Financial Analyst | I23: Analyst | J23: USA | K23: =VLOOKUP(tblSalaries[[#This Row],[Where do you work]],tblCountries[[Actual]:[Mapping2]],3,FALSE) -> USA | L23: All the 8 hours baby, all the 8! | M23: Missing | N23: =VLOOKUP(tblSalaries[[#This Row],[Years of Experience]],Table3[#Data],2,FALSE) -> Missing | O23: =VLOOKUP(tblSalaries[[#This Row],[How many hours of a day you work on Excel]],Table8[#Data],2,FALSE) -> 8
B24: ID0260 | C24: 2012-05-26T01:07:18 | D24: Â£60000 | E24: 60000 | F24: GBP | G24: =tblSalaries[[#This Row],[clean Salary (in local currency)]]*VLOOKUP(tblSalaries[[#This Row],[Currency]],tblXrate[#Data],2,FALSE)/1000 -> 94.57069632 | H24: Decision Analyst & Modeller | I24: Analyst | J24: UK | K24: =VLOOKUP(tblSalaries[[#This Row],[Where do you work]],tblCountries[[Actual]:[Mapping2]],3,FALSE) -> UK | L24: All the 8 hours baby, all the 8! | M24: Missing | N24: =VLOOKUP(tblSalaries[[#This Row],[Years of Experience]],Table3[#Data],2,FALSE) -> Missing | O24: =VLOOKUP(tblSalaries[[#This Row],[How many hours of a day you work on Excel]],Table8[#Data],2,FALSE) -> 8
B25: ID0503 | C25: 2012-05-26T04:01:59 | D25: 58000 | E25: 58000 | F25: GBP | G25: =tblSalaries[[#This Row],[clean Salary (in local currency)]]*VLOOKUP(tblSalaries[[#This Row],[Currency]],tblXrate[#Data],2,FALSE)/1000 -> 91.41833978 | H25: Business Modeller | I25: Manager | J25: UK | K25: =VLOOKUP(tblSalaries[[#This Row],[Where do you work]],tblCountries[[Actual]:[Mapping2]],3,FALSE) -> UK | L25: All the 8 hours baby, all the 8! | M25: Missing | N25: =VLOOKUP(tblSalaries[[#This Row],[Years of Experience]],Table3[#Data],2,FALSE) -> Missing | O25: =VLOOKUP(tblSalaries[[#This Row],[How many hours of a day you work on Excel]],Table8[#Data],2,FALSE) -> 8
B26: ID0187 | C26: 2012-05-26T00:50:41 | D26: 92000 | E26: 92000 | F26: CAD | G26: =tblSalaries[[#This Row],[clean Salary (in local currency)]]*VLOOKUP(tblSalaries[[#This Row],[Currency]],tblXrate[#Data],2,FALSE)/1000 -> 90.46926012 | H26: Consultant - Retail Mkts | I26: Consultant | J26: Canada | K26: =VLOOKUP(tblSalaries[[#This Row],[Where do you work]],tblCountries[[Actual]:[Mapping2]],3,FALSE) -> Canada | L26: All the 8 hours baby, all the 8! | M26: Missing | N26: =VLOOKUP(tblSalaries[[#This Row],[Years of Experience]],Table3[#Data],2,FALSE) -> Missing | O26: =VLOOKUP(tblSalaries[[#This Row],[How many hours of a day you work on Excel]],Table8[#Data],2,FALSE) -> 8
B27: ID0422 | C27: 2012-05-26T02:19:52 | D27: 90000 | E27: 90000 | F27: USD | G27: =tblSalaries[[#This Row],[clean Salary (in local currency)]]*VLOOKUP(tblSalaries[[#This Row],[Currency]],tblXrate[#Data],2,FALSE)/1000 -> 90 | H27: Financial Analyst | I27: Analyst | J27: USA | K27: =VLOOKUP(tblSalaries[[#This Row],[Where do you work]],tblCountries[[Actual]:[Mapping2]],3,FALSE) -> USA | L27: All the 8 hours baby, all the 8! | M27: Missing | N27: =VLOOKUP(tblSalaries[[#This Row],[Years of Experience]],Table3[#Data],2,FALSE) -> Missing | O27: =VLOOKUP(tblSalaries[[#This Row],[How many hours of a day you work on Excel]],Table8[#Data],2,FALSE) -> 8
B28: ID0426 | C28: 2012-05-26T02:24:24 | D28: 5900 | E28: 70800 | F28: EUR | G28: =tblSalaries[[#This Row],[clean Salary (in local currency)]]*VLOOKUP(tblSalaries[[#This Row],[Currency]],tblXrate[#Data],2,FALSE)/1000 -> 89.94428028 | H28: Excel trainer | I28: Analyst | J28: Finland | K28: =VLOOKUP(tblSalaries[[#This Row],[Where do you work]],tblCountries[[Actual]:[Mapping2]],3,FALSE) -> EU-16 | L28: All the 8 hours baby, all the 8! | M28: Missing | N28: =VLOOKUP(tblSalaries[[#This Row],[Years of Experience]],Table3[#Data],2,FALSE) -> Missing | O28: =VLOOKUP(tblSalaries[[#This Row],[How many hours of a day you work on Excel]],Table8[#Data],2,FALSE) -> 8
B29: ID0308 | C29: 2012-05-26T01:23:43 | D29: 85000 | E29: 85000 | F29: USD | G29: =tblSalaries[[#This Row],[clean Salary (in local currency)]]*VLOOKUP(tblSalaries[[#This Row],[Currency]],tblXrate[#Data],2,FALSE)/1000 -> 85 | H29: Plant Controller | I29: Controller | J29: USA | K29: =VLOOKUP(tblSalaries[[#This Row],[Where do you work]],tblCountries[[Actual]:[Mapping2]],3,FALSE) -> USA | L29: All the 8 hours baby, all the 8! | M29: Missing | N29: =VLOOKUP(tblSalaries[[#This Row],[Years of Experience]],Table3[#Data],2,FALSE) -> Missing | O29: =VLOOKUP(tblSalaries[[#This Row],[How many hours of a day you work on Excel]],Table8[#Data],2,FALSE) -> 8
B30: ID0498 | C30: 2012-05-26T03:50:24 | D30: 84000 | E30: 84000 | F30: USD | G30: =tblSalaries[[#This Row],[clean Salary (in local currency)]]*VLOOKUP(tblSalaries[[#This Row],[Currency]],tblXrate[#Data],2,FALSE)/1000 -> 84 | H30: Senior Analyst | I30: Analyst | J30: USA | K30: =VLOOKUP(tblSalaries[[#This Row],[Where do you work]],tblCountries[[Actual]:[Mapping2]],3,FALSE) -> USA | L30: All the 8 hours baby, all the 8! | M30: Missing | N30: =VLOOKUP(tblSalaries[[#This Row],[Years of Experience]],Table3[#Data],2,FALSE) -> Missing | O30: =VLOOKUP(tblSalaries[[#This Row],[How many hours of a day you work on Excel]],Table8[#Data],2,FALSE) -> 8
B31: ID0256 | C31: 2012-05-26T01:06:12 | D31: 4390 | E31: 52680 | F31: GBP | G31: =tblSalaries[[#This Row],[clean Salary (in local currency)]]*VLOOKUP(tblSalaries[[#This Row],[Currency]],tblXrate[#Data],2,FALSE)/1000 -> 83.03307137 | H31: Excel Consultant | I31: Consultant | J31: UK | K31: =VLOOKUP(tblSalaries[[#This Row],[Where do you work]],tblCountries[[Actual]:[Mapping2]],3,FALSE) -> UK | L31: All the 8 hours baby, all the 8! | M31: Missing | N31: =VLOOKUP(tblSalaries[[#This Row],[Years of Experience]],Table3[#Data],2,FALSE) -> Missing | O31: =VLOOKUP(tblSalaries[[#This Row],[How many hours of a day you work on Excel]],Table8[#Data],2,FALSE) -> 8
B32: ID0305 | C32: 2012-05-26T01:22:48 | D32: 65000 euro | E32: 65000 | F32: EUR | G32: =tblSalaries[[#This Row],[clean Salary (in local currency)]]*VLOOKUP(tblSalaries[[#This Row],[Currency]],tblXrate[#Data],2,FALSE)/1000 -> 82.57596353 | H32: controller | I32: Controller | J32: germany | K32: =VLOOKUP(tblSalaries[[#This Row],[Where do you work]],tblCountries[[Actual]:[Mapping2]],3,FALSE) -> EU-16 | L32: All the 8 hours baby, all the 8! | M32: Missing | N32: =VLOOKUP(tblSalaries[[#This Row],[Years of Experience]],Table3[#Data],2,FALSE) -> Missing | O32: =VLOOKUP(tblSalaries[[#This Row],[How many hours of a day you work on Excel]],Table8[#Data],2,FALSE) -> 8
B33: ID0551 | C33: 2012-05-26T05:44:42 | D33: 80,000 USD | E33: 80000 | F33: USD | G33: =tblSalaries[[#This Row],[clean Salary (in local currency)]]*VLOOKUP(tblSalaries[[#This Row],[Currency]],tblXrate[#Data],2,FALSE)/1000 -> 80 | H33: Cost Analyst | I33: Analyst | J33: USA | K33: =VLOOKUP(tblSalaries[[#This Row],[Where do you work]],tblCountries[[Actual]:[Mapping2]],3,FALSE) -> USA | L33: All the 8 hours baby, all the 8! | M33: Missing | N33: =VLOOKUP(tblSalaries[[#This Row],[Years of Experience]],Table3[#Data],2,FALSE) -> Missing | O33: =VLOOKUP(tblSalaries[[#This Row],[How many hours of a day you work on Excel]],Table8[#Data],2,FALSE) -> 8
B34: ID0504 | C34: 2012-05-26T04:03:33 | D34: 77000 | E34: 77000 | F34: USD | G34: =tblSalaries[[#This Row],[clean Salary (in local currency)]]*VLOOKUP(tblSalaries[[#This Row],[Currency]],tblXrate[#Data],2,FALSE)/1000 -> 77 | H34: Senior Financial Analyst | I34: Analyst | J34: USA | K34: =VLOOKUP(tblSalaries[[#This Row],[Where do you work]],tblCountries[[Actual]:[Mapping2]],3,FALSE) -> USA | L34: All the 8 hours baby, all the 8! | M34: Missing | N34: =VLOOKUP(tblSalaries[[#This Row],[Years of Experience]],Table3[#Data],2,FALSE) -> Missing | O34: =VLOOKUP(tblSalaries[[#This Row],[How many hours of a day you work on Excel]],Table8[#Data],2,FALSE) -> 8
B35: ID0269 | C35: 2012-05-26T01:09:01 | D35: 76000 | E35: 76000 | F35: USD | G35: =tblSalaries[[#This Row],[clean Salary (in local currency)]]*VLOOKUP(tblSalaries[[#This Row],[Currency]],tblXrate[#Data],2,FALSE)/1000 -> 76 | H35: Demand Planning Mgr | I35: Manager | J35: USA | K35: =VLOOKUP(tblSalaries[[#This Row],[Where do you work]],tblCountries[[Actual]:[Mapping2]],3,FALSE) -> USA | L35: All the 8 hours baby, all the 8! | M35: Missing | N35: =VLOOKUP(tblSalaries[[#This Row],[Years of Experience]],Table3[#Data],2,FALSE) -> Missing | O35: =VLOOKUP(tblSalaries[[#This Row],[How many hours of a day you work on Excel]],Table8[#Data],2,FALSE) -> 8
B36: ID0016 | C36: 2012-05-25T03:56:40 | D36: 75000 | E36: 75000 | F36: USD | G36: =tblSalaries[[#This Row],[clean Salary (in local currency)]]*VLOOKUP(tblSalaries[[#This Row],[Currency]],tblXrate[#Data],2,FALSE)/1000 -> 75 | H36: Sr Project Engineer | I36: Engineer | J36: USA | K36: =VLOOKUP(tblSalaries[[#This Row],[Where do you work]],tblCountries[[Actual]:[Mapping2]],3,FALSE) -> USA | L36: All the 8 hours baby, all the 8! | M36: Missing | N36: =VLOOKUP(tblSalaries[[#This Row],[Years of Experience]],Table3[#Data],2,FALSE) -> Missing | O36: =VLOOKUP(tblSalaries[[#This Row],[How many hours of a day you work on Excel]],Table8[#Data],2,FALSE) -> 8
B37: ID0072 | C37: 2012-05-25T22:52:28 | D37: 75000 | E37: 75000 | F37: USD | G37: =tblSalaries[[#This Row],[clean Salary (in local currency)]]*VLOOKUP(tblSalaries[[#This Row],[Currency]],tblXrate[#Data],2,FALSE)/1000 -> 75 | H37: Consumer Research Program Manager | I37: Manager | J37: USA | K37: =VLOOKUP(tblSalaries[[#This Row],[Where do you work]],tblCountries[[Actual]:[Mapping2]],3,FALSE) -> USA | L37: All the 8 hours baby, all the 8! | M37: Missing | N37: =VLOOKUP(tblSalaries[[#This Row],[Years of Experience]],Table3[#Data],2,FALSE) -> Missing | O37: =VLOOKUP(tblSalaries[[#This Row],[How many hours of a day you work on Excel]],Table8[#Data],2,FALSE) -> 8
B38: ID0177 | C38: 2012-05-26T00:49:21 | D38: 75000 | E38: 75000 | F38: USD | G38: =tblSalaries[[#This Row],[clean Salary (in local currency)]]*VLOOKUP(tblSalaries[[#This Row],[Currency]],tblXrate[#Data],2,FALSE)/1000 -> 75 | H38: Informatics specialist | I38: Specialist | J38: USA | K38: =VLOOKUP(tblSalaries[[#This Row],[Where do you work]],tblCountries[[Actual]:[Mapping2]],3,FALSE) -> USA | L38: All the 8 hours baby, all the 8! | M38: Missing | N38: =VLOOKUP(tblSalaries[[#This Row],[Years of Experience]],Table3[#Data],2,FALSE) -> Missing | O38: =VLOOKUP(tblSalaries[[#This Row],[How many hours of a day you work on Excel]],Table8[#Data],2,FALSE) -> 8
B39: ID0360 | C39: 2012-05-26T01:44:59 | D39: 75000 | E39: 75000 | F39: USD | G39: =tblSalaries[[#This Row],[clean Salary (in local currency)]]*VLOOKUP(tblSalaries[[#This Row],[Currency]],tblXrate[#Data],2,FALSE)/1000 -> 75 | H39: Sr. Financial Analyst | I39: Analyst | J39: USA | K39: =VLOOKUP(tblSalaries[[#This Row],[Where do you work]],tblCountries[[Actual]:[Mapping2]],3,FALSE) -> USA | L39: All the 8 hours baby, all the 8! | M39: Missing | N39: =VLOOKUP(tblSalaries[[#This Row],[Years of Experience]],Table3[#Data],2,FALSE) -> Missing | O39: =VLOOKUP(tblSalaries[[#This Row],[How many hours of a day you work on Excel]],Table8[#Data],2,FALSE) -> 8
B40: ID0441 | C40: 2012-05-26T02:40:39 | D40: INR 40L | E40: 4000000 | F40: INR | G40: =tblSalaries[[#This Row],[clean Salary (in local currency)]]*VLOOKUP(tblSalaries[[#This Row],[Currency]],tblXrate[#Data],2,FALSE)/1000 -> 71.23166675 | H40: Sr Mgr Finance | I40: Accountant | J40: India | K40: =VLOOKUP(tblSalaries[[#This Row],[Where do you work]],tblCountries[[Actual]:[Mapping2]],3,FALSE) -> India | L40: All the 8 hours baby, all the 8! | M40: Missing | N40: =VLOOKUP(tblSalaries[[#This Row],[Years of Experience]],Table3[#Data],2,FALSE) -> Missing | O40: =VLOOKUP(tblSalaries[[#This Row],[How many hours of a day you work on Excel]],Table8[#Data],2,FALSE) -> 8
B41: ID0122 | C41: 2012-05-26T00:41:43 | D41: 70000 | E41: 70000 | F41: USD | G41: =tblSalaries[[#This Row],[clean Salary (in local currency)]]*VLOOKUP(tblSalaries[[#This Row],[Currency]],tblXrate[#Data],2,FALSE)/1000 -> 70 | H41: Sr. Acct | I41: Accountant | J41: USA | K41: =VLOOKUP(tblSalaries[[#This Row],[Where do you work]],tblCountries[[Actual]:[Mapping2]],3,FALSE) -> USA | L41: All the 8 hours baby, all the 8! | M41: Missing | N41: =VLOOKUP(tblSalaries[[#This Row],[Years of Experience]],Table3[#Data],2,FALSE) -> Missing | O41: =VLOOKUP(tblSalaries[[#This Row],[How many hours of a day you work on Excel]],Table8[#Data],2,FALSE) -> 8
B42: ID0283 | C42: 2012-05-26T01:15:05 | D42: 70000 | E42: 70000 | F42: USD | G42: =tblSalaries[[#This Row],[clean Salary (in local currency)]]*VLOOKUP(tblSalaries[[#This Row],[Currency]],tblXrate[#Data],2,FALSE)/1000 -> 70 | H42: Engineering Tech Sr. | I42: Engineer | J42: USA | K42: =VLOOKUP(tblSalaries[[#This Row],[Where do you work]],tblCountries[[Actual]:[Mapping2]],3,FALSE) -> USA | L42: All the 8 hours baby, all the 8! | M42: Missing | N42: =VLOOKUP(tblSalaries[[#This Row],[Years of Experience]],Table3[#Data],2,FALSE) -> Missing | O42: =VLOOKUP(tblSalaries[[#This Row],[How many hours of a day you work on Excel]],Table8[#Data],2,FALSE) -> 8
B43: ID0520 | C43: 2012-05-26T04:34:41 | D43: 70000 | E43: 70000 | F43: USD | G43: =tblSalaries[[#This Row],[clean Salary (in local currency)]]*VLOOKUP(tblSalaries[[#This Row],[Currency]],tblXrate[#Data],2,FALSE)/1000 -> 70 | H43: Metrics Analyst | I43: Analyst | J43: USA | K43: =VLOOKUP(tblSalaries[[#This Row],[Where do you work]],tblCountries[[Actual]:[Mapping2]],3,FALSE) -> USA | L43: All the 8 hours baby, all the 8! | M43: Missing | N43: =VLOOKUP(tblSalaries[[#This Row],[Years of Experience]],Table3[#Data],2,FALSE) -> Missing | O43: =VLOOKUP(tblSalaries[[#This Row],[How many hours of a day you work on Excel]],Table8[#Data],2,FALSE) -> 8
B44: ID0061 | C44: 2012-05-25T07:11:09 | D44: 68000 | E44: 68000 | F44: USD | G44: =tblSalaries[[#This Row],[clean Salary (in local currency)]]*VLOOKUP(tblSalaries[[#This Row],[Currency]],tblXrate[#Data],2,FALSE)/1000 -> 68 | H44: Engineering Data Analyst | I44: Analyst | J44: USA | K44: =VLOOKUP(tblSalaries[[#This Row],[Where do you work]],tblCountries[[Actual]:[Mapping2]],3,FALSE) -> USA | L44: All the 8 hours baby, all the 8! | M44: Missing | N44: =VLOOKUP(tblSalaries[[#This Row],[Years of Experience]],Table3[#Data],2,FALSE) -> Missing | O44: =VLOOKUP(tblSalaries[[#This Row],[How many hours of a day you work on Excel]],Table8[#Data],2,FALSE) -> 8
B45: ID0289 | C45: 2012-05-26T01:17:56 | D45: 68000 | E45: 68000 | F45: USD | G45: =tblSalaries[[#This Row],[clean Salary (in local currency)]]*VLOOKUP(tblSalaries[[#This Row],[Currency]],tblXrate[#Data],2,FALSE)/1000 -> 68 | H45: management accountant | I45: Manager | J45: USA | K45: =VLOOKUP(tblSalaries[[#This Row],[Where do you work]],tblCountries[[Actual]:[Mapping2]],3,FALSE) -> USA | L45: All the 8 hours baby, all the 8! | M45: Missing | N45: =VLOOKUP(tblSalaries[[#This Row],[Years of Experience]],Table3[#Data],2,FALSE) -> Missing | O45: =VLOOKUP(tblSalaries[[#This Row],[How many hours of a day you work on Excel]],Table8[#Data],2,FALSE) -> 8
B46: ID0157 | C46: 2012-05-26T00:45:46 | D46: 66500 | E46: 66500 | F46: USD | G46: =tblSalaries[[#This Row],[clean Salary (in local currency)]]*VLOOKUP(tblSalaries[[#This Row],[Currency]],tblXrate[#Data],2,FALSE)/1000 -> 66.5 | H46: Sr Business Analyst | I46: Analyst | J46: USA | K46: =VLOOKUP(tblSalaries[[#This Row],[Where do you work]],tblCountries[[Actual]:[Mapping2]],3,FALSE) -> USA | L46: All the 8 hours baby, all the 8! | M46: Missing | N46: =VLOOKUP(tblSalaries[[#This Row],[Years of Experience]],Table3[#Data],2,FALSE) -> Missing | O46: =VLOOKUP(tblSalaries[[#This Row],[How many hours of a day you work on Excel]],Table8[#Data],2,FALSE) -> 8
B47: ID0128 | C47: 2012-05-26T00:42:11 | D47: 65000 | E47: 65000 | F47: USD | G47: =tblSalaries[[#This Row],[clean Salary (in local currency)]]*VLOOKUP(tblSalaries[[#This Row],[Currency]],tblXrate[#Data],2,FALSE)/1000 -> 65 | H47: sr accountant | I47: Accountant | J47: USA | K47: =VLOOKUP(tblSalaries[[#This Row],[Where do you work]],tblCountries[[Actual]:[Mapping2]],3,FALSE) -> USA | L47: All the 8 hours baby, all the 8! | M47: Missing | N47: =VLOOKUP(tblSalaries[[#This Row],[Years of Experience]],Table3[#Data],2,FALSE) -> Missing | O47: =VLOOKUP(tblSalaries[[#This Row],[How many hours of a day you work on Excel]],Table8[#Data],2,FALSE) -> 8
B48: ID0153 | C48: 2012-05-26T00:45:00 | D48: 65000 | E48: 65000 | F48: USD | G48: =tblSalaries[[#This Row],[clean Salary (in local currency)]]*VLOOKUP(tblSalaries[[#This Row],[Currency]],tblXrate[#Data],2,FALSE)/1000 -> 65 | H48: Sr Accountant | I48: Accountant | J48: USA | K48: =VLOOKUP(tblSalaries[[#This Row],[Where do you work]],tblCountries[[Actual]:[Mapping2]],3,FALSE) -> USA | L48: All the 8 hours baby, all the 8! | M48: Missing | N48: =VLOOKUP(tblSalaries[[#This Row],[Years of Experience]],Table3[#Data],2,FALSE) -> Missing | O48: =VLOOKUP(tblSalaries[[#This Row],[How many hours of a day you work on Excel]],Table8[#Data],2,FALSE) -> 8
B49: ID0327 | C49: 2012-05-26T01:30:39 | D49: 65000 | E49: 65000 | F49: USD | G49: =tblSalaries[[#This Row],[clean Salary (in local currency)]]*VLOOKUP(tblSalaries[[#This Row],[Currency]],tblXrate[#Data],2,FALSE)/1000 -> 65 | H49: business analyst | I49: Analyst | J49: USA | K49: =VLOOKUP(tblSalaries[[#This Row],[Where do you work]],tblCountries[[Actual]:[Mapping2]],3,FALSE) -> USA | L49: All the 8 hours baby, all the 8! | M49: Missing | N49: =VLOOKUP(tblSalaries[[#This Row],[Years of Experience]],Table3[#Data],2,FALSE) -> Missing | O49: =VLOOKUP(tblSalaries[[#This Row],[How many hours of a day you work on Excel]],Table8[#Data],2,FALSE) -> 8
B50: ID0512 | C50: 2012-05-26T04:18:15 | D50: 65000 | E50: 65000 | F50: USD | G50: =tblSalaries[[#This Row],[clean Salary (in local currency)]]*VLOOKUP(tblSalaries[[#This Row],[Currency]],tblXrate[#Data],2,FALSE)/1000 -> 65 | H50: Retail Store Manager | I50: Manager | J50: USA | K50: =VLOOKUP(tblSalaries[[#This Row],[Where do you work]],tblCountries[[Actual]:[Mapping2]],3,FALSE) -> USA | L50: All the 8 hours baby, all the 8! | M50: Missing | N50: =VLOOKUP(tblSalaries[[#This Row],[Years of Experience]],Table3[#Data],2,FALSE) -> Missing | O50: =VLOOKUP(tblSalaries[[#This Row],[How many hours of a day you work on Excel]],Table8[#Data],2,FALSE) -> 8
B51: ID0343 | C51: 2012-05-26T01:38:06 | D51: 63000 USD | E51: 63000 | F51: USD | G51: =tblSalaries[[#This Row],[clean Salary (in local currency)]]*VLOOKUP(tblSalaries[[#This Row],[Currency]],tblXrate[#Data],2,FALSE)/1000 -> 63 | H51: Sales Analyst | I51: Analyst | J51: USA | K51: =VLOOKUP(tblSalaries[[#This Row],[Where do you work]],tblCountries[[Actual]:[Mapping2]],3,FALSE) -> USA | L51: All the 8 hours baby, all the 8! | M51: Missing | N51: =VLOOKUP(tblSalaries[[#This Row],[Years of Experience]],Table3[#Data],2,FALSE) -> Missing | O51: =VLOOKUP(tblSalaries[[#This Row],[How many hours of a day you work on Excel]],Table8[#Data],2,FALSE) -> 8
B52: ID0528 | C52: 2012-05-26T04:50:21 | D52: EUR 49248 | E52: 49248 | F52: EUR | G52: =tblSalaries[[#This Row],[clean Salary (in local currency)]]*VLOOKUP(tblSalaries[[#This Row],[Currency]],tblXrate[#Data],2,FALSE)/1000 -> 62.56463157 | H52: Financial Advisor | I52: Accountant | J52: Netherlands | K52: =VLOOKUP(tblSalaries[[#This Row],[Where do you work]],tblCountries[[Actual]:[Mapping2]],3,FALSE) -> EU-16 | L52: All the 8 hours baby, all the 8! | M52: Missing | N52: =VLOOKUP(tblSalaries[[#This Row],[Years of Experience]],Table3[#Data],2,FALSE) -> Missing | O52: =VLOOKUP(tblSalaries[[#This Row],[How many hours of a day you work on Excel]],Table8[#Data],2,FALSE) -> 8
B53: ID0361 | C53: 2012-05-26T01:45:50 | D53: 62500.00 USD | E53: 62500 | F53: USD | G53: =tblSalaries[[#This Row],[clean Salary (in local currency)]]*VLOOKUP(tblSalaries[[#This Row],[Currency]],tblXrate[#Data],2,FALSE)/1000 -> 62.5 | H53: Director of Payroll | I53: CXO or Top Mgmt. | J53: USA | K53: =VLOOKUP(tblSalaries[[#This Row],[Where do you work]],tblCountries[[Actual]:[Mapping2]],3,FALSE) -> USA | L53: All the 8 hours baby, all the 8! | M53: Missing | N53: =VLOOKUP(tblSalaries[[#This Row],[Years of Experience]],Table3[#Data],2,FALSE) -> Missing | O53: =VLOOKUP(tblSalaries[[#This Row],[How many hours of a day you work on Excel]],Table8[#Data],2,FALSE) -> 8
B54: ID0264 | C54: 2012-05-26T01:08:19 | D54: 62400 | E54: 62400 | F54: USD | G54: =tblSalaries[[#This Row],[clean Salary (in local currency)]]*VLOOKUP(tblSalaries[[#This Row],[Currency]],tblXrate[#Data],2,FALSE)/1000 -> 62.4 | H54: financial accountant | I54: Accountant | J54: USA | K54: =VLOOKUP(tblSalaries[[#This Row],[Where do you work]],tblCountries[[Actual]:[Mapping2]],3,FALSE) -> USA | L54: All the 8 hours baby, all the 8! | M54: Missing | N54: =VLOOKUP(tblSalaries[[#This Row],[Years of Experience]],Table3[#Data],2,FALSE) -> Missing | O54: =VLOOKUP(tblSalaries[[#This Row],[How many hours of a day you work on Excel]],Table8[#Data],2,FALSE) -> 8
B55: ID0063 | C55: 2012-05-25T07:15:12 | D55: 61000 | E55: 61000 | F55: USD | G55: =tblSalaries[[#This Row],[clean Salary (in local currency)]]*VLOOKUP(tblSalaries[[#This Row],[Currency]],tblXrate[#Data],2,FALSE)/1000 -> 61 | H55: Coordinator Of Costa and Buget | I55: Manager | J55: Brasil | K55: =VLOOKUP(tblSalaries[[#This Row],[Where do you work]],tblCountries[[Actual]:[Mapping2]],3,FALSE) -> Sou&Cen America | L55: All the 8 hours baby, all the 8! | M55: Missing | N55: =VLOOKUP(tblSalaries[[#This Row],[Years of Experience]],Table3[#Data],2,FALSE) -> Missing | O55: =VLOOKUP(tblSalaries[[#This Row],[How many hours of a day you work on Excel]],Table8[#Data],2,FALSE) -> 8
B56: ID0026 | C56: 2012-05-25T04:45:01 | D56: 60000 | E56: 60000 | F56: USD | G56: =tblSalaries[[#This Row],[clean Salary (in local currency)]]*VLOOKUP(tblSalaries[[#This Row],[Currency]],tblXrate[#Data],2,FALSE)/1000 -> 60 | H56: Analyst II | I56: Analyst | J56: USA | K56: =VLOOKUP(tblSalaries[[#This Row],[Where do you work]],tblCountries[[Actual]:[Mapping2]],3,FALSE) -> USA | L56: All the 8 hours baby, all the 8! | M56: Missing | N56: =VLOOKUP(tblSalaries[[#This Row],[Years of Experience]],Table3[#Data],2,FALSE) -> Missing | O56: =VLOOKUP(tblSalaries[[#This Row],[How many hours of a day you work on Excel]],Table8[#Data],2,FALSE) -> 8
B57: ID0298 | C57: 2012-05-26T01:20:01 | D57: 60000 | E57: 60000 | F57: USD | G57: =tblSalaries[[#This Row],[clean Salary (in local currency)]]*VLOOKUP(tblSalaries[[#This Row],[Currency]],tblXrate[#Data],2,FALSE)/1000 -> 60 | H57: IS Manager | I57: Manager | J57: USA | K57: =VLOOKUP(tblSalaries[[#This Row],[Where do you work]],tblCountries[[Actual]:[Mapping2]],3,FALSE) -> USA | L57: All the 8 hours baby, all the 8! | M57: Missing | N57: =VLOOKUP(tblSalaries[[#This Row],[Years of Experience]],Table3[#Data],2,FALSE) -> Missing | O57: =VLOOKUP(tblSalaries[[#This Row],[How many hours of a day you work on Excel]],Table8[#Data],2,FALSE) -> 8
B58: ID0456 | C58: 2012-05-26T03:01:42 | D58: 60000 | E58: 60000 | F58: USD | G58: =tblSalaries[[#This Row],[clean Salary (in local currency)]]*VLOOKUP(tblSalaries[[#This Row],[Currency]],tblXrate[#Data],2,FALSE)/1000 -> 60 | H58: Finalcial Reporting Analyst | I58: Analyst | J58: USA | K58: =VLOOKUP(tblSalaries[[#This Row],[Where do you work]],tblCountries[[Actual]:[Mapping2]],3,FALSE) -> USA | L58: All the 8 hours baby, all the 8! | M58: Missing | N58: =VLOOKUP(tblSalaries[[#This Row],[Years of Experience]],Table3[#Data],2,FALSE) -> Missing | O58: =VLOOKUP(tblSalaries[[#This Row],[How many hours of a day you work on Excel]],Table8[#Data],2,FALSE) -> 8
B59: ID0465 | C59: 2012-05-26T03:09:43 | D59: 60000 | E59: 60000 | F59: USD | G59: =tblSalaries[[#This Row],[clean Salary (in local currency)]]*VLOOKUP(tblSalaries[[#This Row],[Currency]],tblXrate[#Data],2,FALSE)/1000 -> 60 | H59: Business intelligence manager | I59: Manager | J59: USA | K59: =VLOOKUP(tblSalaries[[#This Row],[Where do you work]],tblCountries[[Actual]:[Mapping2]],3,FALSE) -> USA | L59: All the 8 hours baby, all the 8! | M59: Missing | N59: =VLOOKUP(tblSalaries[[#This Row],[Years of Experience]],Table3[#Data],2,FALSE) -> Missing | O59: =VLOOKUP(tblSalaries[[#This Row],[How many hours of a day you work on Excel]],Table8[#Data],2,FALSE) -> 8
B60: ID0315 | C60: 2012-05-26T01:26:26 | D60: 60000 | E60: 60000 | F60: CAD | G60: =tblSalaries[[#This Row],[clean Salary (in local currency)]]*VLOOKUP(tblSalaries[[#This Row],[Currency]],tblXrate[#Data],2,FALSE)/1000 -> 59.00169138 | H60: Sr. Business Analyst | I60: Analyst | J60: Canada | K60: =VLOOKUP(tblSalaries[[#This Row],[Where do you work]],tblCountries[[Actual]:[Mapping2]],3,FALSE) -> Canada | L60: All the 8 hours baby, all the 8! | M60: Missing | N60: =VLOOKUP(tblSalaries[[#This Row],[Years of Experience]],Table3[#Data],2,FALSE) -> Missing | O60: =VLOOKUP(tblSalaries[[#This Row],[How many hours of a day you work on Excel]],Table8[#Data],2,FALSE) -> 8
B61: ID0075 | C61: 2012-05-25T23:03:00 | D61: 59450 | E61: 59450 | F61: CAD | G61: =tblSalaries[[#This Row],[clean Salary (in local currency)]]*VLOOKUP(tblSalaries[[#This Row],[Currency]],tblXrate[#Data],2,FALSE)/1000 -> 58.46084254 | H61: Process Improvement Specialist | I61: Specialist | J61: Canada | K61: =VLOOKUP(tblSalaries[[#This Row],[Where do you work]],tblCountries[[Actual]:[Mapping2]],3,FALSE) -> Canada | L61: All the 8 hours baby, all the 8! | M61: Missing | N61: =VLOOKUP(tblSalaries[[#This Row],[Years of Experience]],Table3[#Data],2,FALSE) -> Missing | O61: =VLOOKUP(tblSalaries[[#This Row],[How many hours of a day you work on Excel]],Table8[#Data],2,FALSE) -> 8
B62: ID0003 | C62: 2012-05-25T03:16:26 | D62: 58000 | E62: 58000 | F62: USD | G62: =tblSalaries[[#This Row],[clean Salary (in local currency)]]*VLOOKUP(tblSalaries[[#This Row],[Currency]],tblXrate[#Data],2,FALSE)/1000 -> 58 | H62: Financial Analyst | I62: Analyst | J62: USA | K62: =VLOOKUP(tblSalaries[[#This Row],[Where do you work]],tblCountries[[Actual]:[Mapping2]],3,FALSE) -> USA | L62: All the 8 hours baby, all the 8! | M62: Missing | N62: =VLOOKUP(tblSalaries[[#This Row],[Years of Experience]],Table3[#Data],2,FALSE) -> Missing | O62: =VLOOKUP(tblSalaries[[#This Row],[How many hours of a day you work on Excel]],Table8[#Data],2,FALSE) -> 8
B63: ID0417 | C63: 2012-05-26T02:17:18 | D63: 56000 | E63: 56000 | F63: USD | G63: =tblSalaries[[#This Row],[clean Salary (in local currency)]]*VLOOKUP(tblSalaries[[#This Row],[Currency]],tblXrate[#Data],2,FALSE)/1000 -> 56 | H63: financial management consultant | I63: Manager | J63: USA | K63: =VLOOKUP(tblSalaries[[#This Row],[Where do you work]],tblCountries[[Actual]:[Mapping2]],3,FALSE) -> USA | L63: All the 8 hours baby, all the 8! | M63: Missing | N63: =VLOOKUP(tblSalaries[[#This Row],[Years of Experience]],Table3[#Data],2,FALSE) -> Missing | O63: =VLOOKUP(tblSalaries[[#This Row],[How many hours of a day you work on Excel]],Table8[#Data],2,FALSE) -> 8
B64: ID0033 | C64: 2012-05-25T04:58:45 | D64: Â£35000 | E64: 35000 | F64: GBP | G64: =tblSalaries[[#This Row],[clean Salary (in local currency)]]*VLOOKUP(tblSalaries[[#This Row],[Currency]],tblXrate[#Data],2,FALSE)/1000 -> 55.16623952 | H64: Management Information Analyst | I64: Analyst | J64: UK | K64: =VLOOKUP(tblSalaries[[#This Row],[Where do you work]],tblCountries[[Actual]:[Mapping2]],3,FALSE) -> UK | L64: All the 8 hours baby, all the 8! | M64: Missing | N64: =VLOOKUP(tblSalaries[[#This Row],[Years of Experience]],Table3[#Data],2,FALSE) -> Missing | O64: =VLOOKUP(tblSalaries[[#This Row],[How many hours of a day you work on Excel]],Table8[#Data],2,FALSE) -> 8
B65: ID0062 | C65: 2012-05-25T07:13:31 | D65: 56000 | E65: 56000 | F65: CAD | G65: =tblSalaries[[#This Row],[clean Salary (in local currency)]]*VLOOKUP(tblSalaries[[#This Row],[Currency]],tblXrate[#Data],2,FALSE)/1000 -> 55.06824529 | H65: Sales Analyst | I65: Analyst | J65: CANADA | K65: =VLOOKUP(tblSalaries[[#This Row],[Where do you work]],tblCountries[[Actual]:[Mapping2]],3,FALSE) -> Canada | L65: All the 8 hours baby, all the 8! | M65: Missing | N65: =VLOOKUP(tblSalaries[[#This Row],[Years of Experience]],Table3[#Data],2,FALSE) -> Missing | O65: =VLOOKUP(tblSalaries[[#This Row],[How many hours of a day you work on Excel]],Table8[#Data],2,FALSE) -> 8
B66: ID0274 | C66: 2012-05-26T01:10:24 | D66: 55000 | E66: 55000 | F66: USD | G66: =tblSalaries[[#This Row],[clean Salary (in local currency)]]*VLOOKUP(tblSalaries[[#This Row],[Currency]],tblXrate[#Data],2,FALSE)/1000 -> 55 | H66: data analyst | I66: Analyst | J66: USA | K66: =VLOOKUP(tblSalaries[[#This Row],[Where do you work]],tblCountries[[Actual]:[Mapping2]],3,FALSE) -> USA | L66: All the 8 hours baby, all the 8! | M66: Missing | N66: =VLOOKUP(tblSalaries[[#This Row],[Years of Experience]],Table3[#Data],2,FALSE) -> Missing | O66: =VLOOKUP(tblSalaries[[#This Row],[How many hours of a day you work on Excel]],Table8[#Data],2,FALSE) -> 8
B67: ID0005 | C67: 2012-05-25T03:27:04 | D67: 54000 | E67: 54000 | F67: USD | G67: =tblSalaries[[#This Row],[clean Salary (in local currency)]]*VLOOKUP(tblSalaries[[#This Row],[Currency]],tblXrate[#Data],2,FALSE)/1000 -> 54 | H67: Quality Engineer | I67: Engineer | J67: USA | K67: =VLOOKUP(tblSalaries[[#This Row],[Where do you work]],tblCountries[[Actual]:[Mapping2]],3,FALSE) -> USA | L67: All the 8 hours baby, all the 8! | M67: Missing | N67: =VLOOKUP(tblSalaries[[#This Row],[Years of Experience]],Table3[#Data],2,FALSE) -> Missing | O67: =VLOOKUP(tblSalaries[[#This Row],[How many hours of a day you work on Excel]],Table8[#Data],2,FALSE) -> 8
B68: ID0266 | C68: 2012-05-26T01:08:35 | D68: 54000 | E68: 54000 | F68: USD | G68: =tblSalaries[[#This Row],[clean Salary (in local currency)]]*VLOOKUP(tblSalaries[[#This Row],[Currency]],tblXrate[#Data],2,FALSE)/1000 -> 54 | H68: Anaylst | I68: Manager | J68: USA | K68: =VLOOKUP(tblSalaries[[#This Row],[Where do you work]],tblCountries[[Actual]:[Mapping2]],3,FALSE) -> USA | L68: All the 8 hours baby, all the 8! | M68: Missing | N68: =VLOOKUP(tblSalaries[[#This Row],[Years of Experience]],Table3[#Data],2,FALSE) -> Missing | O68: =VLOOKUP(tblSalaries[[#This Row],[How many hours of a day you work on Excel]],Table8[#Data],2,FALSE) -> 8
B69: ID0415 | C69: 2012-05-26T02:15:19 | D69: 51613 | E69: 51613 | F69: USD | G69: =tblSalaries[[#This Row],[clean Salary (in local currency)]]*VLOOKUP(tblSalaries[[#This Row],[Currency]],tblXrate[#Data],2,FALSE)/1000 -> 51.613 | H69: Air Planning Analyst | I69: Analyst | J69: USA | K69: =VLOOKUP(tblSalaries[[#This Row],[Where do you work]],tblCountries[[Actual]:[Mapping2]],3,FALSE) -> USA | L69: All the 8 hours baby, all the 8! | M69: Missing | N69: =VLOOKUP(tblSalaries[[#This Row],[Years of Experience]],Table3[#Data],2,FALSE) -> Missing | O69: =VLOOKUP(tblSalaries[[#This Row],[How many hours of a day you work on Excel]],Table8[#Data],2,FALSE) -> 8
B70: ID0069 | C70: 2012-05-25T07:38:22 | D70: 50000 | E70: 50000 | F70: USD | G70: =tblSalaries[[#This Row],[clean Salary (in local currency)]]*VLOOKUP(tblSalaries[[#This Row],[Currency]],tblXrate[#Data],2,FALSE)/1000 -> 50 | H70: Financial Analyst II | I70: Analyst | J70: USA | K70: =VLOOKUP(tblSalaries[[#This Row],[Where do you work]],tblCountries[[Actual]:[Mapping2]],3,FALSE) -> USA | L70: All the 8 hours baby, all the 8! | M70: Missing | N70: =VLOOKUP(tblSalaries[[#This Row],[Years of Experience]],Table3[#Data],2,FALSE) -> Missing | O70: =VLOOKUP(tblSalaries[[#This Row],[How many hours of a day you work on Excel]],Table8[#Data],2,FALSE) -> 8
B71: ID0150 | C71: 2012-05-26T00:44:23 | D71: 50000 | E71: 50000 | F71: USD | G71: =tblSalaries[[#This Row],[clean Salary (in local currency)]]*VLOOKUP(tblSalaries[[#This Row],[Currency]],tblXrate[#Data],2,FALSE)/1000 -> 50 | H71: Business Operations Reporting Analyst | I71: Analyst | J71: Mexico | K71: =VLOOKUP(tblSalaries[[#This Row],[Where do you work]],tblCountries[[Actual]:[Mapping2]],3,FALSE) -> Sou&Cen America | L71: All the 8 hours baby, all the 8! | M71: Missing | N71: =VLOOKUP(tblSalaries[[#This Row],[Years of Experience]],Table3[#Data],2,FALSE) -> Missing | O71: =VLOOKUP(tblSalaries[[#This Row],[How many hours of a day you work on Excel]],Table8[#Data],2,FALSE) -> 8
B72: ID0242 | C72: 2012-05-26T01:02:47 | D72: 50000 | E72: 50000 | F72: USD | G72: =tblSalaries[[#This Row],[clean Salary (in local currency)]]*VLOOKUP(tblSalaries[[#This Row],[Currency]],tblXrate[#Data],2,FALSE)/1000 -> 50 | H72: data analyst | I72: Analyst | J72: USA | K72: =VLOOKUP(tblSalaries[[#This Row],[Where do you work]],tblCountries[[Actual]:[Mapping2]],3,FALSE) -> USA | L72: All the 8 hours baby, all the 8! | M72: Missing | N72: =VLOOKUP(tblSalaries[[#This Row],[Years of Experience]],Table3[#Data],2,FALSE) -> Missing | O72: =VLOOKUP(tblSalaries[[#This Row],[How many hours of a day you work on Excel]],Table8[#Data],2,FALSE) -> 8
B73: ID0295 | C73: 2012-05-26T01:19:09 | D73: 50000 | E73: 50000 | F73: USD | G73: =tblSalaries[[#This Row],[clean Salary (in local currency)]]*VLOOKUP(tblSalaries[[#This Row],[Currency]],tblXrate[#Data],2,FALSE)/1000 -> 50 | H73: Mathematical Data Analyist | I73: Analyst | J73: USA | K73: =VLOOKUP(tblSalaries[[#This Row],[Where do you work]],tblCountries[[Actual]:[Mapping2]],3,FALSE) -> USA | L73: All the 8 hours baby, all the 8! | M73: Missing | N73: =VLOOKUP(tblSalaries[[#This Row],[Years of Experience]],Table3[#Data],2,FALSE) -> Missing | O73: =VLOOKUP(tblSalaries[[#This Row],[How many hours of a day you work on Excel]],Table8[#Data],2,FALSE) -> 8
B74: ID0334 | C74: 2012-05-26T01:32:26 | D74: 50000 | E74: 50000 | F74: USD | G74: =tblSalaries[[#This Row],[clean Salary (in local currency)]]*VLOOKUP(tblSalaries[[#This Row],[Currency]],tblXrate[#Data],2,FALSE)/1000 -> 50 | H74: Supply Chain Analyst | I74: Analyst | J74: USA | K74: =VLOOKUP(tblSalaries[[#This Row],[Where do you work]],tblCountries[[Actual]:[Mapping2]],3,FALSE) -> USA | L74: All the 8 hours baby, all the 8! | M74: Missing | N74: =VLOOKUP(tblSalaries[[#This Row],[Years of Experience]],Table3[#Data],2,FALSE) -> Missing | O74: =VLOOKUP(tblSalaries[[#This Row],[How many hours of a day you work on Excel]],Table8[#Data],2,FALSE) -> 8
B75: ID0014 | C75: 2012-05-25T03:50:58 | D75: 49000 | E75: 49000 | F75: USD | G75: =tblSalaries[[#This Row],[clean Salary (in local currency)]]*VLOOKUP(tblSalaries[[#This Row],[Currency]],tblXrate[#Data],2,FALSE)/1000 -> 49 | H75: business analyst | I75: Analyst | J75: USA | K75: =VLOOKUP(tblSalaries[[#This Row],[Where do you work]],tblCountries[[Actual]:[Mapping2]],3,FALSE) -> USA | L75: All the 8 hours baby, all the 8! | M75: Missing | N75: =VLOOKUP(tblSalaries[[#This Row],[Years of Experience]],Table3[#Data],2,FALSE) -> Missing | O75: =VLOOKUP(tblSalaries[[#This Row],[How many hours of a day you work on Excel]],Table8[#Data],2,FALSE) -> 8
B76: ID0369 | C76: 2012-05-26T01:50:28 | D76: 47500 | E76: 47500 | F76: USD | G76: =tblSalaries[[#This Row],[clean Salary (in local currency)]]*VLOOKUP(tblSalaries[[#This Row],[Currency]],tblXrate[#Data],2,FALSE)/1000 -> 47.5 | H76: Supervisor, Contracts, Rebates, Chargebacks and Returns | I76: Manager | J76: USA | K76: =VLOOKUP(tblSalaries[[#This Row],[Where do you work]],tblCountries[[Actual]:[Mapping2]],3,FALSE) -> USA | L76: All the 8 hours baby, all the 8! | M76: Missing | N76: =VLOOKUP(tblSalaries[[#This Row],[Years of Experience]],Table3[#Data],2,FALSE) -> Missing | O76: =VLOOKUP(tblSalaries[[#This Row],[How many hours of a day you work on Excel]],Table8[#Data],2,FALSE) -> 8
B77: ID0281 | C77: 2012-05-26T01:14:27 | D77: 46000 | E77: 46000 | F77: USD | G77: =tblSalaries[[#This Row],[clean Salary (in local currency)]]*VLOOKUP(tblSalaries[[#This Row],[Currency]],tblXrate[#Data],2,FALSE)/1000 -> 46 | H77: University Relations Intern | I77: Analyst | J77: USA | K77: =VLOOKUP(tblSalaries[[#This Row],[Where do you work]],tblCountries[[Actual]:[Mapping2]],3,FALSE) -> USA | L77: All the 8 hours baby, all the 8! | M77: Missing | N77: =VLOOKUP(tblSalaries[[#This Row],[Years of Experience]],Table3[#Data],2,FALSE) -> Missing | O77: =VLOOKUP(tblSalaries[[#This Row],[How many hours of a day you work on Excel]],Table8[#Data],2,FALSE) -> 8
B78: ID0395 | C78: 2012-05-26T02:03:35 | D78: 45880 | E78: 45880 | F78: USD | G78: =tblSalaries[[#This Row],[clean Salary (in local currency)]]*VLOOKUP(tblSalaries[[#This Row],[Currency]],tblXrate[#Data],2,FALSE)/1000 -> 45.88 | H78: Campus Budget Officer | I78: Manager | J78: USA | K78: =VLOOKUP(tblSalaries[[#This Row],[Where do you work]],tblCountries[[Actual]:[Mapping2]],3,FALSE) -> USA | L78: All the 8 hours baby, all the 8! | M78: Missing | N78: =VLOOKUP(tblSalaries[[#This Row],[Years of Experience]],Table3[#Data],2,FALSE) -> Missing | O78: =VLOOKUP(tblSalaries[[#This Row],[How many hours of a day you work on Excel]],Table8[#Data],2,FALSE) -> 8
B79: ID0489 | C79: 2012-05-26T03:32:53 | D79: 46000 | E79: 46000 | F79: CAD | G79: =tblSalaries[[#This Row],[clean Salary (in local currency)]]*VLOOKUP(tblSalaries[[#This Row],[Currency]],tblXrate[#Data],2,FALSE)/1000 -> 45.23463006 | H79: Sr. Marketing Solutions Analyst | I79: Analyst | J79: Canada | K79: =VLOOKUP(tblSalaries[[#This Row],[Where do you work]],tblCountries[[Actual]:[Mapping2]],3,FALSE) -> Canada | L79: All the 8 hours baby, all the 8! | M79: Missing | N79: =VLOOKUP(tblSalaries[[#This Row],[Years of Experience]],Table3[#Data],2,FALSE) -> Missing | O79: =VLOOKUP(tblSalaries[[#This Row],[How many hours of a day you work on Excel]],Table8[#Data],2,FALSE) -> 8
B80: ID0018 | C80: 2012-05-25T04:10:44 | D80: 45000 | E80: 45000 | F80: USD | G80: =tblSalaries[[#This Row],[clean Salary (in local currency)]]*VLOOKUP(tblSalaries[[#This Row],[Currency]],tblXrate[#Data],2,FALSE)/1000 -> 45 | H80: Excel Report Writer | I80: Reporting | J80: South Africa | K80: =VLOOKUP(tblSalaries[[#This Row],[Where do you work]],tblCountries[[Actual]:[Mapping2]],3,FALSE) -> Africa | L80: All the 8 hours baby, all the 8! | M80: Missing | N80: =VLOOKUP(tblSalaries[[#This Row],[Years of Experience]],Table3[#Data],2,FALSE) -> Missing | O80: =VLOOKUP(tblSalaries[[#This Row],[How many hours of a day you work on Excel]],Table8[#Data],2,FALSE) -> 8
B81: ID0549 | C81: 2012-05-26T05:33:43 | D81: 45000 | E81: 45000 | F81: USD | G81: =tblSalaries[[#This Row],[clean Salary (in local currency)]]*VLOOKUP(tblSalaries[[#This Row],[Currency]],tblXrate[#Data],2,FALSE)/1000 -> 45 | H81: Reports Coordinator | I81: Reporting | J81: USA | K81: =VLOOKUP(tblSalaries[[#This Row],[Where do you work]],tblCountries[[Actual]:[Mapping2]],3,FALSE) -> USA | L81: All the 8 hours baby, all the 8! | M81: Missing | N81: =VLOOKUP(tblSalaries[[#This Row],[Years of Experience]],Table3[#Data],2,FALSE) -> Missing | O81: =VLOOKUP(tblSalaries[[#This Row],[How many hours of a day you work on Excel]],Table8[#Data],2,FALSE) -> 8
B82: ID0131 | C82: 2012-05-26T00:42:41 | D82: 28159.2 | E82: 28159 | F82: GBP | G82: =tblSalaries[[#This Row],[clean Salary (in local currency)]]*VLOOKUP(tblSalaries[[#This Row],[Currency]],tblXrate[#Data],2,FALSE)/1000 -> 44.38360396 | H82: Data Analyst | I82: Analyst | J82: UK | K82: =VLOOKUP(tblSalaries[[#This Row],[Where do you work]],tblCountries[[Actual]:[Mapping2]],3,FALSE) -> UK | L82: All the 8 hours baby, all the 8! | M82: Missing | N82: =VLOOKUP(tblSalaries[[#This Row],[Years of Experience]],Table3[#Data],2,FALSE) -> Missing | O82: =VLOOKUP(tblSalaries[[#This Row],[How many hours of a day you work on Excel]],Table8[#Data],2,FALSE) -> 8
B83: ID0354 | C83: 2012-05-26T01:41:54 | D83: 44200 | E83: 44200 | F83: USD | G83: =tblSalaries[[#This Row],[clean Salary (in local currency)]]*VLOOKUP(tblSalaries[[#This Row],[Currency]],tblXrate[#Data],2,FALSE)/1000 -> 44.2 | H83: Planning and Analysis Supervisor | I83: Analyst | J83: USA | K83: =VLOOKUP(tblSalaries[[#This Row],[Where do you work]],tblCountries[[Actual]:[Mapping2]],3,FALSE) -> USA | L83: All the 8 hours baby, all the 8! | M83: Missing | N83: =VLOOKUP(tblSalaries[[#This Row],[Years of Experience]],Table3[#Data],2,FALSE) -> Missing | O83: =VLOOKUP(tblSalaries[[#This Row],[How many hours of a day you work on Excel]],Table8[#Data],2,FALSE) -> 8
B84: ID0262 | C84: 2012-05-26T01:08:00 | D84: 28000 | E84: 28000 | F84: GBP | G84: =tblSalaries[[#This Row],[clean Salary (in local currency)]]*VLOOKUP(tblSalaries[[#This Row],[Currency]],tblXrate[#Data],2,FALSE)/1000 -> 44.13299162 | H84: Ops Adminstrator | I84: Analyst | J84: UK | K84: =VLOOKUP(tblSalaries[[#This Row],[Where do you work]],tblCountries[[Actual]:[Mapping2]],3,FALSE) -> UK | L84: All the 8 hours baby, all the 8! | M84: Missing | N84: =VLOOKUP(tblSalaries[[#This Row],[Years of Experience]],Table3[#Data],2,FALSE) -> Missing | O84: =VLOOKUP(tblSalaries[[#This Row],[How many hours of a day you work on Excel]],Table8[#Data],2,FALSE) -> 8
B85: ID0212 | C85: 2012-05-26T00:54:41 | D85: 43000 | E85: 43000 | F85: USD | G85: =tblSalaries[[#This Row],[clean Salary (in local currency)]]*VLOOKUP(tblSalaries[[#This Row],[Currency]],tblXrate[#Data],2,FALSE)/1000 -> 43 | H85: Reporting Analyst Team Lead | I85: Analyst | J85: USA | K85: =VLOOKUP(tblSalaries[[#This Row],[Where do you work]],tblCountries[[Actual]:[Mapping2]],3,FALSE) -> USA | L85: All the 8 hours baby, all the 8! | M85: Missing | N85: =VLOOKUP(tblSalaries[[#This Row],[Years of Experience]],Table3[#Data],2,FALSE) -> Missing | O85: =VLOOKUP(tblSalaries[[#This Row],[How many hours of a day you work on Excel]],Table8[#Data],2,FALSE) -> 8
B86: ID0545 | C86: 2012-05-26T05:29:58 | D86: 43000 | E86: 43000 | F86: USD | G86: =tblSalaries[[#This Row],[clean Salary (in local currency)]]*VLOOKUP(tblSalaries[[#This Row],[Currency]],tblXrate[#Data],2,FALSE)/1000 -> 43 | H86: Accountant | I86: Accountant | J86: USA | K86: =VLOOKUP(tblSalaries[[#This Row],[Where do you work]],tblCountries[[Actual]:[Mapping2]],3,FALSE) -> USA | L86: All the 8 hours baby, all the 8! | M86: Missing | N86: =VLOOKUP(tblSalaries[[#This Row],[Years of Experience]],Table3[#Data],2,FALSE) -> Missing | O86: =VLOOKUP(tblSalaries[[#This Row],[How many hours of a day you work on Excel]],Table8[#Data],2,FALSE) -> 8
B87: ID0006 | C87: 2012-05-25T03:28:28 | D87: 41731 | E87: 41731 | F87: USD | G87: =tblSalaries[[#This Row],[clean Salary (in local currency)]]*VLOOKUP(tblSalaries[[#This Row],[Currency]],tblXrate[#Data],2,FALSE)/1000 -> 41.731 | H87: Analyst | I87: Analyst | J87: Iceland | K87: =VLOOKUP(tblSalaries[[#This Row],[Where do you work]],tblCountries[[Actual]:[Mapping2]],3,FALSE) -> EU | L87: All the 8 hours baby, all the 8! | M87: Missing | N87: =VLOOKUP(tblSalaries[[#This Row],[Years of Experience]],Table3[#Data],2,FALSE) -> Missing | O87: =VLOOKUP(tblSalaries[[#This Row],[How many hours of a day you work on Excel]],Table8[#Data],2,FALSE) -> 8
B88: ID0303 | C88: 2012-05-26T01:22:40 | D88: 42000 | E88: 42000 | F88: CAD | G88: =tblSalaries[[#This Row],[clean Salary (in local currency)]]*VLOOKUP(tblSalaries[[#This Row],[Currency]],tblXrate[#Data],2,FALSE)/1000 -> 41.30118397 | H88: Financial Analyst | I88: Analyst | J88: Canada | K88: =VLOOKUP(tblSalaries[[#This Row],[Where do you work]],tblCountries[[Actual]:[Mapping2]],3,FALSE) -> Canada | L88: All the 8 hours baby, all the 8! | M88: Missing | N88: =VLOOKUP(tblSalaries[[#This Row],[Years of Experience]],Table3[#Data],2,FALSE) -> Missing | O88: =VLOOKUP(tblSalaries[[#This Row],[How many hours of a day you work on Excel]],Table8[#Data],2,FALSE) -> 8
B89: ID0031 | C89: 2012-05-25T04:55:48 | D89: 41000 | E89: 41000 | F89: USD | G89: =tblSalaries[[#This Row],[clean Salary (in local currency)]]*VLOOKUP(tblSalaries[[#This Row],[Currency]],tblXrate[#Data],2,FALSE)/1000 -> 41 | H89: Chief of the department of public budget analisis and forecasting | I89: Manager | J89: Russia | K89: =VLOOKUP(tblSalaries[[#This Row],[Where do you work]],tblCountries[[Actual]:[Mapping2]],3,FALSE) -> Russia & CEE | L89: All the 8 hours baby, all the 8! | M89: Missing | N89: =VLOOKUP(tblSalaries[[#This Row],[Years of Experience]],Table3[#Data],2,FALSE) -> Missing | O89: =VLOOKUP(tblSalaries[[#This Row],[How many hours of a day you work on Excel]],Table8[#Data],2,FALSE) -> 8
B90: ID0214 | C90: 2012-05-26T00:54:56 | D90: 41000 | E90: 41000 | F90: USD | G90: =tblSalaries[[#This Row],[clean Salary (in local currency)]]*VLOOKUP(tblSalaries[[#This Row],[Currency]],tblXrate[#Data],2,FALSE)/1000 -> 41 | H90: Operations Expert | I90: Manager | J90: USA | K90: =VLOOKUP(tblSalaries[[#This Row],[Where do you work]],tblCountries[[Actual]:[Mapping2]],3,FALSE) -> USA | L90: All the 8 hours baby, all the 8! | M90: Missing | N90: =VLOOKUP(tblSalaries[[#This Row],[Years of Experience]],Table3[#Data],2,FALSE) -> Missing | O90: =VLOOKUP(tblSalaries[[#This Row],[How many hours of a day you work on Excel]],Table8[#Data],2,FALSE) -> 8
B91: ID0180 | C91: 2012-05-26T00:49:50 | D91: 40000 | E91: 40000 | F91: USD | G91: =tblSalaries[[#This Row],[clean Salary (in local currency)]]*VLOOKUP(tblSalaries[[#This Row],[Currency]],tblXrate[#Data],2,FALSE)/1000 -> 40 | H91: Senior analyst | I91: Analyst | J91: USA | K91: =VLOOKUP(tblSalaries[[#This Row],[Where do you work]],tblCountries[[Actual]:[Mapping2]],3,FALSE) -> USA | L91: All the 8 hours baby, all the 8! | M91: Missing | N91: =VLOOKUP(tblSalaries[[#This Row],[Years of Experience]],Table3[#Data],2,FALSE) -> Missing | O91: =VLOOKUP(tblSalaries[[#This Row],[How many hours of a day you work on Excel]],Table8[#Data],2,FALSE) -> 8
B92: ID0254 | C92: 2012-05-26T01:05:27 | D92: 40000 | E92: 40000 | F92: USD | G92: =tblSalaries[[#This Row],[clean Salary (in local currency)]]*VLOOKUP(tblSalaries[[#This Row],[Currency]],tblXrate[#Data],2,FALSE)/1000 -> 40 | H92: Business Analyst | I92: Analyst | J92: USA | K92: =VLOOKUP(tblSalaries[[#This Row],[Where do you work]],tblCountries[[Actual]:[Mapping2]],3,FALSE) -> USA | L92: All the 8 hours baby, all the 8! | M92: Missing | N92: =VLOOKUP(tblSalaries[[#This Row],[Years of Experience]],Table3[#Data],2,FALSE) -> Missing | O92: =VLOOKUP(tblSalaries[[#This Row],[How many hours of a day you work on Excel]],Table8[#Data],2,FALSE) -> 8
B93: ID0280 | C93: 2012-05-26T01:13:50 | D93: 40000 | E93: 40000 | F93: USD | G93: =tblSalaries[[#This Row],[clean Salary (in local currency)]]*VLOOKUP(tblSalaries[[#This Row],[Currency]],tblXrate[#Data],2,FALSE)/1000 -> 40 | H93: Business Analyst | I93: Analyst | J93: USA | K93: =VLOOKUP(tblSalaries[[#This Row],[Where do you work]],tblCountries[[Actual]:[Mapping2]],3,FALSE) -> USA | L93: All the 8 hours baby, all the 8! | M93: Missing | N93: =VLOOKUP(tblSalaries[[#This Row],[Years of Experience]],Table3[#Data],2,FALSE) -> Missing | O93: =VLOOKUP(tblSalaries[[#This Row],[How many hours of a day you work on Excel]],Table8[#Data],2,FALSE) -> 8
B94: ID0114 | C94: 2012-05-26T00:41:28 | D94: 37900 | E94: 37900 | F94: USD | G94: =tblSalaries[[#This Row],[clean Salary (in local currency)]]*VLOOKUP(tblSalaries[[#This Row],[Currency]],tblXrate[#Data],2,FALSE)/1000 -> 37.9 | H94: Accounting Coordinator | I94: Accountant | J94: USA | K94: =VLOOKUP(tblSalaries[[#This Row],[Where do you work]],tblCountries[[Actual]:[Mapping2]],3,FALSE) -> USA | L94: All the 8 hours baby, all the 8! | M94: Missing | N94: =VLOOKUP(tblSalaries[[#This Row],[Years of Experience]],Table3[#Data],2,FALSE) -> Missing | O94: =VLOOKUP(tblSalaries[[#This Row],[How many hours of a day you work on Excel]],Table8[#Data],2,FALSE) -> 8
B95: ID0154 | C95: 2012-05-26T00:45:06 | D95: 37440 | E95: 37440 | F95: USD | G95: =tblSalaries[[#This Row],[clean Salary (in local currency)]]*VLOOKUP(tblSalaries[[#This Row],[Currency]],tblXrate[#Data],2,FALSE)/1000 -> 37.44 | H95: sales analyst | I95: Analyst | J95: USA | K95: =VLOOKUP(tblSalaries[[#This Row],[Where do you work]],tblCountries[[Actual]:[Mapping2]],3,FALSE) -> USA | L95: All the 8 hours baby, all the 8! | M95: Missing | N95: =VLOOKUP(tblSalaries[[#This Row],[Years of Experience]],Table3[#Data],2,FALSE) -> Missing | O95: =VLOOKUP(tblSalaries[[#This Row],[How many hours of a day you work on Excel]],Table8[#Data],2,FALSE) -> 8
B96: ID0302 | C96: 2012-05-26T01:22:22 | D96: 36,000 USD | E96: 36000 | F96: USD | G96: =tblSalaries[[#This Row],[clean Salary (in local currency)]]*VLOOKUP(tblSalaries[[#This Row],[Currency]],tblXrate[#Data],2,FALSE)/1000 -> 36 | H96: PRODUCTION ASSISTANT | I96: Analyst | J96: USA | K96: =VLOOKUP(tblSalaries[[#This Row],[Where do you work]],tblCountries[[Actual]:[Mapping2]],3,FALSE) -> USA | L96: All the 8 hours baby, all the 8! | M96: Missing | N96: =VLOOKUP(tblSalaries[[#This Row],[Years of Experience]],Table3[#Data],2,FALSE) -> Missing | O96: =VLOOKUP(tblSalaries[[#This Row],[How many hours of a day you work on Excel]],Table8[#Data],2,FALSE) -> 8
B97: ID0368 | C97: 2012-05-26T01:50:00 | D97: 35000 | E97: 35000 | F97: USD | G97: =tblSalaries[[#This Row],[clean Salary (in local currency)]]*VLOOKUP(tblSalaries[[#This Row],[Currency]],tblXrate[#Data],2,FALSE)/1000 -> 35 | H97: Senior Treasury Analyst | I97: Analyst | J97: Brasil | K97: =VLOOKUP(tblSalaries[[#This Row],[Where do you work]],tblCountries[[Actual]:[Mapping2]],3,FALSE) -> Sou&Cen America | L97: All the 8 hours baby, all the 8! | M97: Missing | N97: =VLOOKUP(tblSalaries[[#This Row],[Years of Experience]],Table3[#Data],2,FALSE) -> Missing | O97: =VLOOKUP(tblSalaries[[#This Row],[How many hours of a day you work on Excel]],Table8[#Data],2,FALSE) -> 8
B98: ID0074 | C98: 2012-05-25T23:01:20 | D98: 2785 | E98: 33420 | F98: USD | G98: =tblSalaries[[#This Row],[clean Salary (in local currency)]]*VLOOKUP(tblSalaries[[#This Row],[Currency]],tblXrate[#Data],2,FALSE)/1000 -> 33.42 | H98: Process Flow Coordinator | I98: Manager | J98: United Arab Emirates | K98: =VLOOKUP(tblSalaries[[#This Row],[Where do you work]],tblCountries[[Actual]:[Mapping2]],3,FALSE) -> Middle East | L98: All the 8 hours baby, all the 8! | M98: Missing | N98: =VLOOKUP(tblSalaries[[#This Row],[Years of Experience]],Table3[#Data],2,FALSE) -> Missing | O98: =VLOOKUP(tblSalaries[[#This Row],[How many hours of a day you work on Excel]],Table8[#Data],2,FALSE) -> 8
B99: ID0086 | C99: 2012-05-26T00:11:21 | D99: US $ 31330.00 | E99: 31330 | F99: USD | G99: =tblSalaries[[#This Row],[clean Salary (in local currency)]]*VLOOKUP(tblSalaries[[#This Row],[Currency]],tblXrate[#Data],2,FALSE)/1000 -> 31.33 | H99: VBA Analyst | I99: Analyst | J99: Brazil | K99: =VLOOKUP(tblSalaries[[#This Row],[Where do you work]],tblCountries[[Actual]:[Mapping2]],3,FALSE) -> Sou&Cen America | L99: All the 8 hours baby, all the 8! | M99: Missing | N99: =VLOOKUP(tblSalaries[[#This Row],[Years of Experience]],Table3[#Data],2,FALSE) -> Missing | O99: =VLOOKUP(tblSalaries[[#This Row],[How many hours of a day you work on Excel]],Table8[#Data],2,FALSE) -> 8
B100: ID0053 | C100: 2012-05-25T06:09:44 | D100: 2000 Euros | E100: 24000 | F100: EUR | G100: =tblSalaries[[#This Row],[clean Salary (in local currency)]]*VLOOKUP(tblSalaries[[#This Row],[Currency]],tblXrate[#Data],2,FALSE)/1000 -> 30.48958654 | H100: PPC Manager | I100: Manager | J100: Germany | K100: =VLOOKUP(tblSalaries[[#This Row],[Where do you work]],tblCountries[[Actual]:[Mapping2]],3,FALSE) -> EU-16 | L100: All the 8 hours baby, all the 8! | M100: Missing | N100: =VLOOKUP(tblSalaries[[#This Row],[Years of Experience]],Table3[#Data],2,FALSE) -> Missing | O100: =VLOOKUP(tblSalaries[[#This Row],[How many hours of a day you work on Excel]],Table8[#Data],2,FALSE) -> 8
B101: ID0179 | C101: 2012-05-26T00:49:48 | D101: 18500 | E101: 18500 | F101: GBP | G101: =tblSalaries[[#This Row],[clean Salary (in local currency)]]*VLOOKUP(tblSalaries[[#This Row],[Currency]],tblXrate[#Data],2,FALSE)/1000 -> 29.15929803 | H101: Trainee Management Accountant | I101: Manager | J101: UK | K101: =VLOOKUP(tblSalaries[[#This Row],[Where do you work]],tblCountries[[Actual]:[Mapping2]],3,FALSE) -> UK | L101: All the 8 hours baby, all the 8! | M101: Missing | N101: =VLOOKUP(tblSalaries[[#This Row],[Years of Experience]],Table3[#Data],2,FALSE) -> Missing | O101: =VLOOKUP(tblSalaries[[#This Row],[How many hours of a day you work on Excel]],Table8[#Data],2,FALSE) -> 8
B102: ID0412 | C102: 2012-05-26T02:14:05 | D102: Â¢ 14.000.000,00 | E102: 14000000 | F102: COSTARICAN | G102: =tblSalaries[[#This Row],[clean Salary (in local currency)]]*VLOOKUP(tblSalaries[[#This Row],[Currency]],tblXrate[#Data],2,FALSE)/1000 -> 28.10962755 | H102: Businees Adminstratot | I102: Analyst | J102: Costa Rica | K102: =VLOOKUP(tblSalaries[[#This Row],[Where do you work]],tblCountries[[Actual]:[Mapping2]],3,FALSE) -> Sou&Cen America | L102: All the 8 hours baby, all the 8! | M102: Missing | N102: =VLOOKUP(tblSalaries[[#This Row],[Years of Experience]],Table3[#Data],2,FALSE) -> Missing | O102: =VLOOKUP(tblSalaries[[#This Row],[How many hours of a day you work on Excel]],Table8[#Data],2,FALSE) -> 8
B103: ID0265 | C103: 2012-05-26T01:08:21 | D103: 2300 | E103: 27600 | F103: USD | G103: =tblSalaries[[#This Row],[clean Salary (in local currency)]]*VLOOKUP(tblSalaries[[#This Row],[Currency]],tblXrate[#Data],2,FALSE)/1000 -> 27.6 | H103: Software Consultant | I103: Consultant | J103: Singapore | K103: =VLOOKUP(tblSalaries[[#This Row],[Where do you work]],tblCountries[[Actual]:[Mapping2]],3,FALSE) -> East&South Asia | L103: All the 8 hours baby, all the 8! | M103: Missing | N103: =VLOOKUP(tblSalaries[[#This Row],[Years of Experience]],Table3[#Data],2,FALSE) -> Missing | O103: =VLOOKUP(tblSalaries[[#This Row],[How many hours of a day you work on Excel]],Table8[#Data],2,FALSE) -> 8
B104: ID0213 | C104: 2012-05-26T00:54:46 | D104: 27000 | E104: 27000 | F104: USD | G104: =tblSalaries[[#This Row],[clean Salary (in local currency)]]*VLOOKUP(tblSalaries[[#This Row],[Currency]],tblXrate[#Data],2,FALSE)/1000 -> 27 | H104: Innovation Analyst | I104: Analyst | J104: Singapore | K104: =VLOOKUP(tblSalaries[[#This Row],[Where do you work]],tblCountries[[Actual]:[Mapping2]],3,FALSE) -> East&South Asia | L104: All the 8 hours baby, all the 8! | M104: Missing | N104: =VLOOKUP(tblSalaries[[#This Row],[Years of Experience]],Table3[#Data],2,FALSE) -> Missing | O104: =VLOOKUP(tblSalaries[[#This Row],[How many hours of a day you work on Excel]],Table8[#Data],2,FALSE) -> 8
B105: ID0286 | C105: 2012-05-26T01:16:18 | D105: INR 15,00,000 | E105: 1500000 | F105: INR | G105: =tblSalaries[[#This Row],[clean Salary (in local currency)]]*VLOOKUP(tblSalaries[[#This Row],[Currency]],tblXrate[#Data],2,FALSE)/1000 -> 26.71187503 | H105: Consultant | I105: Consultant | J105: India | K105: =VLOOKUP(tblSalaries[[#This Row],[Where do you work]],tblCountries[[Actual]:[Mapping2]],3,FALSE) -> India | L105: All the 8 hours baby, all the 8! | M105: Missing | N105: =VLOOKUP(tblSalaries[[#This Row],[Years of Experience]],Table3[#Data],2,FALSE) -> Missing | O105: =VLOOKUP(tblSalaries[[#This Row],[How many hours of a day you work on Excel]],Table8[#Data],2,FALSE) -> 8
B106: ID0081 | C106: 2012-05-25T23:33:15 | D106: 26000 | E106: 26000 | F106: USD | G106: =tblSalaries[[#This Row],[clean Salary (in local currency)]]*VLOOKUP(tblSalaries[[#This Row],[Currency]],tblXrate[#Data],2,FALSE)/1000 -> 26 | H106: Marketing Analyst | I106: Analyst | J106: Panama | K106: =VLOOKUP(tblSalaries[[#This Row],[Where do you work]],tblCountries[[Actual]:[Mapping2]],3,FALSE) -> Sou&Cen America | L106: All the 8 hours baby, all the 8! | M106: Missing | N106: =VLOOKUP(tblSalaries[[#This Row],[Years of Experience]],Table3[#Data],2,FALSE) -> Missing | O106: =VLOOKUP(tblSalaries[[#This Row],[How many hours of a day you work on Excel]],Table8[#Data],2,FALSE) -> 8
B107: ID0119 | C107: 2012-05-26T00:41:38 | D107: 2000 | E107: 24000 | F107: USD | G107: =tblSalaries[[#This Row],[clean Salary (in local currency)]]*VLOOKUP(tblSalaries[[#This Row],[Currency]],tblXrate[#Data],2,FALSE)/1000 -> 24 | H107: Researcher | I107: Manager | J107: Colombia | K107: =VLOOKUP(tblSalaries[[#This Row],[Where do you work]],tblCountries[[Actual]:[Mapping2]],3,FALSE) -> Sou&Cen America | L107: All the 8 hours baby, all the 8! | M107: Missing | N107: =VLOOKUP(tblSalaries[[#This Row],[Years of Experience]],Table3[#Data],2,FALSE) -> Missing | O107: =VLOOKUP(tblSalaries[[#This Row],[How many hours of a day you work on Excel]],Table8[#Data],2,FALSE) -> 8
B108: ID0288 | C108: 2012-05-26T01:17:50 | D108: 22000 | E108: 22000 | F108: USD | G108: =tblSalaries[[#This Row],[clean Salary (in local currency)]]*VLOOKUP(tblSalaries[[#This Row],[Currency]],tblXrate[#Data],2,FALSE)/1000 -> 22 | H108: MIS | I108: Reporting | J108: India | K108: =VLOOKUP(tblSalaries[[#This Row],[Where do you work]],tblCountries[[Actual]:[Mapping2]],3,FALSE) -> India | L108: All the 8 hours baby, all the 8! | M108: Missing | N108: =VLOOKUP(tblSalaries[[#This Row],[Years of Experience]],Table3[#Data],2,FALSE) -> Missing | O108: =VLOOKUP(tblSalaries[[#This Row],[How many hours of a day you work on Excel]],Table8[#Data],2,FALSE) -> 8
B109: ID0279 | C109: 2012-05-26T01:12:41 | D109: 20000 | E109: 20000 | F109: USD | G109: =tblSalaries[[#This Row],[clean Salary (in local currency)]]*VLOOKUP(tblSalaries[[#This Row],[Currency]],tblXrate[#Data],2,FALSE)/1000 -> 20 | H109: Analyst | I109: Analyst | J109: India | K109: =VLOOKUP(tblSalaries[[#This Row],[Where do you work]],tblCountries[[Actual]:[Mapping2]],3,FALSE) -> India | L109: All the 8 hours baby, all the 8! | M109: Missing | N109: =VLOOKUP(tblSalaries[[#This Row],[Years of Experience]],Table3[#Data],2,FALSE) -> Missing | O109: =VLOOKUP(tblSalaries[[#This Row],[How many hours of a day you work on Excel]],Table8[#Data],2,FALSE) -> 8
B110: ID0411 | C110: 2012-05-26T02:13:57 | D110: 19200 | E110: 19200 | F110: USD | G110: =tblSalaries[[#This Row],[clean Salary (in local currency)]]*VLOOKUP(tblSalaries[[#This Row],[Currency]],tblXrate[#Data],2,FALSE)/1000 -> 19.2 | H110: Department Manager | I110: Manager | J110: Romania | K110: =VLOOKUP(tblSalaries[[#This Row],[Where do you work]],tblCountries[[Actual]:[Mapping2]],3,FALSE) -> EU | L110: All the 8 hours baby, all the 8! | M110: Missing | N110: =VLOOKUP(tblSalaries[[#This Row],[Years of Experience]],Table3[#Data],2,FALSE) -> Missing | O110: =VLOOKUP(tblSalaries[[#This Row],[How many hours of a day you work on Excel]],Table8[#Data],2,FALSE) -> 8
B111: ID0507 | C111: 2012-05-26T04:12:16 | D111: 15000 â‚¬ | E111: 15000 | F111: EUR | G111: =tblSalaries[[#This Row],[clean Salary (in local currency)]]*VLOOKUP(tblSalaries[[#This Row],[Currency]],tblXrate[#Data],2,FALSE)/1000 -> 19.05599158 | H111: Report Analyst | I111: Analyst | J111: Spain | K111: =VLOOKUP(tblSalaries[[#This Row],[Where do you work]],tblCountries[[Actual]:[Mapping2]],3,FALSE) -> EU-16 | L111: All the 8 hours baby, all the 8! | M111: Missing | N111: =VLOOKUP(tblSalaries[[#This Row],[Years of Experience]],Table3[#Data],2,FALSE) -> Missing | O111: =VLOOKUP(tblSalaries[[#This Row],[How many hours of a day you work on Excel]],Table8[#Data],2,FALSE) -> 8
B112: ID0079 | C112: 2012-05-25T23:20:46 | D112: Us$ 18000 | E112: 18000 | F112: USD | G112: =tblSalaries[[#This Row],[clean Salary (in local currency)]]*VLOOKUP(tblSalaries[[#This Row],[Currency]],tblXrate[#Data],2,FALSE)/1000 -> 18 | H112: Operational Analyst | I112: Analyst | J112: Saudi Arabia | K112: =VLOOKUP(tblSalaries[[#This Row],[Where do you work]],tblCountries[[Actual]:[Mapping2]],3,FALSE) -> Middle East | L112: All the 8 hours baby, all the 8! | M112: Missing | N112: =VLOOKUP(tblSalaries[[#This Row],[Years of Experience]],Table3[#Data],2,FALSE) -> Missing | O112: =VLOOKUP(tblSalaries[[#This Row],[How many hours of a day you work on Excel]],Table8[#Data],2,FALSE) -> 8
B113: ID0155 | C113: 2012-05-26T00:45:11 | D113: 15500 | E113: 15500 | F113: USD | G113: =tblSalaries[[#This Row],[clean Salary (in local currency)]]*VLOOKUP(tblSalaries[[#This Row],[Currency]],tblXrate[#Data],2,FALSE)/1000 -> 15.5 | H113: Proces auditor | I113: Accountant | J113: Mexico | K113: =VLOOKUP(tblSalaries[[#This Row],[Where do you work]],tblCountries[[Actual]:[Mapping2]],3,FALSE) -> Sou&Cen America | L113: All the 8 hours baby, all the 8! | M113: Missing | N113: =VLOOKUP(tblSalaries[[#This Row],[Years of Experience]],Table3[#Data],2,FALSE) -> Missing | O113: =VLOOKUP(tblSalaries[[#This Row],[How many hours of a day you work on Excel]],Table8[#Data],2,FALSE) -> 8
B114: ID0240 | C114: 2012-05-26T01:02:16 | D114: 1000 â‚¬ | E114: 12000 | F114: EUR | G114: =tblSalaries[[#This Row],[clean Salary (in local currency)]]*VLOOKUP(tblSalaries[[#This Row],[Currency]],tblXrate[#Data],2,FALSE)/1000 -> 15.24479327 | H114: HR Specialist | I114: Specialist | J114: Portugal | K114: =VLOOKUP(tblSalaries[[#This Row],[Where do you work]],tblCountries[[Actual]:[Mapping2]],3,FALSE) -> EU-16 | L114: All the 8 hours baby, all the 8! | M114: Missing | N114: =VLOOKUP(tblSalaries[[#This Row],[Years of Experience]],Table3[#Data],2,FALSE) -> Missing | O114: =VLOOKUP(tblSalaries[[#This Row],[How many hours of a day you work on Excel]],Table8[#Data],2,FALSE) -> 8
B115: ID0002 | C115: 2012-05-25T03:13:13 | D115: 15000 usd | E115: 15000 | F115: USD | G115: =tblSalaries[[#This Row],[clean Salary (in local currency)]]*VLOOKUP(tblSalaries[[#This Row],[Currency]],tblXrate[#Data],2,FALSE)/1000 -> 15 | H115: cost control | I115: Controller | J115: europe/Croatia | K115: =VLOOKUP(tblSalaries[[#This Row],[Where do you work]],tblCountries[[Actual]:[Mapping2]],3,FALSE) -> EU | L115: All the 8 hours baby, all the 8! | M115: Missing | N115: =VLOOKUP(tblSalaries[[#This Row],[Years of Experience]],Table3[#Data],2,FALSE) -> Missing | O115: =VLOOKUP(tblSalaries[[#This Row],[How many hours of a day you work on Excel]],Table8[#Data],2,FALSE) -> 8
B116: ID0076 | C116: 2012-05-25T23:12:29 | D116: 15000 | E116: 15000 | F116: USD | G116: =tblSalaries[[#This Row],[clean Salary (in local currency)]]*VLOOKUP(tblSalaries[[#This Row],[Currency]],tblXrate[#Data],2,FALSE)/1000 -> 15 | H116: Excel Programmer Consultant | I116: Consultant | J116: USA | K116: =VLOOKUP(tblSalaries[[#This Row],[Where do you work]],tblCountries[[Actual]:[Mapping2]],3,FALSE) -> USA | L116: All the 8 hours baby, all the 8! | M116: Missing | N116: =VLOOKUP(tblSalaries[[#This Row],[Years of Experience]],Table3[#Data],2,FALSE) -> Missing | O116: =VLOOKUP(tblSalaries[[#This Row],[How many hours of a day you work on Excel]],Table8[#Data],2,FALSE) -> 8
B117: ID0457 | C117: 2012-05-26T03:02:42 | D117: 800000 rupees | E117: 800000 | F117: INR | G117: =tblSalaries[[#This Row],[clean Salary (in local currency)]]*VLOOKUP(tblSalaries[[#This Row],[Currency]],tblXrate[#Data],2,FALSE)/1000 -> 14.24633335 | H117: Partner | I117: CXO or Top Mgmt. | J117: India | K117: =VLOOKUP(tblSalaries[[#This Row],[Where do you work]],tblCountries[[Actual]:[Mapping2]],3,FALSE) -> India | L117: All the 8 hours baby, all the 8! | M117: Missing | N117: =VLOOKUP(tblSalaries[[#This Row],[Years of Experience]],Table3[#Data],2,FALSE) -> Missing | O117: =VLOOKUP(tblSalaries[[#This Row],[How many hours of a day you work on Excel]],Table8[#Data],2,FALSE) -> 8
B118: ID0188 | C118: 2012-05-26T00:50:43 | D118: 13636.36 | E118: 13636 | F118: USD | G118: =tblSalaries[[#This Row],[clean Salary (in local currency)]]*VLOOKUP(tblSalaries[[#This Row],[Currency]],tblXrate[#Data],2,FALSE)/1000 -> 13.636 | H118: Process Manager | I118: Manager | J118: India | K118: =VLOOKUP(tblSalaries[[#This Row],[Where do you work]],tblCountries[[Actual]:[Mapping2]],3,FALSE) -> India | L118: All the 8 hours baby, all the 8! | M118: Missing | N118: =VLOOKUP(tblSalaries[[#This Row],[Years of Experience]],Table3[#Data],2,FALSE) -> Missing | O118: =VLOOKUP(tblSalaries[[#This Row],[How many hours of a day you work on Excel]],Table8[#Data],2,FALSE) -> 8
B119: ID0013 | C119: 2012-05-25T03:48:53 | D119: 749000 INR | E119: 749000 | F119: INR | G119: =tblSalaries[[#This Row],[clean Salary (in local currency)]]*VLOOKUP(tblSalaries[[#This Row],[Currency]],tblXrate[#Data],2,FALSE)/1000 -> 13.3381296 | H119: Senion Analyst | I119: Analyst | J119: India | K119: =VLOOKUP(tblSalaries[[#This Row],[Where do you work]],tblCountries[[Actual]:[Mapping2]],3,FALSE) -> India | L119: All the 8 hours baby, all the 8! | M119: Missing | N119: =VLOOKUP(tblSalaries[[#This Row],[Years of Experience]],Table3[#Data],2,FALSE) -> Missing | O119: =VLOOKUP(tblSalaries[[#This Row],[How many hours of a day you work on Excel]],Table8[#Data],2,FALSE) -> 8
B120: ID0342 | C120: 2012-05-26T01:37:33 | D120: 13000 | E120: 13000 | F120: USD | G120: =tblSalaries[[#This Row],[clean Salary (in local currency)]]*VLOOKUP(tblSalaries[[#This Row],[Currency]],tblXrate[#Data],2,FALSE)/1000 -> 13 | H120: operation-manager | I120: Manager | J120: India | K120: =VLOOKUP(tblSalaries[[#This Row],[Where do you work]],tblCountries[[Actual]:[Mapping2]],3,FALSE) -> India | L120: All the 8 hours baby, all the 8! | M120: Missing | N120: =VLOOKUP(tblSalaries[[#This Row],[Years of Experience]],Table3[#Data],2,FALSE) -> Missing | O120: =VLOOKUP(tblSalaries[[#This Row],[How many hours of a day you work on Excel]],Table8[#Data],2,FALSE) -> 8
B121: ID0010 | C121: 2012-05-25T03:38:57 | D121: PKR 8,000 | E121: 1152000 | F121: PKR | G121: =tblSalaries[[#This Row],[clean Salary (in local currency)]]*VLOOKUP(tblSalaries[[#This Row],[Currency]],tblXrate[#Data],2,FALSE)/1000 -> 12.2274302 | H121: Audit Trainee | I121: Accountant | J121: Pakistan | K121: =VLOOKUP(tblSalaries[[#This Row],[Where do you work]],tblCountries[[Actual]:[Mapping2]],3,FALSE) -> East&South Asia | L121: All the 8 hours baby, all the 8! | M121: Missing | N121: =VLOOKUP(tblSalaries[[#This Row],[Years of Experience]],Table3[#Data],2,FALSE) -> Missing | O121: =VLOOKUP(tblSalaries[[#This Row],[How many hours of a day you work on Excel]],Table8[#Data],2,FALSE) -> 8
B122: ID0008 | C122: 2012-05-25T03:36:37 | D122: 12000 | E122: 12000 | F122: USD | G122: =tblSalaries[[#This Row],[clean Salary (in local currency)]]*VLOOKUP(tblSalaries[[#This Row],[Currency]],tblXrate[#Data],2,FALSE)/1000 -> 12 | H122: Assistant SP&A | I122: Analyst | J122: Ukraine | K122: =VLOOKUP(tblSalaries[[#This Row],[Where do you work]],tblCountries[[Actual]:[Mapping2]],3,FALSE) -> Russia & CEE | L122: All the 8 hours baby, all the 8! | M122: Missing | N122: =VLOOKUP(tblSalaries[[#This Row],[Years of Experience]],Table3[#Data],2,FALSE) -> Missing | O122: =VLOOKUP(tblSalaries[[#This Row],[How many hours of a day you work on Excel]],Table8[#Data],2,FALSE) -> 8
B123: ID0307 | C123: 2012-05-26T01:23:21 | D123: 12000 | E123: 12000 | F123: USD | G123: =tblSalaries[[#This Row],[clean Salary (in local currency)]]*VLOOKUP(tblSalaries[[#This Row],[Currency]],tblXrate[#Data],2,FALSE)/1000 -> 12 | H123: Analyst | I123: Analyst | J123: India | K123: =VLOOKUP(tblSalaries[[#This Row],[Where do you work]],tblCountries[[Actual]:[Mapping2]],3,FALSE) -> India | L123: All the 8 hours baby, all the 8! | M123: Missing | N123: =VLOOKUP(tblSalaries[[#This Row],[Years of Experience]],Table3[#Data],2,FALSE) -> Missing | O123: =VLOOKUP(tblSalaries[[#This Row],[How many hours of a day you work on Excel]],Table8[#Data],2,FALSE) -> 8
B124: ID0476 | C124: 2012-05-26T03:16:58 | D124: 12000 | E124: 12000 | F124: USD | G124: =tblSalaries[[#This Row],[clean Salary (in local currency)]]*VLOOKUP(tblSalaries[[#This Row],[Currency]],tblXrate[#Data],2,FALSE)/1000 -> 12 | H124: Resource managment Analyst | I124: Analyst | J124: Estonia | K124: =VLOOKUP(tblSalaries[[#This Row],[Where do you work]],tblCountries[[Actual]:[Mapping2]],3,FALSE) -> EU-16 | L124: All the 8 hours baby, all the 8! | M124: Missing | N124: =VLOOKUP(tblSalaries[[#This Row],[Years of Experience]],Table3[#Data],2,FALSE) -> Missing | O124: =VLOOKUP(tblSalaries[[#This Row],[How many hours of a day you work on Excel]],Table8[#Data],2,FALSE) -> 8
B125: ID0511 | C125: 2012-05-26T04:17:20 | D125: 12000 | E125: 12000 | F125: USD | G125: =tblSalaries[[#This Row],[clean Salary (in local currency)]]*VLOOKUP(tblSalaries[[#This Row],[Currency]],tblXrate[#Data],2,FALSE)/1000 -> 12 | H125: Report Analyst | I125: Analyst | J125: Brazil | K125: =VLOOKUP(tblSalaries[[#This Row],[Where do you work]],tblCountries[[Actual]:[Mapping2]],3,FALSE) -> Sou&Cen America | L125: All the 8 hours baby, all the 8! | M125: Missing | N125: =VLOOKUP(tblSalaries[[#This Row],[Years of Experience]],Table3[#Data],2,FALSE) -> Missing | O125: =VLOOKUP(tblSalaries[[#This Row],[How many hours of a day you work on Excel]],Table8[#Data],2,FALSE) -> 8
B126: ID0316 | C126: 2012-05-26T01:26:37 | D126: 150000 MXN | E126: 150000 | F126: MXN | G126: =tblSalaries[[#This Row],[clean Salary (in local currency)]]*VLOOKUP(tblSalaries[[#This Row],[Currency]],tblXrate[#Data],2,FALSE)/1000 -> 10.95698289 | H126: Information Analyst | I126: Analyst | J126: Mexico | K126: =VLOOKUP(tblSalaries[[#This Row],[Where do you work]],tblCountries[[Actual]:[Mapping2]],3,FALSE) -> Sou&Cen America | L126: All the 8 hours baby, all the 8! | M126: Missing | N126: =VLOOKUP(tblSalaries[[#This Row],[Years of Experience]],Table3[#Data],2,FALSE) -> Missing | O126: =VLOOKUP(tblSalaries[[#This Row],[How many hours of a day you work on Excel]],Table8[#Data],2,FALSE) -> 8
B127: ID0036 | C127: 2012-05-25T05:04:12 | D127: 500000 | E127: 500000 | F127: INR | G127: =tblSalaries[[#This Row],[clean Salary (in local currency)]]*VLOOKUP(tblSalaries[[#This Row],[Currency]],tblXrate[#Data],2,FALSE)/1000 -> 8.903958344 | H127: Senior Consultant | I127: Consultant | J127: India | K127: =VLOOKUP(tblSalaries[[#This Row],[Where do you work]],tblCountries[[Actual]:[Mapping2]],3,FALSE) -> India | L127: All the 8 hours baby, all the 8! | M127: Missing | N127: =VLOOKUP(tblSalaries[[#This Row],[Years of Experience]],Table3[#Data],2,FALSE) -> Missing | O127: =VLOOKUP(tblSalaries[[#This Row],[How many hours of a day you work on Excel]],Table8[#Data],2,FALSE) -> 8
B128: ID0085 | C128: 2012-05-26T00:10:17 | D128: 500000 | E128: 500000 | F128: INR | G128: =tblSalaries[[#This Row],[clean Salary (in local currency)]]*VLOOKUP(tblSalaries[[#This Row],[Currency]],tblXrate[#Data],2,FALSE)/1000 -> 8.903958344 | H128: Senior Consultant | I128: Consultant | J128: India | K128: =VLOOKUP(tblSalaries[[#This Row],[Where do you work]],tblCountries[[Actual]:[Mapping2]],3,FALSE) -> India | L128: All the 8 hours baby, all the 8! | M128: Missing | N128: =VLOOKUP(tblSalaries[[#This Row],[Years of Experience]],Table3[#Data],2,FALSE) -> Missing | O128: =VLOOKUP(tblSalaries[[#This Row],[How many hours of a day you work on Excel]],Table8[#Data],2,FALSE) -> 8
B129: ID0548 | C129: 2012-05-26T05:31:25 | D129: Rs. 500000 | E129: 500000 | F129: INR | G129: =tblSalaries[[#This Row],[clean Salary (in local currency)]]*VLOOKUP(tblSalaries[[#This Row],[Currency]],tblXrate[#Data],2,FALSE)/1000 -> 8.903958344 | H129: Research Associate | I129: Analyst | J129: India | K129: =VLOOKUP(tblSalaries[[#This Row],[Where do you work]],tblCountries[[Actual]:[Mapping2]],3,FALSE) -> India | L129: All the 8 hours baby, all the 8! | M129: Missing | N129: =VLOOKUP(tblSalaries[[#This Row],[Years of Experience]],Table3[#Data],2,FALSE) -> Missing | O129: =VLOOKUP(tblSalaries[[#This Row],[How many hours of a day you work on Excel]],Table8[#Data],2,FALSE) -> 8
B130: ID0258 | C130: 2012-05-26T01:06:38 | D130: Rs 470000 | E130: 470000 | F130: INR | G130: =tblSalaries[[#This Row],[clean Salary (in local currency)]]*VLOOKUP(tblSalaries[[#This Row],[Currency]],tblXrate[#Data],2,FALSE)/1000 -> 8.369720843 | H130: Web Statistics Analyst | I130: Analyst | J130: India | K130: =VLOOKUP(tblSalaries[[#This Row],[Where do you work]],tblCountries[[Actual]:[Mapping2]],3,FALSE) -> India | L130: All the 8 hours baby, all the 8! | M130: Missing | N130: =VLOOKUP(tblSalaries[[#This Row],[Years of Experience]],Table3[#Data],2,FALSE) -> Missing | O130: =VLOOKUP(tblSalaries[[#This Row],[How many hours of a day you work on Excel]],Table8[#Data],2,FALSE) -> 8
B131: ID0544 | C131: 2012-05-26T05:29:55 | D131: 450000 | E131: 450000 | F131: INR | G131: =tblSalaries[[#This Row],[clean Salary (in local currency)]]*VLOOKUP(tblSalaries[[#This Row],[Currency]],tblXrate[#Data],2,FALSE)/1000 -> 8.013562509 | H131: deputy manager | I131: Manager | J131: India | K131: =VLOOKUP(tblSalaries[[#This Row],[Where do you work]],tblCountries[[Actual]:[Mapping2]],3,FALSE) -> India | L131: All the 8 hours baby, all the 8! | M131: Missing | N131: =VLOOKUP(tblSalaries[[#This Row],[Years of Experience]],Table3[#Data],2,FALSE) -> Missing | O131: =VLOOKUP(tblSalaries[[#This Row],[How many hours of a day you work on Excel]],Table8[#Data],2,FALSE) -> 8
B132: ID0455 | C132: 2012-05-26T03:01:31 | D132: 7500 USD | E132: 7500 | F132: USD | G132: =tblSalaries[[#This Row],[clean Salary (in local currency)]]*VLOOKUP(tblSalaries[[#This Row],[Currency]],tblXrate[#Data],2,FALSE)/1000 -> 7.5 | H132: HR reporting analyst | I132: Analyst | J132: Romania | K132: =VLOOKUP(tblSalaries[[#This Row],[Where do you work]],tblCountries[[Actual]:[Mapping2]],3,FALSE) -> EU | L132: All the 8 hours baby, all the 8! | M132: Missing | N132: =VLOOKUP(tblSalaries[[#This Row],[Years of Experience]],Table3[#Data],2,FALSE) -> Missing | O132: =VLOOKUP(tblSalaries[[#This Row],[How many hours of a day you work on Excel]],Table8[#Data],2,FALSE) -> 8
B133: ID0434 | C133: 2012-05-26T02:34:00 | D133: US $6,629.00 | E133: 6629 | F133: USD | G133: =tblSalaries[[#This Row],[clean Salary (in local currency)]]*VLOOKUP(tblSalaries[[#This Row],[Currency]],tblXrate[#Data],2,FALSE)/1000 -> 6.629 | H133: Engineer | I133: Engineer | J133: Dominican Republic | K133: =VLOOKUP(tblSalaries[[#This Row],[Where do you work]],tblCountries[[Actual]:[Mapping2]],3,FALSE) -> Sou&Cen America | L133: All the 8 hours baby, all the 8! | M133: Missing | N133: =VLOOKUP(tblSalaries[[#This Row],[Years of Experience]],Table3[#Data],2,FALSE) -> Missing | O133: =VLOOKUP(tblSalaries[[#This Row],[How many hours of a day you work on Excel]],Table8[#Data],2,FALSE) -> 8
B134: ID0352 | C134: 2012-05-26T01:41:32 | D134: 3,70,000 | E134: 370000 | F134: INR | G134: =tblSalaries[[#This Row],[clean Salary (in local currency)]]*VLOOKUP(tblSalaries[[#This Row],[Currency]],tblXrate[#Data],2,FALSE)/1000 -> 6.588929174 | H134: Senior Design Associate | I134: Analyst | J134: India | K134: =VLOOKUP(tblSalaries[[#This Row],[Where do you work]],tblCountries[[Actual]:[Mapping2]],3,FALSE) -> India | L134: All the 8 hours baby, all the 8! | M134: Missing | N134: =VLOOKUP(tblSalaries[[#This Row],[Years of Experience]],Table3[#Data],2,FALSE) -> Missing | O134: =VLOOKUP(tblSalaries[[#This Row],[How many hours of a day you work on Excel]],Table8[#Data],2,FALSE) -> 8
B135: ID0492 | C135: 2012-05-26T03:34:15 | D135: 6000 | E135: 6000 | F135: USD | G135: =tblSalaries[[#This Row],[clean Salary (in local currency)]]*VLOOKUP(tblSalaries[[#This Row],[Currency]],tblXrate[#Data],2,FALSE)/1000 -> 6 | H135: MIS | I135: Reporting | J135: India | K135: =VLOOKUP(tblSalaries[[#This Row],[Where do you work]],tblCountries[[Actual]:[Mapping2]],3,FALSE) -> India | L135: All the 8 hours baby, all the 8! | M135: Missing | N135: =VLOOKUP(tblSalaries[[#This Row],[Years of Experience]],Table3[#Data],2,FALSE) -> Missing | O135: =VLOOKUP(tblSalaries[[#This Row],[How many hours of a day you work on Excel]],Table8[#Data],2,FALSE) -> 8
B136: ID0267 | C136: 2012-05-26T01:08:39 | D136: rs 2.76 lakhs per year | E136: 276000 | F136: INR | G136: =tblSalaries[[#This Row],[clean Salary (in local currency)]]*VLOOKUP(tblSalaries[[#This Row],[Currency]],tblXrate[#Data],2,FALSE)/1000 -> 4.914985006 | H136: analyst | I136: Analyst | J136: India | K136: =VLOOKUP(tblSalaries[[#This Row],[Where do you work]],tblCountries[[Actual]:[Mapping2]],3,FALSE) -> India | L136: All the 8 hours baby, all the 8! | M136: Missing | N136: =VLOOKUP(tblSalaries[[#This Row],[Years of Experience]],Table3[#Data],2,FALSE) -> Missing | O136: =VLOOKUP(tblSalaries[[#This Row],[How many hours of a day you work on Excel]],Table8[#Data],2,FALSE) -> 8
B137: ID0324 | C137: 2012-05-26T01:29:32 | D137: US$ 4.545 | E137: 4545 | F137: USD | G137: =tblSalaries[[#This Row],[clean Salary (in local currency)]]*VLOOKUP(tblSalaries[[#This Row],[Currency]],tblXrate[#Data],2,FALSE)/1000 -> 4.545 | H137: Supply Processes Analyst | I137: Analyst | J137: Brasil | K137: =VLOOKUP(tblSalaries[[#This Row],[Where do you work]],tblCountries[[Actual]:[Mapping2]],3,FALSE) -> Sou&Cen America | L137: All the 8 hours baby, all the 8! | M137: Missing | N137: =VLOOKUP(tblSalaries[[#This Row],[Years of Experience]],Table3[#Data],2,FALSE) -> Missing | O137: =VLOOKUP(tblSalaries[[#This Row],[How many hours of a day you work on Excel]],Table8[#Data],2,FALSE) -> 8
B138: ID0427 | C138: 2012-05-26T02:25:10 | D138: 20000 RS | E138: 240000 | F138: INR | G138: =tblSalaries[[#This Row],[clean Salary (in local currency)]]*VLOOKUP(tblSalaries[[#This Row],[Currency]],tblXrate[#Data],2,FALSE)/1000 -> 4.273900005 | H138: WFM Team Lead | I138: Manager | J138: India | K138: =VLOOKUP(tblSalaries[[#This Row],[Where do you work]],tblCountries[[Actual]:[Mapping2]],3,FALSE) -> India | L138: All the 8 hours baby, all the 8! | M138: Missing | N138: =VLOOKUP(tblSalaries[[#This Row],[Years of Experience]],Table3[#Data],2,FALSE) -> Missing | O138: =VLOOKUP(tblSalaries[[#This Row],[How many hours of a day you work on Excel]],Table8[#Data],2,FALSE) -> 8
B139: ID0197 | C139: 2012-05-26T00:52:30 | D139: 233000 | E139: 233000 | F139: INR | G139: =tblSalaries[[#This Row],[clean Salary (in local currency)]]*VLOOKUP(tblSalaries[[#This Row],[Currency]],tblXrate[#Data],2,FALSE)/1000 -> 4.149244588 | H139: Asst. Manager (MIS) | I139: Manager | J139: India | K139: =VLOOKUP(tblSalaries[[#This Row],[Where do you work]],tblCountries[[Actual]:[Mapping2]],3,FALSE) -> India | L139: All the 8 hours baby, all the 8! | M139: Missing | N139: =VLOOKUP(tblSalaries[[#This Row],[Years of Experience]],Table3[#Data],2,FALSE) -> Missing | O139: =VLOOKUP(tblSalaries[[#This Row],[How many hours of a day you work on Excel]],Table8[#Data],2,FALSE) -> 8
B140: ID0202 | C140: 2012-05-26T00:53:18 | D140: INR 16000 | E140: 192000 | F140: INR | G140: =tblSalaries[[#This Row],[clean Salary (in local currency)]]*VLOOKUP(tblSalaries[[#This Row],[Currency]],tblXrate[#Data],2,FALSE)/1000 -> 3.419120004 | H140: Administrative | I140: Analyst | J140: India | K140: =VLOOKUP(tblSalaries[[#This Row],[Where do you work]],tblCountries[[Actual]:[Mapping2]],3,FALSE) -> India | L140: All the 8 hours baby, all the 8! | M140: Missing | N140: =VLOOKUP(tblSalaries[[#This Row],[Years of Experience]],Table3[#Data],2,FALSE) -> Missing | O140: =VLOOKUP(tblSalaries[[#This Row],[How many hours of a day you work on Excel]],Table8[#Data],2,FALSE) -> 8
B141: ID0804 | C141: 2012-05-26T21:24:39 | D141: ZAR900,000 | E141: 900000 | F141: ZAR | G141: =tblSalaries[[#This Row],[clean Salary (in local currency)]]*VLOOKUP(tblSalaries[[#This Row],[Currency]],tblXrate[#Data],2,FALSE)/1000 -> 109.7296019 | H141: Business Analyst | I141: Analyst | J141: South Africa | K141: =VLOOKUP(tblSalaries[[#This Row],[Where do you work]],tblCountries[[Actual]:[Mapping2]],3,FALSE) -> Africa | L141: All the 8 hours baby, all the 8! | M141: 40 | N141: =VLOOKUP(tblSalaries[[#This Row],[Years of Experience]],Table3[#Data],2,FALSE) -> 16+ | O141: =VLOOKUP(tblSalaries[[#This Row],[How many hours of a day you work on Excel]],Table8[#Data],2,FALSE) -> 8
B142: ID1452 | C142: 2012-05-30T12:56:38 | D142: Rs 6 lakhs/annum | E142: 600000 | F142: INR | G142: =tblSalaries[[#This Row],[clean Salary (in local currency)]]*VLOOKUP(tblSalaries[[#This Row],[Currency]],tblXrate[#Data],2,FALSE)/1000 -> 10.68475001 | H142: consultant | I142: Consultant | J142: India | K142: =VLOOKUP(tblSalaries[[#This Row],[Where do you work]],tblCountries[[Actual]:[Mapping2]],3,FALSE) -> India | L142: 2 to 3 hours per day | M142: 36 | N142: =VLOOKUP(tblSalaries[[#This Row],[Years of Experience]],Table3[#Data],2,FALSE) -> 16+ | O142: =VLOOKUP(tblSalaries[[#This Row],[How many hours of a day you work on Excel]],Table8[#Data],2,FALSE) -> 2.5
B143: ID0987 | C143: 2012-05-28T08:35:32 | D143: A$107000 | E143: 107000 | F143: AUD | G143: =tblSalaries[[#This Row],[clean Salary (in local currency)]]*VLOOKUP(tblSalaries[[#This Row],[Currency]],tblXrate[#Data],2,FALSE)/1000 -> 109.1303332 | H143: Management Accountant | I143: Manager | J143: Australia | K143: =VLOOKUP(tblSalaries[[#This Row],[Where do you work]],tblCountries[[Actual]:[Mapping2]],3,FALSE) -> Australia & NZ | L143: 4 to 6 hours a day | M143: 35 | N143: =VLOOKUP(tblSalaries[[#This Row],[Years of Experience]],Table3[#Data],2,FALSE) -> 16+ | O143: =VLOOKUP(tblSalaries[[#This Row],[How many hours of a day you work on Excel]],Table8[#Data],2,FALSE) -> 5
B144: ID1472 | C144: 2012-05-30T16:49:15 | D144: Â£25000 | E144: 25000 | F144: GBP | G144: =tblSalaries[[#This Row],[clean Salary (in local currency)]]*VLOOKUP(tblSalaries[[#This Row],[Currency]],tblXrate[#Data],2,FALSE)/1000 -> 39.4044568 | H144: Assistant Financial Accountant | I144: Accountant | J144: UK | K144: =VLOOKUP(tblSalaries[[#This Row],[Where do you work]],tblCountries[[Actual]:[Mapping2]],3,FALSE) -> UK | L144: 4 to 6 hours a day | M144: 35 | N144: =VLOOKUP(tblSalaries[[#This Row],[Years of Experience]],Table3[#Data],2,FALSE) -> 16+ | O144: =VLOOKUP(tblSalaries[[#This Row],[How many hours of a day you work on Excel]],Table8[#Data],2,FALSE) -> 5
B145: ID1895 | C145: 2012-06-18T18:26:47 | D145: Â£35000 | E145: 35000 | F145: GBP | G145: =tblSalaries[[#This Row],[clean Salary (in local currency)]]*VLOOKUP(tblSalaries[[#This Row],[Currency]],tblXrate[#Data],2,FALSE)/1000 -> 55.16623952 | H145: Process Analyst | I145: Analyst | J145: UK | K145: =VLOOKUP(tblSalaries[[#This Row],[Where do you work]],tblCountries[[Actual]:[Mapping2]],3,FALSE) -> UK | L145: All the 8 hours baby, all the 8! | M145: 34 | N145: =VLOOKUP(tblSalaries[[#This Row],[Years of Experience]],Table3[#Data],2,FALSE) -> 16+ | O145: =VLOOKUP(tblSalaries[[#This Row],[How many hours of a day you work on Excel]],Table8[#Data],2,FALSE) -> 8
B146: ID1377 | C146: 2012-05-29T21:07:27 | D146: 24000 | E146: 24000 | F146: USD | G146: =tblSalaries[[#This Row],[clean Salary (in local currency)]]*VLOOKUP(tblSalaries[[#This Row],[Currency]],tblXrate[#Data],2,FALSE)/1000 -> 24 | H146: clerk 24 hrs per week | I146: Analyst | J146: USA | K146: =VLOOKUP(tblSalaries[[#This Row],[Where do you work]],tblCountries[[Actual]:[Mapping2]],3,FALSE) -> USA | L146: 1 or 2 hours a day | M146: 33 | N146: =VLOOKUP(tblSalaries[[#This Row],[Years of Experience]],Table3[#Data],2,FALSE) -> 16+ | O146: =VLOOKUP(tblSalaries[[#This Row],[How many hours of a day you work on Excel]],Table8[#Data],2,FALSE) -> 1.5
B147: ID0620 | C147: 2012-05-26T10:59:10 | D147: 250000 | E147: 250000 | F147: CAD | G147: =tblSalaries[[#This Row],[clean Salary (in local currency)]]*VLOOKUP(tblSalaries[[#This Row],[Currency]],tblXrate[#Data],2,FALSE)/1000 -> 245.8403808 | H147: Business Analyst | I147: Analyst | J147: Canada | K147: =VLOOKUP(tblSalaries[[#This Row],[Where do you work]],tblCountries[[Actual]:[Mapping2]],3,FALSE) -> Canada | L147: 4 to 6 hours a day | M147: 32 | N147: =VLOOKUP(tblSalaries[[#This Row],[Years of Experience]],Table3[#Data],2,FALSE) -> 16+ | O147: =VLOOKUP(tblSalaries[[#This Row],[How many hours of a day you work on Excel]],Table8[#Data],2,FALSE) -> 5
B148: ID0584 | C148: 2012-05-26T07:44:04 | D148: 300000 | E148: 300000 | F148: USD | G148: =tblSalaries[[#This Row],[clean Salary (in local currency)]]*VLOOKUP(tblSalaries[[#This Row],[Currency]],tblXrate[#Data],2,FALSE)/1000 -> 300 | H148: CEO | I148: CXO or Top Mgmt. | J148: USA | K148: =VLOOKUP(tblSalaries[[#This Row],[Where do you work]],tblCountries[[Actual]:[Mapping2]],3,FALSE) -> USA | L148: 2 to 3 hours per day | M148: 30 | N148: =VLOOKUP(tblSalaries[[#This Row],[Years of Experience]],Table3[#Data],2,FALSE) -> 16+ | O148: =VLOOKUP(tblSalaries[[#This Row],[How many hours of a day you work on Excel]],Table8[#Data],2,FALSE) -> 2.5
B149: ID1565 | C149: 2012-06-01T00:02:34 | D149: Rs. 700000 | E149: 700000 | F149: INR | G149: =tblSalaries[[#This Row],[clean Salary (in local currency)]]*VLOOKUP(tblSalaries[[#This Row],[Currency]],tblXrate[#Data],2,FALSE)/1000 -> 12.46554168 | H149: Manager - Business Development | I149: Manager | J149: India | K149: =VLOOKUP(tblSalaries[[#This Row],[Where do you work]],tblCountries[[Actual]:[Mapping2]],3,FALSE) -> India | L149: All the 8 hours baby, all the 8! | M149: 30 | N149: =VLOOKUP(tblSalaries[[#This Row],[Years of Experience]],Table3[#Data],2,FALSE) -> 16+ | O149: =VLOOKUP(tblSalaries[[#This Row],[How many hours of a day you work on Excel]],Table8[#Data],2,FALSE) -> 8
B150: ID1393 | C150: 2012-05-29T22:02:31 | D150: 150000 | E150: 150000 | F150: USD | G150: =tblSalaries[[#This Row],[clean Salary (in local currency)]]*VLOOKUP(tblSalaries[[#This Row],[Currency]],tblXrate[#Data],2,FALSE)/1000 -> 150 | H150: VP, Business Management | I150: Manager | J150: USA | K150: =VLOOKUP(tblSalaries[[#This Row],[Where do you work]],tblCountries[[Actual]:[Mapping2]],3,FALSE) -> USA | L150: 2 to 3 hours per day | M150: 30 | N150: =VLOOKUP(tblSalaries[[#This Row],[Years of Experience]],Table3[#Data],2,FALSE) -> 16+ | O150: =VLOOKUP(tblSalaries[[#This Row],[How many hours of a day you work on Excel]],Table8[#Data],2,FALSE) -> 2.5
B151: ID1412 | C151: 2012-05-29T23:39:13 | D151: 150000 | E151: 150000 | F151: USD | G151: =tblSalaries[[#This Row],[clean Salary (in local currency)]]*VLOOKUP(tblSalaries[[#This Row],[Currency]],tblXrate[#Data],2,FALSE)/1000 -> 150 | H151: Senior Analyst | I151: Analyst | J151: USA | K151: =VLOOKUP(tblSalaries[[#This Row],[Where do you work]],tblCountries[[Actual]:[Mapping2]],3,FALSE) -> USA | L151: 2 to 3 hours per day | M151: 30 | N151: =VLOOKUP(tblSalaries[[#This Row],[Years of Experience]],Table3[#Data],2,FALSE) -> 16+ | O151: =VLOOKUP(tblSalaries[[#This Row],[How many hours of a day you work on Excel]],Table8[#Data],2,FALSE) -> 2.5
B152: ID1534 | C152: 2012-05-31T10:37:38 | D152: 105000 | E152: 105000 | F152: USD | G152: =tblSalaries[[#This Row],[clean Salary (in local currency)]]*VLOOKUP(tblSalaries[[#This Row],[Currency]],tblXrate[#Data],2,FALSE)/1000 -> 105 | H152: Business Banker | I152: Manager | J152: USA | K152: =VLOOKUP(tblSalaries[[#This Row],[Where do you work]],tblCountries[[Actual]:[Mapping2]],3,FALSE) -> USA | L152: 1 or 2 hours a day | M152: 30 | N152: =VLOOKUP(tblSalaries[[#This Row],[Years of Experience]],Table3[#Data],2,FALSE) -> 16+ | O152: =VLOOKUP(tblSalaries[[#This Row],[How many hours of a day you work on Excel]],Table8[#Data],2,FALSE) -> 1.5
B153: ID1356 | C153: 2012-05-29T18:55:18 | D153: 100000 | E153: 100000 | F153: AUD | G153: =tblSalaries[[#This Row],[clean Salary (in local currency)]]*VLOOKUP(tblSalaries[[#This Row],[Currency]],tblXrate[#Data],2,FALSE)/1000 -> 101.9909656 | H153: Principal advisor | I153: Consultant | J153: Australia | K153: =VLOOKUP(tblSalaries[[#This Row],[Where do you work]],tblCountries[[Actual]:[Mapping2]],3,FALSE) -> Australia & NZ | L153: 1 or 2 hours a day | M153: 30 | N153: =VLOOKUP(tblSalaries[[#This Row],[Years of Experience]],Table3[#Data],2,FALSE) -> 16+ | O153: =VLOOKUP(tblSalaries[[#This Row],[How many hours of a day you work on Excel]],Table8[#Data],2,FALSE) -> 1.5
B154: ID1222 | C154: 2012-05-29T01:12:28 | D154: 90000 | E154: 90000 | F154: USD | G154: =tblSalaries[[#This Row],[clean Salary (in local currency)]]*VLOOKUP(tblSalaries[[#This Row],[Currency]],tblXrate[#Data],2,FALSE)/1000 -> 90 | H154: Senior Analyst | I154: Analyst | J154: USA | K154: =VLOOKUP(tblSalaries[[#This Row],[Where do you work]],tblCountries[[Actual]:[Mapping2]],3,FALSE) -> USA | L154: 4 to 6 hours a day | M154: 30 | N154: =VLOOKUP(tblSalaries[[#This Row],[Years of Experience]],Table3[#Data],2,FALSE) -> 16+ | O154: =VLOOKUP(tblSalaries[[#This Row],[How many hours of a day you work on Excel]],Table8[#Data],2,FALSE) -> 5
B155: ID1586 | C155: 2012-06-01T08:52:31 | D155: 85000 | E155: 85000 | F155: AUD | G155: =tblSalaries[[#This Row],[clean Salary (in local currency)]]*VLOOKUP(tblSalaries[[#This Row],[Currency]],tblXrate[#Data],2,FALSE)/1000 -> 86.69232079 | H155: Administrator | I155: Analyst | J155: Australia | K155: =VLOOKUP(tblSalaries[[#This Row],[Where do you work]],tblCountries[[Actual]:[Mapping2]],3,FALSE) -> Australia & NZ | L155: 4 to 6 hours a day | M155: 30 | N155: =VLOOKUP(tblSalaries[[#This Row],[Years of Experience]],Table3[#Data],2,FALSE) -> 16+ | O155: =VLOOKUP(tblSalaries[[#This Row],[How many hours of a day you work on Excel]],Table8[#Data],2,FALSE) -> 5
B156: ID1369 | C156: 2012-05-29T19:47:18 | D156: 57500 | E156: 57500 | F156: USD | G156: =tblSalaries[[#This Row],[clean Salary (in local currency)]]*VLOOKUP(tblSalaries[[#This Row],[Currency]],tblXrate[#Data],2,FALSE)/1000 -> 57.5 | H156: Planning Supervisor | I156: Manager | J156: USA | K156: =VLOOKUP(tblSalaries[[#This Row],[Where do you work]],tblCountries[[Actual]:[Mapping2]],3,FALSE) -> USA | L156: 4 to 6 hours a day | M156: 30 | N156: =VLOOKUP(tblSalaries[[#This Row],[Years of Experience]],Table3[#Data],2,FALSE) -> 16+ | O156: =VLOOKUP(tblSalaries[[#This Row],[How many hours of a day you work on Excel]],Table8[#Data],2,FALSE) -> 5
B157: ID1577 | C157: 2012-06-01T05:32:31 | D157: 35000 GBP | E157: 35000 | F157: GBP | G157: =tblSalaries[[#This Row],[clean Salary (in local currency)]]*VLOOKUP(tblSalaries[[#This Row],[Currency]],tblXrate[#Data],2,FALSE)/1000 -> 55.16623952 | H157: finance director | I157: CXO or Top Mgmt. | J157: UK | K157: =VLOOKUP(tblSalaries[[#This Row],[Where do you work]],tblCountries[[Actual]:[Mapping2]],3,FALSE) -> UK | L157: 2 to 3 hours per day | M157: 30 | N157: =VLOOKUP(tblSalaries[[#This Row],[Years of Experience]],Table3[#Data],2,FALSE) -> 16+ | O157: =VLOOKUP(tblSalaries[[#This Row],[How many hours of a day you work on Excel]],Table8[#Data],2,FALSE) -> 2.5
B158: ID0643 | C158: 2012-05-26T11:47:18 | D158: 53000 | E158: 53000 | F158: USD | G158: =tblSalaries[[#This Row],[clean Salary (in local currency)]]*VLOOKUP(tblSalaries[[#This Row],[Currency]],tblXrate[#Data],2,FALSE)/1000 -> 53 | H158: Financial Analyst | I158: Analyst | J158: USA | K158: =VLOOKUP(tblSalaries[[#This Row],[Where do you work]],tblCountries[[Actual]:[Mapping2]],3,FALSE) -> USA | L158: 4 to 6 hours a day | M158: 30 | N158: =VLOOKUP(tblSalaries[[#This Row],[Years of Experience]],Table3[#Data],2,FALSE) -> 16+ | O158: =VLOOKUP(tblSalaries[[#This Row],[How many hours of a day you work on Excel]],Table8[#Data],2,FALSE) -> 5
B159: ID1088 | C159: 2012-05-28T15:48:23 | D159: 50000 US $ per year | E159: 50000 | F159: USD | G159: =tblSalaries[[#This Row],[clean Salary (in local currency)]]*VLOOKUP(tblSalaries[[#This Row],[Currency]],tblXrate[#Data],2,FALSE)/1000 -> 50 | H159: Sr. Manager MIS | I159: Manager | J159: India | K159: =VLOOKUP(tblSalaries[[#This Row],[Where do you work]],tblCountries[[Actual]:[Mapping2]],3,FALSE) -> India | L159: 2 to 3 hours per day | M159: 30 | N159: =VLOOKUP(tblSalaries[[#This Row],[Years of Experience]],Table3[#Data],2,FALSE) -> 16+ | O159: =VLOOKUP(tblSalaries[[#This Row],[How many hours of a day you work on Excel]],Table8[#Data],2,FALSE) -> 2.5
B160: ID1307 | C160: 2012-05-29T14:10:28 | D160: AUS 49,000 | E160: 49000 | F160: AUD | G160: =tblSalaries[[#This Row],[clean Salary (in local currency)]]*VLOOKUP(tblSalaries[[#This Row],[Currency]],tblXrate[#Data],2,FALSE)/1000 -> 49.97557316 | H160: Document Control | I160: Controller | J160: Australia | K160: =VLOOKUP(tblSalaries[[#This Row],[Where do you work]],tblCountries[[Actual]:[Mapping2]],3,FALSE) -> Australia & NZ | L160: 4 to 6 hours a day | M160: 30 | N160: =VLOOKUP(tblSalaries[[#This Row],[Years of Experience]],Table3[#Data],2,FALSE) -> 16+ | O160: =VLOOKUP(tblSalaries[[#This Row],[How many hours of a day you work on Excel]],Table8[#Data],2,FALSE) -> 5
B161: ID1404 | C161: 2012-05-29T22:56:24 | D161: 37K | E161: 37000 | F161: USD | G161: =tblSalaries[[#This Row],[clean Salary (in local currency)]]*VLOOKUP(tblSalaries[[#This Row],[Currency]],tblXrate[#Data],2,FALSE)/1000 -> 37 | H161: Credentialing Coordinator & Productivity Reports "Guru" | I161: Reporting | J161: USA | K161: =VLOOKUP(tblSalaries[[#This Row],[Where do you work]],tblCountries[[Actual]:[Mapping2]],3,FALSE) -> USA | L161: 2 to 3 hours per day | M161: 30 | N161: =VLOOKUP(tblSalaries[[#This Row],[Years of Experience]],Table3[#Data],2,FALSE) -> 16+ | O161: =VLOOKUP(tblSalaries[[#This Row],[How many hours of a day you work on Excel]],Table8[#Data],2,FALSE) -> 2.5
B162: ID0941 | C162: 2012-05-27T23:47:25 | D162: 30000 $ | E162: 30000 | F162: USD | G162: =tblSalaries[[#This Row],[clean Salary (in local currency)]]*VLOOKUP(tblSalaries[[#This Row],[Currency]],tblXrate[#Data],2,FALSE)/1000 -> 30 | H162: Financial Expert | I162: Accountant | J162: Iran | K162: =VLOOKUP(tblSalaries[[#This Row],[Where do you work]],tblCountries[[Actual]:[Mapping2]],3,FALSE) -> Middle East | L162: 2 to 3 hours per day | M162: 30 | N162: =VLOOKUP(tblSalaries[[#This Row],[Years of Experience]],Table3[#Data],2,FALSE) -> 16+ | O162: =VLOOKUP(tblSalaries[[#This Row],[How many hours of a day you work on Excel]],Table8[#Data],2,FALSE) -> 2.5
B163: ID1418 | C163: 2012-05-30T00:34:53 | D163: 107000 | E163: 107000 | F163: USD | G163: =tblSalaries[[#This Row],[clean Salary (in local currency)]]*VLOOKUP(tblSalaries[[#This Row],[Currency]],tblXrate[#Data],2,FALSE)/1000 -> 107 | H163: Tax Manager | I163: Manager | J163: USA | K163: =VLOOKUP(tblSalaries[[#This Row],[Where do you work]],tblCountries[[Actual]:[Mapping2]],3,FALSE) -> USA | L163: All the 8 hours baby, all the 8! | M163: 29 | N163: =VLOOKUP(tblSalaries[[#This Row],[Years of Experience]],Table3[#Data],2,FALSE) -> 16+ | O163: =VLOOKUP(tblSalaries[[#This Row],[How many hours of a day you work on Excel]],Table8[#Data],2,FALSE) -> 8
B164: ID1278 | C164: 2012-05-29T10:43:49 | D164: 500000 | E164: 500000 | F164: INR | G164: =tblSalaries[[#This Row],[clean Salary (in local currency)]]*VLOOKUP(tblSalaries[[#This Row],[Currency]],tblXrate[#Data],2,FALSE)/1000 -> 8.903958344 | H164: Asstt. Manager | I164: Manager | J164: India | K164: =VLOOKUP(tblSalaries[[#This Row],[Where do you work]],tblCountries[[Actual]:[Mapping2]],3,FALSE) -> India | L164: 2 to 3 hours per day | M164: 29 | N164: =VLOOKUP(tblSalaries[[#This Row],[Years of Experience]],Table3[#Data],2,FALSE) -> 16+ | O164: =VLOOKUP(tblSalaries[[#This Row],[How many hours of a day you work on Excel]],Table8[#Data],2,FALSE) -> 2.5
B165: ID1319 | C165: 2012-05-29T15:36:25 | D165: 6lakhs | E165: 600000 | F165: INR | G165: =tblSalaries[[#This Row],[clean Salary (in local currency)]]*VLOOKUP(tblSalaries[[#This Row],[Currency]],tblXrate[#Data],2,FALSE)/1000 -> 10.68475001 | H165: General Manager | I165: Manager | J165: India | K165: =VLOOKUP(tblSalaries[[#This Row],[Where do you work]],tblCountries[[Actual]:[Mapping2]],3,FALSE) -> India | L165: 2 to 3 hours per day | M165: 28 | N165: =VLOOKUP(tblSalaries[[#This Row],[Years of Experience]],Table3[#Data],2,FALSE) -> 16+ | O165: =VLOOKUP(tblSalaries[[#This Row],[How many hours of a day you work on Excel]],Table8[#Data],2,FALSE) -> 2.5
B166: ID1286 | C166: 2012-05-29T11:51:35 | D166: 192000 | E166: 192000 | F166: USD | G166: =tblSalaries[[#This Row],[clean Salary (in local currency)]]*VLOOKUP(tblSalaries[[#This Row],[Currency]],tblXrate[#Data],2,FALSE)/1000 -> 192 | H166: Publisher | I166: CXO or Top Mgmt. | J166: USA | K166: =VLOOKUP(tblSalaries[[#This Row],[Where do you work]],tblCountries[[Actual]:[Mapping2]],3,FALSE) -> USA | L166: All the 8 hours baby, all the 8! | M166: 27 | N166: =VLOOKUP(tblSalaries[[#This Row],[Years of Experience]],Table3[#Data],2,FALSE) -> 16+ | O166: =VLOOKUP(tblSalaries[[#This Row],[How many hours of a day you work on Excel]],Table8[#Data],2,FALSE) -> 8
B167: ID1525 | C167: 2012-05-31T06:13:42 | D167: 62000 | E167: 62000 | F167: USD | G167: =tblSalaries[[#This Row],[clean Salary (in local currency)]]*VLOOKUP(tblSalaries[[#This Row],[Currency]],tblXrate[#Data],2,FALSE)/1000 -> 62 | H167: info analyst | I167: Analyst | J167: USA | K167: =VLOOKUP(tblSalaries[[#This Row],[Where do you work]],tblCountries[[Actual]:[Mapping2]],3,FALSE) -> USA | L167: All the 8 hours baby, all the 8! | M167: 27 | N167: =VLOOKUP(tblSalaries[[#This Row],[Years of Experience]],Table3[#Data],2,FALSE) -> 16+ | O167: =VLOOKUP(tblSalaries[[#This Row],[How many hours of a day you work on Excel]],Table8[#Data],2,FALSE) -> 8
B168: ID0581 | C168: 2012-05-26T07:32:19 | D168: 130000 | E168: 130000 | F168: AUD | G168: =tblSalaries[[#This Row],[clean Salary (in local currency)]]*VLOOKUP(tblSalaries[[#This Row],[Currency]],tblXrate[#Data],2,FALSE)/1000 -> 132.5882553 | H168: Accountant | I168: Accountant | J168: Australia | K168: =VLOOKUP(tblSalaries[[#This Row],[Where do you work]],tblCountries[[Actual]:[Mapping2]],3,FALSE) -> Australia & NZ | L168: 2 to 3 hours per day | M168: 27 | N168: =VLOOKUP(tblSalaries[[#This Row],[Years of Experience]],Table3[#Data],2,FALSE) -> 16+ | O168: =VLOOKUP(tblSalaries[[#This Row],[How many hours of a day you work on Excel]],Table8[#Data],2,FALSE) -> 2.5
B169: ID0824 | C169: 2012-05-26T22:49:34 | D169: 75000 | E169: 75000 | F169: USD | G169: =tblSalaries[[#This Row],[clean Salary (in local currency)]]*VLOOKUP(tblSalaries[[#This Row],[Currency]],tblXrate[#Data],2,FALSE)/1000 -> 75 | H169: sr financial analyst | I169: Analyst | J169: USA | K169: =VLOOKUP(tblSalaries[[#This Row],[Where do you work]],tblCountries[[Actual]:[Mapping2]],3,FALSE) -> USA | L169: 2 to 3 hours per day | M169: 27 | N169: =VLOOKUP(tblSalaries[[#This Row],[Years of Experience]],Table3[#Data],2,FALSE) -> 16+ | O169: =VLOOKUP(tblSalaries[[#This Row],[How many hours of a day you work on Excel]],Table8[#Data],2,FALSE) -> 2.5
B170: ID0574 | C170: 2012-05-26T06:57:09 | D170: Â£28800 | E170: 28800 | F170: GBP | G170: =tblSalaries[[#This Row],[clean Salary (in local currency)]]*VLOOKUP(tblSalaries[[#This Row],[Currency]],tblXrate[#Data],2,FALSE)/1000 -> 45.39393424 | H170: Finance Manager | I170: Manager | J170: UK | K170: =VLOOKUP(tblSalaries[[#This Row],[Where do you work]],tblCountries[[Actual]:[Mapping2]],3,FALSE) -> UK | L170: 4 to 6 hours a day | M170: 27 | N170: =VLOOKUP(tblSalaries[[#This Row],[Years of Experience]],Table3[#Data],2,FALSE) -> 16+ | O170: =VLOOKUP(tblSalaries[[#This Row],[How many hours of a day you work on Excel]],Table8[#Data],2,FALSE) -> 5
B171: ID1894 | C171: 2012-06-18T17:51:52 | D171: Rs. 350000 | E171: 350000 | F171: INR | G171: =tblSalaries[[#This Row],[clean Salary (in local currency)]]*VLOOKUP(tblSalaries[[#This Row],[Currency]],tblXrate[#Data],2,FALSE)/1000 -> 6.232770841 | H171: manager purchase | I171: Manager | J171: India | K171: =VLOOKUP(tblSalaries[[#This Row],[Where do you work]],tblCountries[[Actual]:[Mapping2]],3,FALSE) -> India | L171: 2 to 3 hours per day | M171: 27 | N171: =VLOOKUP(tblSalaries[[#This Row],[Years of Experience]],Table3[#Data],2,FALSE) -> 16+ | O171: =VLOOKUP(tblSalaries[[#This Row],[How many hours of a day you work on Excel]],Table8[#Data],2,FALSE) -> 2.5
B172: ID0622 | C172: 2012-05-26T11:01:56 | D172: 700 | E172: 8400 | F172: USD | G172: =tblSalaries[[#This Row],[clean Salary (in local currency)]]*VLOOKUP(tblSalaries[[#This Row],[Currency]],tblXrate[#Data],2,FALSE)/1000 -> 8.4 | H172: SYSTEM MANAGER | I172: Manager | J172: India | K172: =VLOOKUP(tblSalaries[[#This Row],[Where do you work]],tblCountries[[Actual]:[Mapping2]],3,FALSE) -> India | L172: All the 8 hours baby, all the 8! | M172: 26 | N172: =VLOOKUP(tblSalaries[[#This Row],[Years of Experience]],Table3[#Data],2,FALSE) -> 16+ | O172: =VLOOKUP(tblSalaries[[#This Row],[How many hours of a day you work on Excel]],Table8[#Data],2,FALSE) -> 8
B173: ID1070 | C173: 2012-05-28T14:53:02 | D173: 50000 | E173: 50000 | F173: USD | G173: =tblSalaries[[#This Row],[clean Salary (in local currency)]]*VLOOKUP(tblSalaries[[#This Row],[Currency]],tblXrate[#Data],2,FALSE)/1000 -> 50 | H173: Managing Partner | I173: CXO or Top Mgmt. | J173: India | K173: =VLOOKUP(tblSalaries[[#This Row],[Where do you work]],tblCountries[[Actual]:[Mapping2]],3,FALSE) -> India | L173: 1 or 2 hours a day | M173: 26 | N173: =VLOOKUP(tblSalaries[[#This Row],[Years of Experience]],Table3[#Data],2,FALSE) -> 16+ | O173: =VLOOKUP(tblSalaries[[#This Row],[How many hours of a day you work on Excel]],Table8[#Data],2,FALSE) -> 1.5
B174: ID1197 | C174: 2012-05-28T23:25:32 | D174: 82.000 Euro (pre-tax) | E174: 82000 | F174: EUR | G174: =tblSalaries[[#This Row],[clean Salary (in local currency)]]*VLOOKUP(tblSalaries[[#This Row],[Currency]],tblXrate[#Data],2,FALSE)/1000 -> 104.172754 | H174: Finance Project Manager | I174: Manager | J174: Netherlands | K174: =VLOOKUP(tblSalaries[[#This Row],[Where do you work]],tblCountries[[Actual]:[Mapping2]],3,FALSE) -> EU-16 | L174: All the 8 hours baby, all the 8! | M174: 25 | N174: =VLOOKUP(tblSalaries[[#This Row],[Years of Experience]],Table3[#Data],2,FALSE) -> 16+ | O174: =VLOOKUP(tblSalaries[[#This Row],[How many hours of a day you work on Excel]],Table8[#Data],2,FALSE) -> 8
B175: ID1320 | C175: 2012-05-29T15:36:42 | D175: 139000 | E175: 139000 | F175: EUR | G175: =tblSalaries[[#This Row],[clean Salary (in local currency)]]*VLOOKUP(tblSalaries[[#This Row],[Currency]],tblXrate[#Data],2,FALSE)/1000 -> 176.585522 | H175: NAF Support Manager | I175: Manager | J175: Germany | K175: =VLOOKUP(tblSalaries[[#This Row],[Where do you work]],tblCountries[[Actual]:[Mapping2]],3,FALSE) -> EU-16 | L175: 1 or 2 hours a day | M175: 25 | N175: =VLOOKUP(tblSalaries[[#This Row],[Years of Experience]],Table3[#Data],2,FALSE) -> 16+ | O175: =VLOOKUP(tblSalaries[[#This Row],[How many hours of a day you work on Excel]],Table8[#Data],2,FALSE) -> 1.5
B176: ID1391 | C176: 2012-05-29T21:54:33 | D176: 62000 | E176: 62000 | F176: USD | G176: =tblSalaries[[#This Row],[clean Salary (in local currency)]]*VLOOKUP(tblSalaries[[#This Row],[Currency]],tblXrate[#Data],2,FALSE)/1000 -> 62 | H176: Measurement Specialist | I176: Specialist | J176: USA | K176: =VLOOKUP(tblSalaries[[#This Row],[Where do you work]],tblCountries[[Actual]:[Mapping2]],3,FALSE) -> USA | L176: All the 8 hours baby, all the 8! | M176: 25 | N176: =VLOOKUP(tblSalaries[[#This Row],[Years of Experience]],Table3[#Data],2,FALSE) -> 16+ | O176: =VLOOKUP(tblSalaries[[#This Row],[How many hours of a day you work on Excel]],Table8[#Data],2,FALSE) -> 8
B177: ID0927 | C177: 2012-05-27T21:21:41 | D177: 150000 | E177: 150000 | F177: USD | G177: =tblSalaries[[#This Row],[clean Salary (in local currency)]]*VLOOKUP(tblSalaries[[#This Row],[Currency]],tblXrate[#Data],2,FALSE)/1000 -> 150 | H177: Controller | I177: Controller | J177: USA | K177: =VLOOKUP(tblSalaries[[#This Row],[Where do you work]],tblCountries[[Actual]:[Mapping2]],3,FALSE) -> USA | L177: 4 to 6 hours a day | M177: 25 | N177: =VLOOKUP(tblSalaries[[#This Row],[Years of Experience]],Table3[#Data],2,FALSE) -> 16+ | O177: =VLOOKUP(tblSalaries[[#This Row],[How many hours of a day you work on Excel]],Table8[#Data],2,FALSE) -> 5
B178: ID1002 | C178: 2012-05-28T10:21:58 | D178: NZD 180000 | E178: 180000 | F178: NZD | G178: =tblSalaries[[#This Row],[clean Salary (in local currency)]]*VLOOKUP(tblSalaries[[#This Row],[Currency]],tblXrate[#Data],2,FALSE)/1000 -> 143.5658568 | H178: Commercial Manager | I178: Manager | J178: New Zealand | K178: =VLOOKUP(tblSalaries[[#This Row],[Where do you work]],tblCountries[[Actual]:[Mapping2]],3,FALSE) -> Australia & NZ | L178: 4 to 6 hours a day | M178: 25 | N178: =VLOOKUP(tblSalaries[[#This Row],[Years of Experience]],Table3[#Data],2,FALSE) -> 16+ | O178: =VLOOKUP(tblSalaries[[#This Row],[How many hours of a day you work on Excel]],Table8[#Data],2,FALSE) -> 5
B179: ID0870 | C179: 2012-05-27T07:19:14 | D179: 135000 | E179: 135000 | F179: USD | G179: =tblSalaries[[#This Row],[clean Salary (in local currency)]]*VLOOKUP(tblSalaries[[#This Row],[Currency]],tblXrate[#Data],2,FALSE)/1000 -> 135 | H179: Director, P&A | I179: CXO or Top Mgmt. | J179: USA | K179: =VLOOKUP(tblSalaries[[#This Row],[Where do you work]],tblCountries[[Actual]:[Mapping2]],3,FALSE) -> USA | L179: 4 to 6 hours a day | M179: 25 | N179: =VLOOKUP(tblSalaries[[#This Row],[Years of Experience]],Table3[#Data],2,FALSE) -> 16+ | O179: =VLOOKUP(tblSalaries[[#This Row],[How many hours of a day you work on Excel]],Table8[#Data],2,FALSE) -> 5
B180: ID1401 | C180: 2012-05-29T22:47:10 | D180: 130000 | E180: 130000 | F180: USD | G180: =tblSalaries[[#This Row],[clean Salary (in local currency)]]*VLOOKUP(tblSalaries[[#This Row],[Currency]],tblXrate[#Data],2,FALSE)/1000 -> 130 | H180: Manager | I180: Manager | J180: USA | K180: =VLOOKUP(tblSalaries[[#This Row],[Where do you work]],tblCountries[[Actual]:[Mapping2]],3,FALSE) -> USA | L180: 1 or 2 hours a day | M180: 25 | N180: =VLOOKUP(tblSalaries[[#This Row],[Years of Experience]],Table3[#Data],2,FALSE) -> 16+ | O180: =VLOOKUP(tblSalaries[[#This Row],[How many hours of a day you work on Excel]],Table8[#Data],2,FALSE) -> 1.5
B181: ID1364 | C181: 2012-05-29T19:12:19 | D181: 125000 | E181: 125000 | F181: USD | G181: =tblSalaries[[#This Row],[clean Salary (in local currency)]]*VLOOKUP(tblSalaries[[#This Row],[Currency]],tblXrate[#Data],2,FALSE)/1000 -> 125 | H181: Finance Manager | I181: Manager | J181: USA | K181: =VLOOKUP(tblSalaries[[#This Row],[Where do you work]],tblCountries[[Actual]:[Mapping2]],3,FALSE) -> USA | L181: 4 to 6 hours a day | M181: 25 | N181: =VLOOKUP(tblSalaries[[#This Row],[Years of Experience]],Table3[#Data],2,FALSE) -> 16+ | O181: =VLOOKUP(tblSalaries[[#This Row],[How many hours of a day you work on Excel]],Table8[#Data],2,FALSE) -> 5
B182: ID1213 | C182: 2012-05-29T00:26:21 | D182: DKK 625000 | E182: 625000 | F182: DKK | G182: =tblSalaries[[#This Row],[clean Salary (in local currency)]]*VLOOKUP(tblSalaries[[#This Row],[Currency]],tblXrate[#Data],2,FALSE)/1000 -> 106.8151483 | H182: Manager Business Controlling | I182: Manager | J182: Denmark | K182: =VLOOKUP(tblSalaries[[#This Row],[Where do you work]],tblCountries[[Actual]:[Mapping2]],3,FALSE) -> EU | L182: 4 to 6 hours a day | M182: 25 | N182: =VLOOKUP(tblSalaries[[#This Row],[Years of Experience]],Table3[#Data],2,FALSE) -> 16+ | O182: =VLOOKUP(tblSalaries[[#This Row],[How many hours of a day you work on Excel]],Table8[#Data],2,FALSE) -> 5
B183: ID1564 | C183: 2012-05-31T23:48:36 | D183: USD90,000 | E183: 90000 | F183: USD | G183: =tblSalaries[[#This Row],[clean Salary (in local currency)]]*VLOOKUP(tblSalaries[[#This Row],[Currency]],tblXrate[#Data],2,FALSE)/1000 -> 90 | H183: Operationsl Regional Manager | I183: Manager | J183: USA | K183: =VLOOKUP(tblSalaries[[#This Row],[Where do you work]],tblCountries[[Actual]:[Mapping2]],3,FALSE) -> USA | L183: 4 to 6 hours a day | M183: 25 | N183: =VLOOKUP(tblSalaries[[#This Row],[Years of Experience]],Table3[#Data],2,FALSE) -> 16+ | O183: =VLOOKUP(tblSalaries[[#This Row],[How many hours of a day you work on Excel]],Table8[#Data],2,FALSE) -> 5
B184: ID1384 | C184: 2012-05-29T21:38:10 | D184: 85000 | E184: 85000 | F184: USD | G184: =tblSalaries[[#This Row],[clean Salary (in local currency)]]*VLOOKUP(tblSalaries[[#This Row],[Currency]],tblXrate[#Data],2,FALSE)/1000 -> 85 | H184: energy engineer | I184: Engineer | J184: USA | K184: =VLOOKUP(tblSalaries[[#This Row],[Where do you work]],tblCountries[[Actual]:[Mapping2]],3,FALSE) -> USA | L184: 2 to 3 hours per day | M184: 25 | N184: =VLOOKUP(tblSalaries[[#This Row],[Years of Experience]],Table3[#Data],2,FALSE) -> 16+ | O184: =VLOOKUP(tblSalaries[[#This Row],[How many hours of a day you work on Excel]],Table8[#Data],2,FALSE) -> 2.5
B185: ID0964 | C185: 2012-05-28T05:20:41 | D185: 80000 | E185: 80000 | F185: AUD | G185: =tblSalaries[[#This Row],[clean Salary (in local currency)]]*VLOOKUP(tblSalaries[[#This Row],[Currency]],tblXrate[#Data],2,FALSE)/1000 -> 81.59277251 | H185: Billing manager | I185: Manager | J185: Australia | K185: =VLOOKUP(tblSalaries[[#This Row],[Where do you work]],tblCountries[[Actual]:[Mapping2]],3,FALSE) -> Australia & NZ | L185: 4 to 6 hours a day | M185: 25 | N185: =VLOOKUP(tblSalaries[[#This Row],[Years of Experience]],Table3[#Data],2,FALSE) -> 16+ | O185: =VLOOKUP(tblSalaries[[#This Row],[How many hours of a day you work on Excel]],Table8[#Data],2,FALSE) -> 5
B186: ID0589 | C186: 2012-05-26T08:01:44 | D186: 75000 | E186: 75000 | F186: USD | G186: =tblSalaries[[#This Row],[clean Salary (in local currency)]]*VLOOKUP(tblSalaries[[#This Row],[Currency]],tblXrate[#Data],2,FALSE)/1000 -> 75 | H186: Sr. Human Resources Analyst | I186: Analyst | J186: USA | K186: =VLOOKUP(tblSalaries[[#This Row],[Where do you work]],tblCountries[[Actual]:[Mapping2]],3,FALSE) -> USA | L186: 2 to 3 hours per day | M186: 25 | N186: =VLOOKUP(tblSalaries[[#This Row],[Years of Experience]],Table3[#Data],2,FALSE) -> 16+ | O186: =VLOOKUP(tblSalaries[[#This Row],[How many hours of a day you work on Excel]],Table8[#Data],2,FALSE) -> 2.5
B187: ID1251 | C187: 2012-05-29T05:47:34 | D187: GBP 43,000 | E187: 43000 | F187: GBP | G187: =tblSalaries[[#This Row],[clean Salary (in local currency)]]*VLOOKUP(tblSalaries[[#This Row],[Currency]],tblXrate[#Data],2,FALSE)/1000 -> 67.7756657 | H187: Financial Controller | I187: Controller | J187: UK | K187: =VLOOKUP(tblSalaries[[#This Row],[Where do you work]],tblCountries[[Actual]:[Mapping2]],3,FALSE) -> UK | L187: 4 to 6 hours a day | M187: 25 | N187: =VLOOKUP(tblSalaries[[#This Row],[Years of Experience]],Table3[#Data],2,FALSE) -> 16+ | O187: =VLOOKUP(tblSalaries[[#This Row],[How many hours of a day you work on Excel]],Table8[#Data],2,FALSE) -> 5
B188: ID1092 | C188: 2012-05-28T15:59:46 | D188: 40500 | E188: 40500 | F188: GBP | G188: =tblSalaries[[#This Row],[clean Salary (in local currency)]]*VLOOKUP(tblSalaries[[#This Row],[Currency]],tblXrate[#Data],2,FALSE)/1000 -> 63.83522002 | H188: Policy, Performance and Research Officer | I188: Manager | J188: UK | K188: =VLOOKUP(tblSalaries[[#This Row],[Where do you work]],tblCountries[[Actual]:[Mapping2]],3,FALSE) -> UK | L188: 2 to 3 hours per day | M188: 25 | N188: =VLOOKUP(tblSalaries[[#This Row],[Years of Experience]],Table3[#Data],2,FALSE) -> 16+ | O188: =VLOOKUP(tblSalaries[[#This Row],[How many hours of a day you work on Excel]],Table8[#Data],2,FALSE) -> 2.5
B189: ID1682 | C189: 2012-06-05T06:51:36 | D189: Â£40000 | E189: 40000 | F189: GBP | G189: =tblSalaries[[#This Row],[clean Salary (in local currency)]]*VLOOKUP(tblSalaries[[#This Row],[Currency]],tblXrate[#Data],2,FALSE)/1000 -> 63.04713088 | H189: Technical Specialist | I189: Specialist | J189: UK | K189: =VLOOKUP(tblSalaries[[#This Row],[Where do you work]],tblCountries[[Actual]:[Mapping2]],3,FALSE) -> UK | L189: 2 to 3 hours per day | M189: 25 | N189: =VLOOKUP(tblSalaries[[#This Row],[Years of Experience]],Table3[#Data],2,FALSE) -> 16+ | O189: =VLOOKUP(tblSalaries[[#This Row],[How many hours of a day you work on Excel]],Table8[#Data],2,FALSE) -> 2.5
B190: ID1439 | C190: 2012-05-30T04:13:50 | D190: 61000 | E190: 61000 | F190: USD | G190: =tblSalaries[[#This Row],[clean Salary (in local currency)]]*VLOOKUP(tblSalaries[[#This Row],[Currency]],tblXrate[#Data],2,FALSE)/1000 -> 61 | H190: Accounting manager | I190: Manager | J190: USA | K190: =VLOOKUP(tblSalaries[[#This Row],[Where do you work]],tblCountries[[Actual]:[Mapping2]],3,FALSE) -> USA | L190: 2 to 3 hours per day | M190: 25 | N190: =VLOOKUP(tblSalaries[[#This Row],[Years of Experience]],Table3[#Data],2,FALSE) -> 16+ | O190: =VLOOKUP(tblSalaries[[#This Row],[How many hours of a day you work on Excel]],Table8[#Data],2,FALSE) -> 2.5
B191: ID1725 | C191: 2012-06-06T22:14:27 | D191: 36000stg | E191: 36000 | F191: GBP | G191: =tblSalaries[[#This Row],[clean Salary (in local currency)]]*VLOOKUP(tblSalaries[[#This Row],[Currency]],tblXrate[#Data],2,FALSE)/1000 -> 56.74241779 | H191: contracts officer | I191: Manager | J191: UK | K191: =VLOOKUP(tblSalaries[[#This Row],[Where do you work]],tblCountries[[Actual]:[Mapping2]],3,FALSE) -> UK | L191: 1 or 2 hours a day | M191: 25 | N191: =VLOOKUP(tblSalaries[[#This Row],[Years of Experience]],Table3[#Data],2,FALSE) -> 16+ | O191: =VLOOKUP(tblSalaries[[#This Row],[How many hours of a day you work on Excel]],Table8[#Data],2,FALSE) -> 1.5
B192: ID1253 | C192: 2012-05-29T06:08:12 | D192: 50846 | E192: 50846 | F192: USD | G192: =tblSalaries[[#This Row],[clean Salary (in local currency)]]*VLOOKUP(tblSalaries[[#This Row],[Currency]],tblXrate[#Data],2,FALSE)/1000 -> 50.846 | H192: Program & Policy Analyst-Advanced | I192: Analyst | J192: USA | K192: =VLOOKUP(tblSalaries[[#This Row],[Where do you work]],tblCountries[[Actual]:[Mapping2]],3,FALSE) -> USA | L192: 4 to 6 hours a day | M192: 25 | N192: =VLOOKUP(tblSalaries[[#This Row],[Years of Experience]],Table3[#Data],2,FALSE) -> 16+ | O192: =VLOOKUP(tblSalaries[[#This Row],[How many hours of a day you work on Excel]],Table8[#Data],2,FALSE) -> 5
B193: ID0599 | C193: 2012-05-26T08:52:00 | D193: 50000 | E193: 50000 | F193: USD | G193: =tblSalaries[[#This Row],[clean Salary (in local currency)]]*VLOOKUP(tblSalaries[[#This Row],[Currency]],tblXrate[#Data],2,FALSE)/1000 -> 50 | H193: General manager | I193: Manager | J193: India | K193: =VLOOKUP(tblSalaries[[#This Row],[Where do you work]],tblCountries[[Actual]:[Mapping2]],3,FALSE) -> India | L193: 1 or 2 hours a day | M193: 25 | N193: =VLOOKUP(tblSalaries[[#This Row],[Years of Experience]],Table3[#Data],2,FALSE) -> 16+ | O193: =VLOOKUP(tblSalaries[[#This Row],[How many hours of a day you work on Excel]],Table8[#Data],2,FALSE) -> 1.5
B194: ID1185 | C194: 2012-05-28T22:55:40 | D194: S$50000 | E194: 50000 | F194: USD | G194: =tblSalaries[[#This Row],[clean Salary (in local currency)]]*VLOOKUP(tblSalaries[[#This Row],[Currency]],tblXrate[#Data],2,FALSE)/1000 -> 50 | H194: Engineer | I194: Engineer | J194: Singapore | K194: =VLOOKUP(tblSalaries[[#This Row],[Where do you work]],tblCountries[[Actual]:[Mapping2]],3,FALSE) -> East&South Asia | L194: 2 to 3 hours per day | M194: 25 | N194: =VLOOKUP(tblSalaries[[#This Row],[Years of Experience]],Table3[#Data],2,FALSE) -> 16+ | O194: =VLOOKUP(tblSalaries[[#This Row],[How many hours of a day you work on Excel]],Table8[#Data],2,FALSE) -> 2.5
B195: ID1228 | C195: 2012-05-29T01:45:13 | D195: 4100 | E195: 49200 | F195: USD | G195: =tblSalaries[[#This Row],[clean Salary (in local currency)]]*VLOOKUP(tblSalaries[[#This Row],[Currency]],tblXrate[#Data],2,FALSE)/1000 -> 49.2 | H195: Chief Accountant | I195: Accountant | J195: QATAR | K195: =VLOOKUP(tblSalaries[[#This Row],[Where do you work]],tblCountries[[Actual]:[Mapping2]],3,FALSE) -> Middle East | L195: 2 to 3 hours per day | M195: 25 | N195: =VLOOKUP(tblSalaries[[#This Row],[Years of Experience]],Table3[#Data],2,FALSE) -> 16+ | O195: =VLOOKUP(tblSalaries[[#This Row],[How many hours of a day you work on Excel]],Table8[#Data],2,FALSE) -> 2.5
B196: ID1827 | C196: 2012-06-13T04:39:37 | D196: 42307.2 | E196: 42307 | F196: USD | G196: =tblSalaries[[#This Row],[clean Salary (in local currency)]]*VLOOKUP(tblSalaries[[#This Row],[Currency]],tblXrate[#Data],2,FALSE)/1000 -> 42.307 | H196: purchasing operations administrator | I196: Analyst | J196: USA | K196: =VLOOKUP(tblSalaries[[#This Row],[Where do you work]],tblCountries[[Actual]:[Mapping2]],3,FALSE) -> USA | L196: 2 to 3 hours per day | M196: 25 | N196: =VLOOKUP(tblSalaries[[#This Row],[Years of Experience]],Table3[#Data],2,FALSE) -> 16+ | O196: =VLOOKUP(tblSalaries[[#This Row],[How many hours of a day you work on Excel]],Table8[#Data],2,FALSE) -> 2.5
B197: ID1041 | C197: 2012-05-28T13:27:46 | D197: 10 Lakh | E197: 1000000 | F197: INR | G197: =tblSalaries[[#This Row],[clean Salary (in local currency)]]*VLOOKUP(tblSalaries[[#This Row],[Currency]],tblXrate[#Data],2,FALSE)/1000 -> 17.80791669 | H197: Teaching | I197: Analyst | J197: India | K197: =VLOOKUP(tblSalaries[[#This Row],[Where do you work]],tblCountries[[Actual]:[Mapping2]],3,FALSE) -> India | L197: 1 or 2 hours a day | M197: 25 | N197: =VLOOKUP(tblSalaries[[#This Row],[Years of Experience]],Table3[#Data],2,FALSE) -> 16+ | O197: =VLOOKUP(tblSalaries[[#This Row],[How many hours of a day you work on Excel]],Table8[#Data],2,FALSE) -> 1.5
B198: ID1161 | C198: 2012-05-28T22:08:12 | D198: Rs.5,00,000 | E198: 500000 | F198: INR | G198: =tblSalaries[[#This Row],[clean Salary (in local currency)]]*VLOOKUP(tblSalaries[[#This Row],[Currency]],tblXrate[#Data],2,FALSE)/1000 -> 8.903958344 | H198: Deputy Manager | I198: Manager | J198: India | K198: =VLOOKUP(tblSalaries[[#This Row],[Where do you work]],tblCountries[[Actual]:[Mapping2]],3,FALSE) -> India | L198: 1 or 2 hours a day | M198: 25 | N198: =VLOOKUP(tblSalaries[[#This Row],[Years of Experience]],Table3[#Data],2,FALSE) -> 16+ | O198: =VLOOKUP(tblSalaries[[#This Row],[How many hours of a day you work on Excel]],Table8[#Data],2,FALSE) -> 1.5
B199: ID1848 | C199: 2012-06-15T00:52:38 | D199: 2000 | E199: 24000 | F199: USD | G199: =tblSalaries[[#This Row],[clean Salary (in local currency)]]*VLOOKUP(tblSalaries[[#This Row],[Currency]],tblXrate[#Data],2,FALSE)/1000 -> 24 | H199: Plant Controller | I199: Controller | J199: Russia | K199: =VLOOKUP(tblSalaries[[#This Row],[Where do you work]],tblCountries[[Actual]:[Mapping2]],3,FALSE) -> Russia & CEE | L199: All the 8 hours baby, all the 8! | M199: 23 | N199: =VLOOKUP(tblSalaries[[#This Row],[Years of Experience]],Table3[#Data],2,FALSE) -> 16+ | O199: =VLOOKUP(tblSalaries[[#This Row],[How many hours of a day you work on Excel]],Table8[#Data],2,FALSE) -> 8
B200: ID0619 | C200: 2012-05-26T10:54:22 | D200: 21000 | E200: 21000 | F200: USD | G200: =tblSalaries[[#This Row],[clean Salary (in local currency)]]*VLOOKUP(tblSalaries[[#This Row],[Currency]],tblXrate[#Data],2,FALSE)/1000 -> 21 | H200: Manager | I200: Manager | J200: India | K200: =VLOOKUP(tblSalaries[[#This Row],[Where do you work]],tblCountries[[Actual]:[Mapping2]],3,FALSE) -> India | L200: All the 8 hours baby, all the 8! | M200: 23 | N200: =VLOOKUP(tblSalaries[[#This Row],[Years of Experience]],Table3[#Data],2,FALSE) -> 16+ | O200: =VLOOKUP(tblSalaries[[#This Row],[How many hours of a day you work on Excel]],Table8[#Data],2,FALSE) -> 8
B201: ID1662 | C201: 2012-06-04T18:03:21 | D201: 42000 | E201: 42000 | F201: GBP | G201: =tblSalaries[[#This Row],[clean Salary (in local currency)]]*VLOOKUP(tblSalaries[[#This Row],[Currency]],tblXrate[#Data],2,FALSE)/1000 -> 66.19948743 | H201: Management Accountant | I201: Manager | J201: UK | K201: =VLOOKUP(tblSalaries[[#This Row],[Where do you work]],tblCountries[[Actual]:[Mapping2]],3,FALSE) -> UK | L201: 4 to 6 hours a day | M201: 23 | N201: =VLOOKUP(tblSalaries[[#This Row],[Years of Experience]],Table3[#Data],2,FALSE) -> 16+ | O201: =VLOOKUP(tblSalaries[[#This Row],[How many hours of a day you work on Excel]],Table8[#Data],2,FALSE) -> 5
... 1688 more rows

Sheet Mapping
B1: Mapping Sheet | G1: Source: Xrates on 6/21/2012 | H1: and xe.com
B2: Currency Mapping | L2: Country Mapping | Q2: Years of Experience mapping | U2: How many hours of a day you work on Excel mapping
B3: Currency | C3: in USD | G3: Value of 1 American Dollar | L3: Actual | M3: Mapping | N3: Mapping2 | Q3: Actual | R3: Mapping | U3: Actual | V3: Mapping
B4: USD | C4: 1 | G4: Argentine Peso | H4: 4.49273 | I4: ARS | L4: Albania | M4: Albania | N4: Russia & CEE | Q4: Missing | R4: Missing | U4: All the 8 hours baby, all the 8! | V4: 8
B5: EUR | C5: =1/INDEX($H$4:$H$64,MATCH(tblXrate[[#This Row],[Currency]],$I$4:$I$64,0)) -> 1.270399439 | G5: Australian Dollar | H5: 0.980479 | I5: AUD | L5: arabian Gulf | M5: arabian Gulf | N5: Middle East | Q5: 40 | R5: 16+ | U5: All the 8 hours baby, all the 8! | V5: 8
B6: PKR | C6: =1/INDEX($H$4:$H$64,MATCH(tblXrate[[#This Row],[Currency]],$I$4:$I$64,0)) -> 0.01061408872 | G6: Botswana Pula | H6: 7.65697 | I6: BWP | L6: Argentina | M6: Argentina | N6: Sou&Cen America | Q6: 36 | R6: 16+ | U6: 2 to 3 hours per day | V6: 2.5
B7: INR | C7: =1/INDEX($H$4:$H$64,MATCH(tblXrate[[#This Row],[Currency]],$I$4:$I$64,0)) -> 0.01780791669 | G7: Brazilian Real | H7: 2.02314 | I7: BRL | L7: Armenia | M7: Armenia | N7: Middle East | Q7: 35 | R7: 16+ | U7: 4 to 6 hours a day | V7: 5
B8: GBP | C8: =1/INDEX($H$4:$H$64,MATCH(tblXrate[[#This Row],[Currency]],$I$4:$I$64,0)) -> 1.576178272 | G8: British Pound | H8: 0.634446 | I8: GBP | L8: Aruba | M8: Aruba | N8: Sou&Cen America | Q8: 34 | R8: 16+ | U8: 1 or 2 hours a day | V8: 1.5
B9: AUD | C9: =1/INDEX($H$4:$H$64,MATCH(tblXrate[[#This Row],[Currency]],$I$4:$I$64,0)) -> 1.019909656 | G9: Brunei dollar | H9: 1.2687 | I9: BND | L9: Asia | M9: Asia | N9: East&South Asia | Q9: 33 | R9: 16+ | U9: Excel ?!? What Excel? | V9: 0
B10: CAD | C10: =1/INDEX($H$4:$H$64,MATCH(tblXrate[[#This Row],[Currency]],$I$4:$I$64,0)) -> 0.983361523 | G10: Bulgarian Lev | H10: 1.53952 | I10: BGN | L10: Australia | M10: Australia | N10: Australia & NZ | Q10: 32 | R10: 16+
B11: PHP | C11: =1/INDEX($H$4:$H$64,MATCH(tblXrate[[#This Row],[Currency]],$I$4:$I$64,0)) -> 0.02370505226 | G11: Canadian Dollar | H11: 1.01692 | I11: CAD | L11: Austria | M11: Austria | N11: EU-16 | Q11: 30 | R11: 16+
B12: AED | C12: =1/INDEX($H$4:$H$64,MATCH(tblXrate[[#This Row],[Currency]],$I$4:$I$64,0)) -> 0.2722192127 | G12: Chilean Peso | H12: 497.268 | I12: CLP | L12: Azerbaijan | M12: Azerbaijan | N12: Middle East | Q12: 29 | R12: 16+
B13: MXN | C13: =1/INDEX($H$4:$H$64,MATCH(tblXrate[[#This Row],[Currency]],$I$4:$I$64,0)) -> 0.07304655257 | G13: Chinese Yuan | H13: 6.36091 | I13: CNY | L13: Baltic | M13: Baltic | N13: Other | Q13: 28 | R13: 16+
B14: SEK | C14: =1/INDEX($H$4:$H$64,MATCH(tblXrate[[#This Row],[Currency]],$I$4:$I$64,0)) -> 0.1436552504 | G14: Colombian Peso | H14: 1769.79 | I14: COP | L14: Bangladesh | M14: Bangladesh | N14: East&South Asia | Q14: 27 | R14: 16+
B15: BDT | C15: =1/INDEX($H$4:$H$64,MATCH(tblXrate[[#This Row],[Currency]],$I$4:$I$64,0)) -> 0.01222084534 | G15: Croatian Kuna | H15: 5.93671 | I15: HRK | L15: Belgium | M15: Belgium | N15: EU-16 | Q15: 26 | R15: 16+
B16: COSTARICAN | C16: =1/INDEX($H$4:$H$64,MATCH(tblXrate[[#This Row],[Currency]],$I$4:$I$64,0)) -> 0.002007830539 | G16: Danish Krone | H16: 5.85123 | I16: DKK | L16: Bermuda | M16: Bermuda | N16: Other | Q16: 25 | R16: 16+
B17: ZAR | C17: =1/INDEX($H$4:$H$64,MATCH(tblXrate[[#This Row],[Currency]],$I$4:$I$64,0)) -> 0.1219217799 | G17: Euro | H17: 0.787154 | I17: EUR | L17: Bhutan | M17: Bhutan | N17: East&South Asia | Q17: 23 | R17: 16+
B18: NZD | C18: =1/INDEX($H$4:$H$64,MATCH(tblXrate[[#This Row],[Currency]],$I$4:$I$64,0)) -> 0.7975880936 | G18: Hong Kong Dollar | H18: 7.75889 | I18: HKD | L18: Bolivia | M18: Bolivia | N18: Sou&Cen America | Q18: 22 | R18: 16+
B19: CNY | C19: =1/INDEX($H$4:$H$64,MATCH(tblXrate[[#This Row],[Currency]],$I$4:$I$64,0)) -> 0.1572102105 | G19: Hungarian Forint | H19: 225.874 | I19: HUF | L19: Brasil | M19: Brasil | N19: Sou&Cen America | Q19: 21 | R19: 16+
B20: EGYPT | C20: =1/INDEX($H$4:$H$64,MATCH(tblXrate[[#This Row],[Currency]],$I$4:$I$64,0)) -> 0.1652619402 | G20: Iceland Krona | H20: 124.697 | I20: ISK | L20: Brazil | M20: Brazil | N20: Sou&Cen America | Q20: 20 | R20: 16+
B21: NAIRA | C21: =1/INDEX($H$4:$H$64,MATCH(tblXrate[[#This Row],[Currency]],$I$4:$I$64,0)) -> 0.006163328197 | G21: Indian Rupee | H21: 56.1548 | I21: INR | L21: BRA | M21: Brazil | N21: Sou&Cen America | Q21: 19 | R21: 16+
B22: AED | C22: =1/INDEX($H$4:$H$64,MATCH(tblXrate[[#This Row],[Currency]],$I$4:$I$64,0)) -> 0.2722192127 | G22: Indonesian Rupiah | H22: 9443.81 | I22: IDR | L22: Bulgaria | M22: Bulgaria | N22: Russia & CEE | Q22: 18 | R22: 16+
B23: BRL | C23: =1/INDEX($H$4:$H$64,MATCH(tblXrate[[#This Row],[Currency]],$I$4:$I$64,0)) -> 0.4942811669 | G23: Israeli New Shekel | H23: 3.86721 | I23: ILS | L23: Cambodia | M23: Cambodia | N23: East&South Asia | Q23: 17 | R23: 16+
B24: RON | C24: =1/INDEX($H$4:$H$64,MATCH(tblXrate[[#This Row],[Currency]],$I$4:$I$64,0)) -> 0.2846132391 | G24: Japanese Yen | H24: 78.9043 | I24: JPY | L24: Canada | M24: Canada | N24: Canada | Q24: 16 | R24: 16+
B25: USD | C25: 1 | G25: Kazakhstani Tenge | H25: 148.88 | I25: KZT | L25: Canad | M25: Canada | N25: Canada | Q25: 15 | R25: 11-15
B26: MYR | C26: =1/INDEX($H$4:$H$64,MATCH(tblXrate[[#This Row],[Currency]],$I$4:$I$64,0)) -> 0.3168005677 | G26: Kuwaiti Dinar | H26: 0.2794 | I26: KWD | L26: CEE | M26: CEE | N26: Russia & CEE | Q26: 14 | R26: 11-15
B27: LKR | C27: =1/INDEX($H$4:$H$64,MATCH(tblXrate[[#This Row],[Currency]],$I$4:$I$64,0)) -> 0.007524058176 | G27: Latvian Lat | H27: 0.548489 | I27: LVL | L27: Continental Europe | M27: CEE | N27: Russia & CEE | Q27: 13 | R27: 11-15
B28: SGD | C28: =1/INDEX($H$4:$H$64,MATCH(tblXrate[[#This Row],[Currency]],$I$4:$I$64,0)) -> 0.7888239424 | G28: Libyan Dinar | H28: 1.9324 | I28: LYD | L28: Central America | M28: Central America | N28: Sou&Cen America | Q28: 12 | R28: 11-15
B29: GBP | C29: =1/INDEX($H$4:$H$64,MATCH(tblXrate[[#This Row],[Currency]],$I$4:$I$64,0)) -> 1.576178272 | G29: Lithuanian Litas | H29: 2.71788 | I29: LTL | L29: china | M29: china | N29: East&South Asia | Q29: 11 | R29: 11-15
B30: DOP | C30: =1/INDEX($H$4:$H$64,MATCH(tblXrate[[#This Row],[Currency]],$I$4:$I$64,0)) -> 0.02567394095 | G30: Malaysian Ringgit | H30: 3.15656 | I30: MYR | L30: Colombia | M30: Colombia | N30: Sou&Cen America | Q30: 10 | R30: 7-10
B31: PLN | C31: =1/INDEX($H$4:$H$64,MATCH(tblXrate[[#This Row],[Currency]],$I$4:$I$64,0)) -> 0.3003147298 | G31: Mauritius Rupee | H31: 30.7159 | I31: MUR | L31: Colombia - South America | M31: Colombia | N31: Sou&Cen America | Q31: 9 | R31: 7-10
B32: KENYA | C32: =1/INDEX($H$4:$H$64,MATCH(tblXrate[[#This Row],[Currency]],$I$4:$I$64,0)) -> 0.0119760479 | G32: Mexican Peso | H32: 13.6899 | I32: MXN | L32: Costa Rica | M32: Costa Rica | N32: Sou&Cen America | Q32: 8.5 | R32: 7-10
B33: DKK | C33: =1/INDEX($H$4:$H$64,MATCH(tblXrate[[#This Row],[Currency]],$I$4:$I$64,0)) -> 0.1709042372 | G33: Nepalese Rupee | H33: 89.65 | I33: NPR | L33: Croatia | M33: Croatia | N33: EU | Q33: 8 | R33: 7-10
B34: IDR | C34: =1/INDEX($H$4:$H$64,MATCH(tblXrate[[#This Row],[Currency]],$I$4:$I$64,0)) -> 0.0001058894662 | G34: New Zealand Dollar | H34: 1.25378 | I34: NZD | L34: europe/Croatia | M34: Croatia | N34: EU | Q34: 7.9 | R34: 7-10
B35: MONGOLIAN | C35: =1/INDEX($H$4:$H$64,MATCH(tblXrate[[#This Row],[Currency]],$I$4:$I$64,0)) -> 0.000756429652 | G35: Norwegian Kroner | H35: 5.90838 | I35: NOK | L35: Czech Republic | M35: Czech Republic | N35: EU | Q35: 7.3 | R35: 7-10
B36: JPY | C36: =1/INDEX($H$4:$H$64,MATCH(tblXrate[[#This Row],[Currency]],$I$4:$I$64,0)) -> 0.01267358053 | G36: Omani Rial | H36: 0.3845 | I36: OMR | L36: Denmark | M36: Denmark | N36: EU | Q36: 7 | R36: 7-10
B37: SAR | C37: =1/INDEX($H$4:$H$64,MATCH(tblXrate[[#This Row],[Currency]],$I$4:$I$64,0)) -> 0.2666666667 | G37: Pakistan Rupee | H37: 94.2144 | I37: PKR | L37: DK | M37: Denmark | N37: EU | Q37: 6.5 | R37: 4-6
B38: MAD | C38: =1/INDEX($H$4:$H$64,MATCH(tblXrate[[#This Row],[Currency]],$I$4:$I$64,0)) -> 0.1145475372 | G38: Philippine Peso | H38: 42.1851 | I38: PHP | L38: Dominican Republic | M38: Dominican Republic | N38: Sou&Cen America | Q38: 6.4 | R38: 4-6
B39: MUR | C39: =1/INDEX($H$4:$H$64,MATCH(tblXrate[[#This Row],[Currency]],$I$4:$I$64,0)) -> 0.03255642843 | G39: Qatari Rial | H39: 3.64 | I39: QAR | L39: Dubai | M39: Dubai | N39: Middle East | Q39: 6 | R39: 4-6
B40: NOK | C40: =1/INDEX($H$4:$H$64,MATCH(tblXrate[[#This Row],[Currency]],$I$4:$I$64,0)) -> 0.1692511314 | G40: Romanian Leu | H40: 3.51354 | I40: RON | L40: Egypt | M40: Egypt | N40: Africa | Q40: 5.6 | R40: 4-6
B41: CHF | C41: =1/INDEX($H$4:$H$64,MATCH(tblXrate[[#This Row],[Currency]],$I$4:$I$64,0)) -> 1.057873062 | G41: Russian Ruble | H41: 32.5458 | I41: RUB | L41: Estonia | M41: Estonia | N41: EU-16 | Q41: 5.5 | R41: 4-6
B42: ETB | C42: =1/INDEX($H$4:$H$64,MATCH(tblXrate[[#This Row],[Currency]],$I$4:$I$64,0)) -> 0.05656108597 | G42: Saudi Riyal | H42: 3.75 | I42: SAR | L42: Ethiopia | M42: Ethiopia | N42: Africa | Q42: 5 | R42: 4-6
G43: Singapore Dollar | H43: 1.26771 | I43: SGD | L43: Europe | M43: Europe | N43: EU | Q43: 4.6 | R43: 4-6
G44: South African Rand | H44: 8.20198 | I44: ZAR | L44: mainland Europe (Euro zone) | M44: Europe | N44: EU-16 | Q44: 4.5 | R44: 4-6
G45: South Korean Won | H45: 1151.09 | I45: KRW | L45: EU | M45: Europe | N45: EU | Q45: 4 | R45: 4-6
G46: Sri Lanka Rupee | H46: 132.907 | I46: LKR | L46: Finland | M46: Finland | N46: EU-16 | Q46: 3.5 | R46: 1-3
G47: Swedish Krona | H47: 6.96111 | I47: SEK | L47: France | M47: France | N47: EU-16 | Q47: 3 | R47: 1-3
G48: Swiss Franc | H48: 0.945293 | I48: CHF | L48: FR | M48: France | N48: EU-16 | Q48: 2.5 | R48: 1-3
G49: Taiwan Dollar | H49: 29.8594 | I49: TWD | L49: Germany | M49: Germany | N49: EU-16 | Q49: 2.4 | R49: 1-3
G50: Thai Baht | H50: 31.5003 | I50: THB | L50: Ghana | M50: Ghana | N50: Africa | Q50: 2 | R50: 1-3
G51: Trinidad/Tobago Dollar | H51: 6.39122 | I51: TTD | L51: Greece | M51: Greece | N51: EU-16 | Q51: 1.6 | R51: 1-3
G52: Turkish Lira | H52: 1.79447 | I52: TRY | L52: Guyana | M52: Guyana | N52: Sou&Cen America | Q52: 1.5 | R52: 1-3
G53: Venezuelan Bolivar | H53: 4.29402 | I53: VEF | L53: Hong Kong | M53: Hong Kong | N53: East&South Asia | Q53: 1.1 | R53: 1-3
G54: UAE Dirham | H54: 3.67351 | I54: AED | L54: Hungary | M54: Hungary | N54: EU | Q54: 1 | R54: 0-1
G55: Bangladesh Takha | H55: 81.8274 | I55: BDT | L55: Iceland | M55: Iceland | N55: EU | Q55: 0.8 | R55: 0-1
G56: Costarican CRC | H56: 498.05 | I56: Costarican | L56: India | M56: India | N56: India | Q56: 0.6 | R56: 0-1
G57: Egyptian Pound | H57: 6.051 | I57: Egypt | L57: Indonesia | M57: Indonesia | N57: East&South Asia | Q57: 0.5 | R57: 0-1
G58: Nigerian Naira | H58: 162.25 | I58: NAIRA | L58: Inonesia | M58: Indonesia | N58: East&South Asia | Q58: 0.3 | R58: 0-1
G59: Dominican Peso | H59: 38.95 | I59: DOP | L59: iran | M59: iran | N59: Middle East | Q59: 0.1 | R59: 0-1
G60: Polish Zloty | H60: 3.32984 | I60: PLN | L60: Ireland | M60: Ireland | N60: EU-16 | Q60: 0 | R60: 0-1
G61: Kenyan Shilling | H61: 83.5 | I61: Kenya | L61: Israel | M61: Israel | N61: Middle East
G62: Mongolian Tughrik | H62: 1322 | I62: Mongolian | L62: italy | M62: italy | N62: EU-16
G63: Moroccan Dirham | H63: 8.73 | I63: MAD | L63: Japan | M63: Japan | N63: East&South Asia
G64: Ethiopian Birr | H64: 17.68 | I64: ETB | L64: Kenya | M64: Kenya | N64: Africa
L65: Kuwait | M65: Kuwait | N65: Middle East
L66: Kuwait | M66: Kuwait | N66: Middle East
L67: Latin America | M67: Latin America | N67: Other
L68: Lesotho | M68: Lesotho | N68: Africa
L69: Libya | M69: Libya | N69: Africa
L70: Lithuania | M70: Lithuania | N70: EU
L71: malaysia | M71: malaysia | N71: East&South Asia
L72: Mauritius | M72: Mauritius | N72: Africa
L73: Mexico | M73: Mexico | N73: Sou&Cen America
L74: MÃ©xico | M74: Mexico | N74: Sou&Cen America
L75: Mongolia | M75: Mongolia | N75: East&South Asia
L76: Montenegro | M76: Montenegro | N76: Russia & CEE
L77: Morocco | M77: Morocco | N77: Africa
L78: mozambique | M78: mozambique | N78: Africa
L79: Myanmar | M79: Myanmar | N79: Other
L80: Myanmar [Burma] | M80: Myanmar | N80: Other
L81: MYS | M81: MYS | N81: Other
L82: Netherlands | M82: Netherlands | N82: EU-16
L83: The Netherlands | M83: Netherlands | N83: EU-16
L84: NL | M84: Netherlands | N84: EU-16
L85: New Zealand | M85: New Zealand | N85: Australia & NZ
L86: nz | M86: New Zealand | N86: Australia & NZ
L87: New Zealand | M87: New Zealand | N87: Australia & NZ
L88: nld | M88: New Zealand | N88: Australia & NZ
L89: Nigeria | M89: Nigeria | N89: Africa
L90: Norway | M90: Norway | N90: EU
L91: Oman | M91: Oman | N91: Middle East
L92: Pakistan | M92: Pakistan | N92: East&South Asia
L93: Pakistan, Angola | M93: Pakistan | N93: East&South Asia
L94: Panama | M94: Panama | N94: Sou&Cen America
L95: Paraguay | M95: Paraguay | N95: Sou&Cen America
L96: Peru | M96: Peru | N96: Sou&Cen America
L97: Philippines | M97: Philippines | N97: East&South Asia
L98: Poland | M98: Poland | N98: EU
L99: Portugal | M99: Portugal | N99: EU-16
L100: Qatar | M100: Qatar | N100: Middle East
L101: Republic of Georgia | M101: Republic of Georgia | N101: Middle East
L102: Republica Dominicana | M102: Republica Dominicana | N102: Sou&Cen America
L103: Romania | M103: Romania | N103: EU
L104: Russia | M104: Russia | N104: Russia & CEE
L105: Saudi Arabia | M105: Saudi Arabia | N105: Middle East
L106: Saudi Arabai | M106: Saudi Arabia | N106: Middle East
L107: Kingdom of Saudi Arabia | M107: Saudi Arabia | N107: Middle East
L108: self-employed | M108: self-employed | N108: Other
L109: Singapore | M109: Singapore | N109: East&South Asia
L110: Slovakia | M110: Slovakia | N110: EU-16
L111: Slovenia | M111: Slovenia | N111: EU-16
L112: Somalia | M112: Somalia | N112: Africa
L113: South Africa | M113: South Africa | N113: Africa
L114: SouthAfrica | M114: South Africa | N114: Africa
L115: RSA | M115: South Africa | N115: Africa
L116: Spain | M116: Spain | N116: EU-16
L117: Sri Lanka | M117: Sri Lanka | N117: East&South Asia
L118: srilanka | M118: Sri Lanka | N118: East&South Asia
L119: Sweden | M119: Sweden | N119: EU
L120: Switzerland | M120: Switzerland | N120: EU
L121: Thailand | M121: Thailand | N121: East&South Asia
L122: bangkok | M122: Thailand | N122: East&South Asia
L123: Tunisia | M123: Tunisia | N123: Africa
L124: Turkey | M124: Turkey | N124: Middle East
L125: UAE | M125: UAE | N125: Middle East
L126: United Arab Emirates | M126: UAE | N126: Middle East
L127: United Arab Emriate | M127: UAE | N127: Middle East
L128: Uganda | M128: Uganda | N128: Africa
L129: UK | M129: UK | N129: UK
L130: Ukraine | M130: Ukraine | N130: Russia & CEE
L131: Uruguay | M131: Uruguay | N131: Sou&Cen America
L132: USA | M132: USA | N132: USA
L133: ksa | M133: USA | N133: USA
L134: Viet Nam | M134: Viet Nam | N134: East&South Asia
L135: Vietnam | M135: Vietnam | N135: East&South Asia
L136: Zambia | M136: Zambia | N136: Africa
L137: Zimbabwe | M137: Zimbabwe | N137: Africa

Sheet Bar_Charts
A1: Years of Experience | B1: (פריטים מרובים) | I1: Years of Experience | J1: (פריטים מרובים) | Q1: Years of Experience | R1: (פריטים מרובים)
A2: clean Country | B2: (הכל) | I2: clean Country | J2: (הכל) | Q2: My-Years if Experience | R2: (הכל)
A3: Job Type | B3: (הכל) | I3: My-Years if Experience | J3: (הכל) | Q3: Job Type | R3: (הכל)
B5: Values | J5: Values | R5: Values
A6: תוויות שורה | B6: Avg of hours of a day you work on Excel | C6: Avg of Salary in K USD | I6: תוויות שורה | J6: Avg of hours of a day you work on Excel | K6: Avg of Salary in K USD | Q6: תוויות שורה | R6: Avg of hours of a day you work on Excel | S6: Avg of Salary in K USD
A7: 0-1 | B7: 5.189655172 | C7: 27.59122218 | I7: CXO or Top Mgmt. | J7: 4.510638298 | K7: 92.94590318 | Q7: Australia & NZ | R7: 4.376404494 | S7: 89.54252176
A8: 1-3 | B8: 4.98940678 | C8: 28.50263561 | I8: Controller | J8: 4.872727273 | K8: 61.69025266 | Q8: EU | R8: 4.166666667 | S8: 73.66972824
A9: 4-6 | B9: 4.9617737 | C9: 36.12547149 | I9: Consultant | J9: 4.534482759 | K9: 60.43012922 | Q9: USA | R9: 4.712166172 | S9: 73.12094659
A10: 7-10 | B10: 4.880718954 | C10: 48.377115 | I10: Specialist | J10: 4.907407407 | K10: 49.95613294 | Q10: Canada | R10: 4.9375 | S10: 70.67481016
A11: 11-15 | B11: 4.67989418 | C11: 58.91758665 | I11: Engineer | J11: 3.653061224 | K11: 48.09359249 | Q11: UK | R11: 5 | S11: 62.81838257
A12: 16+ | B12: 4.301675978 | C12: 71.58223968 | I12: Analyst | J12: 5.092380952 | K12: 43.46432098 | Q12: EU-16 | R12: 4.381944444 | S12: 56.89219154
A13: סכום כולל | B13: 4.833459215 | C13: 45.08468994 | I13: Manager | J13: 4.461636829 | K13: 42.14738411 | Q13: Russia & CEE | R13: 6.25 | S13: 45.48069495
I14: Accountant | J14: 4.97029703 | K14: 42.09882187 | Q14: Middle East | R14: 4.880952381 | S14: 39.07086553
I15: Reporting | J15: 5.985915493 | K15: 16.47862404 | Q15: Africa | R15: 6.096774194 | S15: 38.2140091
I16: סכום כולל | J16: 4.833459215 | K16: 45.08468994 | Q16: Sou&Cen America | R16: 5.462962963 | S16: 29.97585541
Q17: East&South Asia | R17: 4.935897436 | S17: 22.8854508
Q18: India | R18: 4.902748414 | S18: 13.17312824
Q19: סכום כולל | R19: 4.833459215 | S19: 45.08468994

Sheet BxW_Charts
G1: =ROUND(MIN(MAX(C10:H10),MAX(C11:H11))*1.15,-1) -> 120 | H1: Zoom scale: | X1: =ROUND(MIN(MAX(Q10:Y10),MAX(Q11:Y11))*1.15,-1) -> 140 | Y1: Zoom scale: | AU1: =ROUND(MIN(MAX(AK10:AV10),MAX(AK11:AV11))*1.15,-1) -> 120 | AV1: Zoom scale:
C3: =C25 -> 0-1 | D3: =D25 -> 1-3 | E3: =E25 -> 4-6 | F3: =F25 -> 7-10 | G3: =G25 -> 11-15 | H3: 16+ | Q3: =Q25 -> Analyst | R3: =R25 -> Manager | S3: =S25 -> CXO or Top Mgmt. | T3: =T25 -> Accountant | U3: =U25 -> Consultant | V3: Controller | W3: =W25 -> Engineer | X3: Specialist | Y3: Reporting | AK3: =AK25 -> Australia & NZ | AL3: =AL25 -> USA | AM3: =AM25 -> Canada | AN3: =AN25 -> UK | AO3: =AO25 -> EU | AP3: EU-16 | AQ3: Russia & CEE | AR3: Africa | AS3: Middle East | AT3: Sou&Cen America | AU3: East&South Asia | AV3: India
B4: Count | C4: =COUNT(C26:C2026) -> 87 | D4: =COUNT(D26:D2026) -> 236 | E4: 327 | F4: 306 | G4: 189 | H4: 179 | P4: Count | Q4: =COUNT(Q26:Q2026) -> 740 | R4: =COUNT(R26:R2026) -> 555 | S4: 75 | T4: 133 | U4: 90 | V4: 67 | W4: =COUNT(W26:W2026) -> 74 | X4: 51 | Y4: 83 | AJ4: Count | AK4: =COUNT(AK26:AK2026) -> 96 | AL4: =COUNT(AL26:AL2026) -> 614 | AM4: 57 | AN4: 154 | AO4: 46 | AP4: 92 | AQ4: 18 | AR4: 37 | AS4: 56 | AT4: 48 | AU4: 89 | AV4: 561
B5: Mean | C5: =AVERAGE(C26:C2026) -> 27.59122218 | D5: =AVERAGE(D26:D2026) -> 28.50263561 | E5: 36.12547149 | F5: 48.377115 | G5: 58.91758665 | H5: 71.58223968 | P5: Mean | Q5: =AVERAGE(Q26:Q2026) -> 46.38831983 | R5: =AVERAGE(R26:R2026) -> 46.66781679 | S5: 97.26587562 | T5: 45.18283891 | U5: 62.95073322 | V5: 65.10392903 | W5: =AVERAGE(W26:W2026) -> 51.71515142 | X5: 59.81296927 | Y5: 19.57415853 | AJ5: Mean | AK5: =AVERAGE(AK26:AK2026) -> 89.33105565 | AL5: =AVERAGE(AL26:AL2026) -> 72.68398208 | AM5: 69.81001145 | AN5: 67.24073011 | AO5: 66.59081234 | AP5: 59.24292349 | AQ5: 42.91966386 | AR5: 42.57594066 | AS5: 41.00275489 | AT5: 33.0570558 | AU5: 24.78229988 | AV5: 13.50075422
B6: SD | C6: =STDEV(C26:C2026) -> 24.01517314 | D6: =STDEV(D26:D2026) -> 28.14679826 | E6: 34.3760402 | F6: 40.6245048 | G6: 41.45989188 | H6: 51.51742186 | P6: SD | Q6: =STDEV(Q26:Q2026) -> 33.77837199 | R6: =STDEV(R26:R2026) -> 41.76275092 | S6: 63.40369263 | T6: 35.61152111 | U6: 53.2643102 | V6: 49.91170834 | W6: =STDEV(W26:W2026) -> 43.60922569 | X6: 60.34326944 | Y6: 34.39551819 | AJ6: SD | AK6: =STDEV(AK26:AK2026) -> 35.67677069 | AL6: =STDEV(AL26:AL2026) -> 39.46386703 | AM6: 33.68746775 | AN6: 39.90914278 | AO6: 51.25668215 | AP6: 36.76854553 | AQ6: 33.94339334 | AR6: 42.05338186 | AS6: 26.60870514 | AT6: 39.56038469 | AU6: 28.55554073 | AV6: 15.69843828
B7: Min | C7: =MIN(C26:C2026) -> 2.136950002 | D7: =MIN(D26:D2026) -> 1.805773962 | E7: 2.136950002 | F7: 1.783166904 | G7: 2.4 | H7: 3.2 | P7: Min | Q7: =MIN(Q26:Q2026) -> 2.136950002 | R7: =MIN(R26:R2026) -> 1.805773962 | S7: 2.671187503 | T7: 1.783166904 | U7: 2.564340003 | V7: 2.564340003 | W7: =MIN(W26:W2026) -> 2.671187503 | X7: 4.019 | Y7: 1.910535969 | AJ7: Min | AK7: =MIN(AK26:AK2026) -> 20 | AL7: =MIN(AL26:AL2026) -> 10 | AM7: 20 | AN7: 15.76178272 | AO7: 7.5 | AP7: 12 | AQ7: 7.6 | AR7: 2.953846154 | AS7: 5.25 | AT7: 4.545 | AU7: 1.783166904 | AV7: 2.136950002
B8: Q1 | C8: =QUARTILE(C26:C2026,1) -> 8.903958344 | D8: =QUARTILE(D26:D2026,1) -> 6.410850007 | E8: 7.532748759 | F8: 15.25958084 | G8: 24 | H8: 34.83796099 | P8: Q1 | Q8: =QUARTILE(Q26:Q2026,1) -> 15 | R8: =QUARTILE(R26:R2026,1) -> 11.66418543 | S8: 52 | T8: 13.1 | U8: 19.18917078 | V8: 22.68475001 | W8: =QUARTILE(W26:W2026,1) -> 14.28475001 | X8: 35.5 | Y8: 4.147910419 | AJ8: Q1 | AK8: =QUARTILE(AK26:AK2026,1) -> 63.80704749 | AL8: =QUARTILE(AL26:AL2026,1) -> 50 | AM8: 51.1347992 | AN8: 42.95085791 | AO8: 19.4 | AP8: 38.11198317 | AQ8: 14.55 | AR8: 12.32665639 | AS8: 24 | AT8: 11.3 | AU8: 5.082694379 | AV8: 5.342375006
B9: Median | C9: =MEDIAN(C26:C2026) -> 20 | D9: =MEDIAN(D26:D2026) -> 15.06836459 | E9: 20.51472002 | F9: 39.7022284 | G9: 57.16797475 | H9: 63.80704749 | P9: Median | Q9: =MEDIAN(Q26:Q2026) -> 45 | R9: =MEDIAN(R26:R2026) -> 40 | S9: 95 | T9: 44.65409572 | U9: 54.84771058 | V9: 57.16797475 | W9: =MEDIAN(W26:W2026) -> 49.43076322 | X9: 49 | Y9: 7.123166675 | AJ9: Median | AK9: =MEDIAN(AK26:AK2026) -> 86.69232079 | AL9: =MEDIAN(AL26:AL2026) -> 65 | AM9: 63.918499 | AN9: 55.16623952 | AO9: 59.00413518 | AP9: 53.35677644 | AQ9: 35.5 | AR9: 24.864 | AS9: 36 | AT9: 19.6 | AU9: 13.6030161 | AV9: 8.903958344
B10: Q3 | C10: =QUARTILE(C26:C2026,3) -> 42.27840667 | D10: =QUARTILE(D26:D2026,3) -> 45.154 | E10: 58.49120722 | F10: 72.57656453 | G10: 85 | H10: 101.5986862 | P10: Q3 | Q10: =QUARTILE(Q26:Q2026,3) -> 66.07353192 | R10: =QUARTILE(R26:R2026,3) -> 69.61291289 | S10: 125 | T10: 63.04713088 | U10: 92.36320357 | V10: 89.34490248 | W10: =QUARTILE(W26:W2026,3) -> 74.75 | X10: 72.11583337 | Y10: 18.53 | AJ10: Q3 | AK10: =QUARTILE(AK26:AK2026,3) -> 102.5009205 | AL10: =QUARTILE(AL26:AL2026,3) -> 85 | AM10: 78.66892184 | AN10: 80.4522284 | AO10: 105.1356356 | AP10: 75.30599158 | AQ10: 60 | AR10: 51.49700599 | AS10: 55.725 | AT10: 32.2475 | AU10: 33.6 | AV10: 15.19015293
B11: Max | C11: =MAX(C26:C2026) -> 101.9909656 | D11: =MAX(D26:D2026) -> 148.2843501 | E11: 177.6 | F11: 260 | G11: 228.671899 | H11: 300 | P11: Max | Q11: =MAX(Q26:Q2026) -> 245.8403808 | R11: =MAX(R26:R2026) -> 400 | S11: 300 | T11: 177.6 | U11: 250 | V11: 228.671899 | W11: =MAX(W26:W2026) -> 231.1197486 | X11: 400 | Y11: 254.0798878 | AJ11: Max | AK11: =MAX(AK26:AK2026) -> 203.9819313 | AL11: =MAX(AL26:AL2026) -> 400 | AM11: 245.8403808 | AN11: 299.4738717 | AO11: 228.671899 | AP11: 254.0798878 | AQ11: 114.3359495 | AR11: 177.6 | AS11: 150 | AT11: 220.7 | AU11: 138 | AV11: 186.9831252
B12: Bottom | C12: =C8 -> 8.903958344 | D12: 6.410850007 | E12: 7.532748759 | F12: 15.25958084 | G12: 24 | H12: 34.83796099 | P12: Bottom | Q12: =Q8 -> 15 | R12: 11.66418543 | S12: 52 | T12: 13.1 | U12: 19.18917078 | V12: 22.68475001 | W12: =W8 -> 14.28475001 | X12: 35.5 | Y12: 4.147910419 | AJ12: Bottom | AK12: =AK8 -> 63.80704749 | AL12: 50 | AM12: 51.1347992 | AN12: 42.95085791 | AO12: 19.4 | AP12: 38.11198317 | AQ12: 14.55 | AR12: 12.32665639 | AS12: 24 | AT12: 11.3 | AU12: 5.082694379 | AV12: 5.342375006
B13: 2Q Box | C13: =C9-C8 -> 11.09604166 | D13: 8.657514585 | E13: 12.98197127 | F13: 24.44264757 | G13: 33.16797475 | H13: 28.9690865 | P13: 2Q Box | Q13: =Q9-Q8 -> 30 | R13: 28.33581457 | S13: 43 | T13: 31.55409572 | U13: 35.65853981 | V13: 34.48322474 | W13: =W9-W8 -> 35.1460132 | X13: 13.5 | Y13: 2.975256256 | AJ13: 2Q Box | AK13: =AK9-AK8 -> 22.88527331 | AL13: 15 | AM13: 12.7836998 | AN13: 12.21538161 | AO13: 39.60413518 | AP13: 15.24479327 | AQ13: 20.95 | AR13: 12.53734361 | AS13: 12 | AT13: 8.3 | AU13: 8.520321721 | AV13: 3.561583337
B14: 3Q Box | C14: 22.27840667 | D14: 30.08563541 | E14: 37.97648719 | F14: 32.87433613 | G14: 27.83202525 | H14: 37.79163876 | P14: 3Q Box | Q14: =Q10-Q9 -> 21.07353192 | R14: 29.61291289 | S14: 30 | T14: 18.39303516 | U14: 37.51549299 | V14: 32.17692773 | W14: =W10-W9 -> 25.31923678 | X14: 23.11583337 | Y14: 11.40683333 | AJ14: 3Q Box | AK14: 15.80859967 | AL14: 20 | AM14: 14.75042285 | AN14: 25.28598888 | AO14: 46.1315004 | AP14: 21.94921515 | AQ14: 24.5 | AR14: 26.63300599 | AS14: 19.725 | AT14: 12.6475 | AU14: 19.9969839 | AV14: 6.286194591
B15: Whisker- | C15: =C8-C7 -> 6.767008341 | D15: 4.605076045 | E15: 5.395798756 | F15: 13.47641393 | G15: 21.6 | H15: 31.63796099 | P15: Whisker- | Q15: =Q8-Q7 -> 12.86305 | R15: 9.858411468 | S15: 49.3288125 | T15: 11.3168331 | U15: 16.62483077 | V15: 20.12041001 | W15: =W8-W7 -> 11.61356251 | X15: 31.481 | Y15: 2.23737445 | AJ15: Whisker- | AK15: =AK8-AK7 -> 43.80704749 | AL15: 40 | AM15: 31.1347992 | AN15: 27.18907519 | AO15: 11.9 | AP15: 26.11198317 | AQ15: 6.95 | AR15: 9.372810241 | AS15: 18.75 | AT15: 6.755 | AU15: 3.299527474 | AV15: 3.205425004
B16: Whisker+ | C16: =C11-C10 -> 59.71255897 | D16: 103.1303501 | E16: 119.1087928 | F16: 187.4234355 | G16: 143.671899 | H16: 198.4013138 | P16: Whisker+ | Q16: =Q11-Q10 -> 179.7668488 | R16: 330.3870871 | S16: 175 | T16: 114.5528691 | U16: 157.6367964 | V16: 139.3269965 | W16: =W11-W10 -> 156.3697486 | X16: 327.8841666 | Y16: 235.5498878 | AJ16: Whisker+ | AK16: =AK11-AK10 -> 101.4810108 | AL16: 315 | AM16: 167.1714589 | AN16: 219.0216433 | AO16: 123.5362634 | AP16: 178.7738962 | AQ16: 54.33594951 | AR16: 126.102994 | AS16: 94.275 | AT16: 188.4525 | AU16: 104.4 | AV16: 171.7929723
B20: Years of Experience | C20: (פריטים מרובים) | P20: Years of Experience | Q20: (הכל) | AJ20: Years of Experience | AK20: (הכל)
B21: clean Country | C21: (הכל) | P21: clean Country | Q21: (הכל) | AJ21: My-Years if Experience | AK21: (הכל)
B22: Job Type | C22: (הכל) | P22: My-Years if Experience | Q22: (הכל) | AJ22: Job Type | AK22: (הכל)
B24: Sum of Salary in USD | C24: תוויות עמודה | P24: סכום | Q24: תוויות עמודה | AJ24: Average of Salary in USD | AK24: תוויות עמודה
B25: תוויות שורה | C25: 0-1 | D25: 1-3 | E25: 4-6 | F25: 7-10 | G25: 11-15 | H25: 16+ | P25: תוויות שורה | Q25: Analyst | R25: Manager | S25: CXO or Top Mgmt. | T25: Accountant | U25: Consultant | V25: Controller | W25: Engineer | X25: Specialist | Y25: Reporting | AJ25: תוויות שורה | AK25: Australia & NZ | AL25: USA | AM25: Canada | AN25: UK | AO25: EU | AP25: EU-16 | AQ25: Russia & CEE | AR25: Africa | AS25: Middle East | AT25: Sou&Cen America | AU25: East&South Asia | AV25: India
B26: ID0560 | E26: 54 | P26: ID0001 | Q26: 5.846 | AJ26: ID0001 | AV26: 5.846
B27: ID0561 | H27: 15.6 | P27: ID0002 | V27: 15 | AJ27: ID0002 | AO27: 15
B28: ID0562 | F28: 35 | P28: ID0003 | Q28: 58 | AJ28: ID0003 | AL28: 58
B29: ID0563 | H29: 188 | P29: ID0004 | V29: 48 | AJ29: ID0004 | AU29: 48
B30: ID0564 | C30: 27.5 | P30: ID0005 | W30: 54 | AJ30: ID0005 | AL30: 54
B31: ID0565 | F31: 140 | P31: ID0006 | Q31: 41.731 | AJ31: ID0006 | AO31: 41.731
B32: ID0566 | E32: 69.87196914 | P32: ID0007 | R32: 184.2079187 | AJ32: ID0007 | AP32: 184.2079187
B33: ID0567 | D33: 45 | P33: ID0008 | Q33: 12 | AJ33: ID0008 | AQ33: 12
B34: ID0568 | G34: 95 | P34: ID0009 | S34: 44 | AJ34: ID0009 | AP34: 44
B35: ID0569 | H35: 158.0859967 | P35: ID0010 | T35: 12.2274302 | AJ35: ID0010 | AU35: 12.2274302
B36: ID0570 | H36: 63.80704749 | P36: ID0011 | X36: 65.61613102 | AJ36: ID0011 | AP36: 65.61613102
B37: ID0572 | G37: 38 | P37: ID0012 | W37: 14 | AJ37: ID0012 | AO37: 14
B38: ID0573 | E38: 90 | P38: ID0013 | Q38: 13.3381296 | AJ38: ID0013 | AV38: 13.3381296
B39: ID0574 | H39: 45.39393424 | P39: ID0014 | Q39: 49 | AJ39: ID0014 | AL39: 49
B40: ID0575 | F40: 33.09974371 | P40: ID0015 | W40: 85 | AJ40: ID0015 | AL40: 85
B41: ID0576 | E41: 4.285 | P41: ID0016 | W41: 75 | AJ41: ID0016 | AL41: 75
B42: ID0577 | H42: 6 | P42: ID0017 | R42: 107 | AJ42: ID0017 | AO42: 107
B43: ID0578 | F43: 22.43801244 | P43: ID0018 | Y43: 45 | AJ43: ID0018 | AR43: 45
B44: ID0579 | G44: 90 | P44: ID0019 | R44: 9.794354178 | AJ44: ID0019 | AV44: 9.794354178
B45: ID0580 | H45: 150 | P45: ID0020 | R45: 50 | AJ45: ID0020 | AV45: 50
B46: ID0581 | H46: 132.5882553 | P46: ID0021 | R46: 13.5 | AJ46: ID0021 | AV46: 13.5
B47: ID0582 | D47: 45 | P47: ID0022 | Q47: 96 | AJ47: ID0022 | AL47: 96
B48: ID0583 | F48: 50 | P48: ID0023 | R48: 17.80791669 | AJ48: ID0023 | AV48: 17.80791669
B49: ID0584 | H49: 300 | P49: ID0024 | S49: 75 | AJ49: ID0024 | AL49: 75
B50: ID0585 | F50: 104.030785 | P50: ID0025 | R50: 40 | AJ50: ID0025 | AL50: 40
B51: ID0586 | G51: 115 | P51: ID0026 | Q51: 60 | AJ51: ID0026 | AL51: 60
B52: ID0587 | D52: 70 | P52: ID0028 | R52: 41.16094182 | AJ52: ID0028 | AP52: 41.16094182
B53: ID0588 | H53: 108.1104236 | P53: ID0029 | W53: 16.02712502 | AJ53: ID0029 | AV53: 16.02712502
B54: ID0589 | H54: 75 | P54: ID0030 | R54: 10.68475001 | AJ54: ID0030 | AV54: 10.68475001
B55: ID0590 | F55: 40.414 | P55: ID0031 | R55: 41 | AJ55: ID0031 | AQ55: 41
B56: ID0591 | D56: 65 | P56: ID0032 | X56: 6.410850007 | AJ56: ID0032 | AV56: 6.410850007
B57: ID0592 | F57: 120 | P57: ID0033 | Q57: 55.16623952 | AJ57: ID0033 | AN57: 55.16623952
B58: ID0593 | F58: 15.09218021 | P58: ID0035 | Q58: 19.2 | AJ58: ID0035 | AO58: 19.2
B59: ID0594 | F59: 36 | P59: ID0036 | U59: 8.903958344 | AJ59: ID0036 | AV59: 8.903958344
B60: ID0595 | E60: 63.51997195 | P60: ID0037 | R60: 150 | AJ60: ID0037 | AL60: 150
B61: ID0596 | F61: 108 | P61: ID0038 | W61: 69 | AJ61: ID0038 | AL61: 69
B62: ID0597 | E62: 75 | P62: ID0039 | U62: 30 | AJ62: ID0039 | AL62: 30
B63: ID0598 | D63: 7.123166675 | P63: ID0040 | R63: 7.123166675 | AJ63: ID0040 | AV63: 7.123166675
B64: ID0599 | H64: 50 | P64: ID0041 | U64: 71.39367595 | AJ64: ID0041 | AK64: 71.39367595
B65: ID0600 | G65: 45 | P65: ID0042 | Q65: 14.5 | AJ65: ID0042 | AV65: 14.5
B66: ID0601 | F66: 45 | P66: ID0043 | W66: 68.83530661 | AJ66: ID0043 | AM66: 68.83530661
B67: ID0602 | H67: 90 | P67: ID0044 | T67: 58 | AJ67: ID0044 | AL67: 58
B68: ID0603 | E68: 4.273900005 | P68: ID0046 | R68: 14.24633335 | AJ68: ID0046 | AV68: 14.24633335
B69: ID0604 | F69: 50 | P69: ID0047 | Q69: 50.43770471 | AJ69: ID0047 | AN69: 50.43770471
B70: ID0605 | H70: 65 | P70: ID0048 | U70: 12 | AJ70: ID0048 | AL70: 12
B71: ID0606 | H71: 70 | P71: ID0049 | R71: 57.16797475 | AJ71: ID0049 | AP71: 57.16797475
B72: ID0608 | E72: 160 | P72: ID0050 | Q72: 100 | AJ72: ID0050 | AP72: 100
B73: ID0609 | H73: 101.9909656 | P73: ID0051 | T73: 57 | AJ73: ID0051 | AL73: 57
B74: ID0611 | F74: 6.767008341 | P74: ID0052 | T74: 63.04713088 | AJ74: ID0052 | AN74: 63.04713088
B75: ID0612 | F75: 30 | P75: ID0053 | R75: 30.48958654 | AJ75: ID0053 | AP75: 30.48958654
B76: ID0613 | D76: 7.479325009 | P76: ID0054 | T76: 4.32 | AJ76: ID0054 | AV76: 4.32
B77: ID0614 | E77: 61 | P77: ID0055 | Q77: 62 | AJ77: ID0055 | AL77: 62
B78: ID0615 | H78: 13.8 | P78: ID0056 | Q78: 7.5 | AJ78: ID0056 | AV78: 7.5
B79: ID0616 | E79: 15.13672918 | P79: ID0057 | R79: 28.3712089 | AJ79: ID0057 | AN79: 28.3712089
B80: ID0617 | F80: 32.05425004 | P80: ID0058 | R80: 62.24957251 | AJ80: ID0058 | AP80: 62.24957251
B81: ID0618 | G81: 80 | P81: ID0059 | Q81: 38 | AJ81: ID0059 | AL81: 38
B82: ID0619 | H82: 21 | P82: ID0060 | X82: 41 | AJ82: ID0060 | AL82: 41
B83: ID0620 | H83: 245.8403808 | P83: ID0061 | Q83: 68 | AJ83: ID0061 | AL83: 68
B84: ID0621 | D84: 2.84926667 | P84: ID0062 | Q84: 55.06824529 | AJ84: ID0062 | AM84: 55.06824529
B85: ID0622 | H85: 8.4 | P85: ID0063 | R85: 61 | AJ85: ID0063 | AT85: 61
B86: ID0623 | H86: 86.69232079 | P86: ID0064 | U86: 54.62717588 | AJ86: ID0064 | AP86: 54.62717588
B87: ID0624 | H87: 50 | P87: ID0065 | R87: 85 | AJ87: ID0065 | AL87: 85
B88: ID0625 | E88: 4 | P88: ID0066 | Q88: 48.27517868 | AJ88: ID0066 | AP88: 48.27517868
B89: ID0626 | C89: 101.9909656 | P89: ID0067 | S89: 86.69232079 | AJ89: ID0067 | AK89: 86.69232079
B90: ID0627 | F90: 95 | P90: ID0068 | Q90: 85.087 | AJ90: ID0068 | AL90: 85.087
B91: ID0628 | E91: 10 | P91: ID0069 | Q91: 50 | AJ91: ID0069 | AL91: 50
B92: ID0629 | E92: 4.2 | P92: ID0070 | R92: 100 | AJ92: ID0070 | AR92: 100
B93: ID0630 | G93: 12.82170001 | P93: ID0071 | Q93: 57 | AJ93: ID0071 | AL93: 57
B94: ID0631 | D94: 39 | P94: ID0072 | R94: 75 | AJ94: ID0072 | AL94: 75
B95: ID0632 | G95: 60 | P95: ID0073 | R95: 101.9909656 | AJ95: ID0073 | AK95: 101.9909656
B96: ID0633 | F96: 173.3846416 | P96: ID0074 | R96: 33.42 | AJ96: ID0074 | AS96: 33.42
B97: ID0634 | H97: 125 | P97: ID0075 | X97: 58.46084254 | AJ97: ID0075 | AM97: 58.46084254
B98: ID0635 | E98: 79.5529532 | P98: ID0076 | U98: 15 | AJ98: ID0076 | AL98: 15
B99: ID0636 | D99: 3.561583337 | P99: ID0077 | Q99: 60 | AJ99: ID0077 | AM99: 60
B100: ID0637 | F100: 80 | P100: ID0078 | Q100: 157.6178272 | AJ100: ID0078 | AN100: 157.6178272
B101: ID0638 | D101: 10.68475001 | P101: ID0079 | Q101: 18 | AJ101: ID0079 | AS101: 18
B102: ID0639 | D102: 5.342375006 | P102: ID0080 | R102: 50 | AJ102: ID0080 | AL102: 50
B103: ID0640 | D103: 71.23166675 | P103: ID0081 | Q103: 26 | AJ103: ID0081 | AT103: 26
B104: ID0641 | E104: 80.13562509 | P104: ID0082 | R104: 47.28534816 | AJ104: ID0082 | AN104: 47.28534816
B105: ID0642 | E105: 54.08488377 | P105: ID0083 | S105: 150 | AJ105: ID0083 | AL105: 150
B106: ID0643 | H106: 53 | P106: ID0084 | R106: 120 | AJ106: ID0084 | AL106: 120
B107: ID0644 | C107: 5.342375006 | P107: ID0085 | U107: 8.903958344 | AJ107: ID0085 | AV107: 8.903958344
B108: ID0645 | E108: 7.123166675 | P108: ID0086 | Q108: 31.33 | AJ108: ID0086 | AT108: 31.33
B109: ID0646 | G109: 10.68475001 | P109: ID0087 | W109: 110 | AJ109: ID0087 | AL109: 110
B110: ID0647 | E110: 4 | P110: ID0088 | U110: 81 | AJ110: ID0088 | AN110: 81
B111: ID0648 | C111: 8 | P111: ID0089 | Q111: 40 | AJ111: ID0089 | AL111: 40
B112: ID0649 | E112: 2.671187503 | P112: ID0090 | Q112: 41.30118397 | AJ112: ID0090 | AM112: 41.30118397
B113: ID0650 | D113: 14.24633335 | P113: ID0091 | S113: 125 | AJ113: ID0091 | AL113: 125
B114: ID0651 | D114: 8.54780001 | P114: ID0092 | R114: 36 | AJ114: ID0092 | AL114: 36
B115: ID0652 | E115: 7.693020009 | P115: ID0093 | U115: 2.564340003 | AJ115: ID0093 | AV115: 2.564340003
B116: ID0653 | F116: 4 | P116: ID0094 | Q116: 75 | AJ116: ID0094 | AL116: 75
B117: ID0654 | D117: 5.4 | P117: ID0095 | S117: 95 | AJ117: ID0095 | AL117: 95
B118: ID0655 | F118: 186.9831252 | P118: ID0096 | R118: 24 | AJ118: ID0096 | AL118: 24
B119: ID0657 | F119: 21.5 | P119: ID0097 | R119: 91 | AJ119: ID0097 | AL119: 91
B120: ID0658 | D120: 15 | P120: ID0098 | Q120: 40 | AJ120: ID0098 | AL120: 40
B121: ID0659 | D121: 2.122817743 | P121: ID0099 | R121: 57 | AJ121: ID0099 | AL121: 57
B122: ID0660 | D122: 16.91752085 | P122: ID0100 | U122: 74 | AJ122: ID0100 | AL122: 74
B123: ID0661 | G123: 2.938306253 | P123: ID0101 | Q123: 80 | AJ123: ID0101 | AL123: 80
B124: ID0662 | G124: 16.8 | P124: ID0102 | X124: 90 | AJ124: ID0102 | AL124: 90
B125: ID0663 | F125: 37 | P125: ID0103 | Q125: 21 | AJ125: ID0103 | AS125: 21
B126: ID0664 | E126: 5.342375006 | P126: ID0104 | R126: 52 | AJ126: ID0104 | AL126: 52
B127: ID0665 | D127: 3.561583337 | P127: ID0105 | Q127: 19.2 | AJ127: ID0105 | AT127: 19.2
B128: ID0666 | F128: 8.54780001 | P128: ID0106 | Q128: 36 | AJ128: ID0106 | AL128: 36
B129: ID0667 | F129: 5.8 | P129: ID0107 | Q129: 57.4 | AJ129: ID0107 | AL129: 57.4
B130: ID0668 | D130: 4.095820838 | P130: ID0108 | Q130: 66 | AJ130: ID0108 | AL130: 66
B131: ID0669 | D131: 4.914985006 | P131: ID0109 | R131: 44.46398036 | AJ131: ID0109 | AP131: 44.46398036
B132: ID0670 | G132: 24 | P132: ID0111 | Q132: 85 | AJ132: ID0111 | AL132: 85
B133: ID0671 | G133: 24 | P133: ID0112 | X133: 50 | AJ133: ID0112 | AL133: 50
B134: ID0672 | F134: 8.738 | P134: ID0113 | R134: 58 | AJ134: ID0113 | AL134: 58
B135: ID0673 | C135: 15 | P135: ID0114 | T135: 37.9 | AJ135: ID0114 | AL135: 37.9
B136: ID0674 | E136: 56.4 | P136: ID0115 | R136: 48 | AJ136: ID0115 | AS136: 48
B137: ID0675 | E137: 10.2 | P137: ID0116 | Q137: 67 | AJ137: ID0116 | AL137: 67
B138: ID0676 | E138: 5.787572923 | P138: ID0117 | V138: 85 | AJ138: ID0117 | AS138: 85
B139: ID0677 | G139: 105 | P139: ID0118 | Q139: 56.16 | AJ139: ID0118 | AL139: 56.16
B140: ID0678 | E140: 4.451979172 | P140: ID0119 | R140: 24 | AJ140: ID0119 | AT140: 24
B141: ID0679 | E141: 8.369720843 | P141: ID0120 | Q141: 52 | AJ141: ID0120 | AL141: 52
B142: ID0680 | F142: 17.06763763 | P142: ID0121 | Q142: 59.00169138 | AJ142: ID0121 | AM142: 59.00169138
B143: ID0681 | H143: 101.9909656 | P143: ID0122 | T143: 70 | AJ143: ID0122 | AL143: 70
B144: ID0682 | D144: 3.917741671 | P144: ID0123 | X144: 50 | AJ144: ID0123 | AL144: 50
B145: ID0683 | H145: 52 | P145: ID0124 | Q145: 40.95820838 | AJ145: ID0124 | AV145: 40.95820838
B146: ID0684 | D146: 4.630058339 | P146: ID0125 | Q146: 80 | AJ146: ID0125 | AL146: 80
B147: ID0685 | D147: 2.136950002 | P147: ID0126 | R147: 128 | AJ147: ID0126 | AL147: 128
B148: ID0686 | E148: 13 | P148: ID0127 | R148: 44 | AJ148: ID0127 | AL148: 44
B149: ID0687 | F149: 2.564340003 | P149: ID0128 | T149: 65 | AJ149: ID0128 | AL149: 65
B150: ID0688 | F150: 20.47910419 | P150: ID0129 | T150: 36 | AJ150: ID0129 | AS150: 36
B151: ID0689 | F151: 33.5 | P151: ID0130 | U151: 12 | AJ151: ID0130 | AU151: 12
B152: ID0690 | H152: 50 | P152: ID0131 | Q152: 44.38360396 | AJ152: ID0131 | AN152: 44.38360396
B153: ID0691 | D153: 5.342375006 | P153: ID0132 | Q153: 45 | AJ153: ID0132 | AL153: 45
B154: ID0692 | D154: 11.53953001 | P154: ID0133 | Q154: 54 | AJ154: ID0133 | AL154: 54
B155: ID0693 | H155: 7 | P155: ID0134 | R155: 110.332479 | AJ155: ID0134 | AN155: 110.332479
B156: ID0694 | E156: 6.767008341 | P156: ID0135 | Q156: 71 | AJ156: ID0135 | AL156: 71
B157: ID0695 | D157: 3 | P157: ID0136 | R157: 14.24633335 | AJ157: ID0136 | AV157: 14.24633335
B158: ID0696 | E158: 4.451979172 | P158: ID0137 | R158: 68.83530661 | AJ158: ID0137 | AM158: 68.83530661
B159: ID0697 | E159: 2.671187503 | P159: ID0138 | R159: 49.16807615 | AJ159: ID0138 | AM159: 49.16807615
B160: ID0698 | E160: 4.957724006 | P160: ID0139 | Q160: 40 | AJ160: ID0139 | AL160: 40
B161: ID0699 | G161: 3.205425004 | P161: ID0140 | Q161: 60.96841443 | AJ161: ID0140 | AM161: 60.96841443
B162: ID0700 | F162: 14.24633335 | P162: ID0141 | Y162: 5.983460007 | AJ162: ID0141 | AV162: 5.983460007
B163: ID0701 | F163: 5.342375006 | P163: ID0142 | Q163: 53 | AJ163: ID0142 | AL163: 53
B164: ID0702 | D164: 6.588929174 | P164: ID0143 | S164: 104 | AJ164: ID0143 | AL164: 104
B165: ID0703 | D165: 6.588929174 | P165: ID0144 | W165: 57 | AJ165: ID0144 | AL165: 57
B166: ID0704 | F166: 35 | P166: ID0145 | Q166: 45 | AJ166: ID0145 | AL166: 45
B167: ID0705 | E167: 12.82170001 | P167: ID0146 | Q167: 92 | AJ167: ID0146 | AL167: 92
B168: ID0706 | D168: 10.68475001 | P168: ID0147 | R168: 88 | AJ168: ID0147 | AL168: 88
B169: ID0707 | D169: 10 | P169: ID0148 | Q169: 80 | AJ169: ID0148 | AL169: 80
B170: ID0708 | C170: 2.136950002 | P170: ID0149 | U170: 69 | AJ170: ID0149 | AL170: 69
B171: ID0709 | E171: 8.54780001 | P171: ID0150 | Q171: 50 | AJ171: ID0150 | AT171: 50
B172: ID0710 | F172: 8.013562509 | P172: ID0151 | R172: 35 | AJ172: ID0151 | AL172: 35
B173: ID0711 | C173: 7.123166675 | P173: ID0152 | Q173: 96 | AJ173: ID0152 | AL173: 96
B174: ID0712 | E174: 40.95820838 | P174: ID0153 | T174: 65 | AJ174: ID0153 | AL174: 65
B175: ID0713 | D175: 11.32583501 | P175: ID0154 | Q175: 37.44 | AJ175: ID0154 | AL175: 37.44
B176: ID0714 | D176: 15 | P176: ID0155 | T176: 15.5 | AJ176: ID0155 | AT176: 15.5
B177: ID0715 | G177: 12 | P177: ID0156 | Q177: 90 | AJ177: ID0156 | AL177: 90
B178: ID0716 | C178: 8.903958344 | P178: ID0157 | Q178: 66.5 | AJ178: ID0157 | AL178: 66.5
B179: ID0717 | D179: 8.903958344 | P179: ID0158 | T179: 100 | AJ179: ID0158 | AL179: 100
B180: ID0718 | F180: 12.82170001 | P180: ID0159 | R180: 50.83174927 | AJ180: ID0159 | AN180: 50.83174927
B181: ID0719 | F181: 3.205425004 | P181: ID0160 | R181: 7.479325009 | AJ181: ID0160 | AV181: 7.479325009
B182: ID0720 | E182: 6.677968758 | P182: ID0161 | Q182: 75 | AJ182: ID0161 | AL182: 75
B183: ID0721 | G183: 67.79498796 | P183: ID0162 | R183: 58 | AJ183: ID0162 | AM183: 58
B184: ID0722 | E184: 31.25 | P184: ID0163 | R184: 55 | AJ184: ID0163 | AL184: 55
B185: ID0723 | D185: 2.165274098 | P185: ID0164 | Q185: 60 | AJ185: ID0164 | AL185: 60
B186: ID0724 | E186: 7.123166675 | P186: ID0165 | R186: 23.15029169 | AJ186: ID0165 | AV186: 23.15029169
B187: ID0725 | D187: 130 | P187: ID0166 | R187: 105.219683 | AJ187: ID0166 | AM187: 105.219683
B188: ID0726 | E188: 4.451979172 | P188: ID0167 | V188: 145 | AJ188: ID0167 | AO188: 145
B189: ID0727 | D189: 9.6 | P189: ID0168 | T189: 22.88 | AJ189: ID0168 | AL189: 22.88
B190: ID0728 | C190: 6.945087508 | P190: ID0169 | U190: 80 | AJ190: ID0169 | AL190: 80
B191: ID0729 | F191: 10.68475001 | P191: ID0170 | Q191: 8.903958344 | AJ191: ID0170 | AV191: 8.903958344
B192: ID0730 | D192: 8.54780001 | P192: ID0171 | Q192: 88.50253707 | AJ192: ID0171 | AM192: 88.50253707
B193: ID0731 | F193: 35 | P193: ID0172 | Q193: 3.205425004 | AJ193: ID0172 | AV193: 3.205425004
B194: ID0732 | G194: 17.80791669 | P194: ID0173 | Q194: 46.584 | AJ194: ID0173 | AL194: 46.584
B195: ID0733 | E195: 3.205425004 | P195: ID0174 | Q195: 67 | AJ195: ID0174 | AL195: 67
B196: ID0734 | F196: 60 | P196: ID0175 | R196: 19.58870836 | AJ196: ID0175 | AV196: 19.58870836
B197: ID0735 | G197: 14.24633335 | P197: ID0176 | W197: 92 | AJ197: ID0176 | AL197: 92
B198: ID0736 | F198: 10.68475001 | P198: ID0177 | X198: 75 | AJ198: ID0177 | AL198: 75
B199: ID0737 | G199: 40 | P199: ID0178 | Q199: 3.205425004 | AJ199: ID0178 | AV199: 3.205425004
B200: ID0738 | G200: 5.022 | P200: ID0179 | R200: 29.15929803 | AJ200: ID0179 | AN200: 29.15929803
B201: ID0739 | E201: 7.301245842 | P201: ID0180 | Q201: 40 | AJ201: ID0180 | AL201: 40
B202: ID0740 | E202: 19.83143282 | P202: ID0181 | Q202: 111.68 | AJ202: ID0181 | AL202: 111.68
B203: ID0741 | E203: 10.68475001 | P203: ID0182 | Q203: 41.406 | AJ203: ID0182 | AM203: 41.406
B204: ID0742 | D204: 4.8 | P204: ID0183 | R204: 70 | AJ204: ID0183 | AL204: 70
B205: ID0743 | F205: 83.84636297 | P205: ID0184 | Q205: 40.7 | AJ205: ID0184 | AL205: 40.7
... 1688 more rows

Sheet WB_Legend

Sheet cbPalette
B9: 128 | C9: 0 | E9: 230 | F9: 86 | G9: 0 | H9: 240 | I9: 0 | J9: 213 | K9: 204 | L9: R
B10: 128 | C10: 0 | E10: 159 | F10: 180 | G10: 158 | H10: 228 | I10: 114 | J10: 94 | K10: 121 | L10: G
B11: 128 | C11: 0 | E11: 0 | F11: 233 | G11: 115 | H11: 66 | I11: 178 | J11: 0 | K11: 167 | L11: B
Q16: http://jfly.iam.u-tokyo.ac.jp/color/: | R16: Source:

Sheet About
B1: General
C2: The dashboard is designed to work on Excel 2010 and above only.
B4: Main Features / Elements
C6: What | G6: Why | M6: Resources
C7: Bar in Bar comparison chart | G7: In my opinion its a very effecitive graph to compare measures | M7: http://www.visualquest.in/2012/05/bar-in-bar-techniques-at-work.html
G8: of different scale. See the link for more deep dive analysis of this type
G9: of charts (and many others on the site).
C10: Box & Whisker chart | G10: Excellent chart which exhibits high Data-Ink Ratio, unfortunately | M10: http://peltiertech.com/WordPress/excel-box-and-whisker-diagrams-box-plots/
G11: its rarely used in Excel. See the link for Jon Peltier's tutorial on
G12: how to make them.
C13: Color blind Friendly | G13: This is a topic usually overlooked by excel users (including myself) and | M13: http://jfly.iam.u-tokyo.ac.jp/color/:
G14: maybe its time to give it some thought. Without a doubt considerable
G15: amount of people looking at charts have some type of the condition.
G16: In the "cbPalette" tab a palette with suitable colors is included along
G17: with their RGB values. See the link for more in deep explanation.
C18: Zoom In / Zoom Out button | G18: Designed to work only on the Box&Whisker charts in the dashboard | M18: Done with a very basic VBA code that changes the Y-scale.
G19: to get a better understanding of the data. | M19: Hit Alt+F11 to see it in the Module.
M20: http://peltiertech.com/ | O20: - for more on everything on excel
M21: charts.
C22: Pivot Slicers | G22: Slice & dice the data anyway you want. Also looks visually much | M22: You can change the look of the slicer more than it at
G23: better than the old pivot controls and gives a "look&feel" experience of a | M23: first seems. This site explains it all:
G24: dedicated BI platforms such as Qlikview. | M24: http://www.jkp-ads.com/Articles/slicers02.asp
C25: Tablet Friendly | G25: Going to start with a disclaimer: this file was not tested on Tablet so | M25: Few examples (not even the tip of the iceberg):
G26: additional tweaks are likely to be needed for complete friendliness :) | M26: http://docs.blackberry.com/en/developers/deliverables/41577/efficient_ergonomics.jsp
G27: Two features designed to make it Tablet friendly: | M27: http://www.google.com/url?sa=t&rct=j&q=&esrc=s&source=web&cd=9&ved=0CFYQFjAI&url=http%3A%2F%2Fwww.thinkmind.org%2Fdownload.php%3Farticleid%3Dachi_2012_7_40_20128&ei=FTv1T6rgBMef8gOS88CCBw&usg=AFQjCNGIag2H_NY8gIpxAResKTEsv1mZLg
G28: 1. Pivot slicers without scroll bar - such control is much more suitable
G29: for a "Touch" device.
G30: 2. Pivot slicers location on the dashboard - Lots of research is conducted
G31: on the subject of how people use tablets and how User Interface should
G32: be built. The slicers are placed on the sides (and on the lower part of the
G33: screen) so it will be easier to use them with yout thumbs when you hold
G34: the tablet in two hands.
B36: Changes made to raw data and 2 cents on Wage analysis
C38: What | G38: Why | M38: One remark nontheless
C39: 15 lines of data removed, | G39: Originally my intention was to explain each change and the logic behind it | M39: I'm aware that comparing countries to regions (i.e. UK to EU-16
C40: Most data remapped, | G40: but I won't :) instead here's my 2 cents on wage analysis: | M40: or to South East Asia is not a best pratice. Still it works for me :)
G41: Wages are a very complex subject to analyze even if you limit yourself | M41: The difference between EU-16 and EU is that EU consists of countries
G42: to one country let alone conducting an almost global wage analysis. In | M42: who are in europe but not in Euro Zone.
G43: addition to economical differences between countries which require some
G44: adjustments (such as PPP adjustment suggested by Chandoo) lots of
G45: factors distort these kind of survey data:
G46: 1. Bonuses - in some work contracts you receive annual bonus, in some
G47: it depends on certain achievements. Some people consider it part of
G48: the base salary, some don't.
G49: 2. Relocation - dramatically increases the wages in certain cases
G50: 3. Insurance (Medical,Social etc) & Taxes significantly affect wages
G51: 4. Sometimes people take lower wages for more flexible work time, more
G52: vacation days etc.
G53: 5. The income Self employed workers charge for their time is income
G54: and not a wage. The wage they pay themselves is affected by many
G55: factors (i.e. Office rent).
G56: In conclusion - There is no unified parameter called "Wage" so one
G57: should keep this in mind when analyzing this survey (or any other).

Sheet Dashboard
AL5: Experience
AL35: Job Type
AL66: Location
